{"text_format":"1","workbook":"xlsx","n_sheets":10,"sheets":["Plan","Actions de secours","Inventaires","Acceptabilité","Aspects critiques","Rochelle","Monia","Florence","Jean-Pierre","Listes"],"not_rendered":{"charts":0,"images":3,"macros":1,"external_links":0,"defined_names":24,"comments":0,"pivot_tables":0},"unopened":[],"bounds":{"document_bytes":16777216,"sheet_cells":100000,"rows_first":2000,"rows_last":500,"rows_between":2000,"halvings":0,"cell_chars":16384,"cell_head_chars":4096},"cells_cut":0,"cells_raw":0,"read":"whole","date_system":"1900"}

{"sheet":"Plan","index":0,"n_rows":43,"n_cols":7,"rows_kept":43,"cut":false,"hidden":false,"merged":[[0,2,0,6],[1,2,1,3],[1,4,1,6]]}
[null,null,"Augmenter le CA"]
[null,"Rochelle","OBJECTIF :",null,"Lancer la production d'un nouveau produit"]
["N°","Actions","Responsable","Lieu","Date","Durée","Moyens"]
[10,{"$f":"IF(IFERROR(VLOOKUP($A4,Actions,2,FALSE),\"\")=0,\"\",IFERROR(VLOOKUP($A4,Actions,2,FALSE),\"\"))","v":"Faire l'analyse fiscale"},{"$f":"IF(IFERROR(VLOOKUP($A4,Actions,5,FALSE),\"\")=0,\"\",IFERROR(VLOOKUP($A4,Actions,5,FALSE),\"\"))","v":"Monia"},{"$f":"IF(IFERROR(VLOOKUP($A4,Actions,6,FALSE),\"\")=0,\"\",IFERROR(VLOOKUP($A4,Actions,6,FALSE),\"\"))","v":"Bureau"},{"$f":"IF(IFERROR(VLOOKUP($A4,Actions,7,FALSE),\"\")=0,\"\",IFERROR(VLOOKUP($A4,Actions,7,FALSE),\"\"))","v":"2015-08-11"},{"$f":"IF(IFERROR(VLOOKUP($A4,Actions,8,FALSE),\"\")=0,\"\",IFERROR(VLOOKUP($A4,Actions,8,FALSE),\"\"))","v":2},{"$f":"IF(IFERROR(VLOOKUP($A4,Actions,9,FALSE),\"\")=0,\"\",IFERROR(VLOOKUP($A4,Actions,9,FALSE),\"\"))","v":"Code pénal, Cabinet juridique"}]
[{"$f":"A4+5","v":15},"","","","","",""]
[{"$f":"A5+5","v":20},"Désigner les intervenants internes et externes et leurs budgets","Rochelle","Bureau","2015-08-19",1,"Organigramme"]
[25,"Elaborer le plan d'exploitation futur","Florence","Bureau","2015-10-30",1,""]
[30,"Lancer les marchés de travaux","Monia","","2015-09-15","",""]
[35,"Faire les études d'insertion","Jean-Pierre","Bureau","2015-10-30",3,""]
[40,"Rechercher les financements","Monia","Bureau","2015-08-25",2,""]
[45,"Obtenir les autorisations administratives","Monia","","","",""]
[50,"Préparer la libération des emprises","Rochelle","","","",""]
[55,"Renégocier le contrat MOA","","","","",""]
[70,"Faire les études techniques (Sol, impact)","Jean-Pierre","Bureau","2015-09-30",2,""]
[75,"","","","","",""]
[80,"","","","","",""]
[85,"","","","","",""]
[90,"","","","","",""]
[70,"Faire les études techniques (Sol, impact)","Jean-Pierre","Bureau","2015-09-30",2,""]
[75,"","","","","",""]
[80,"","","","","",""]
[85,"","","","","",""]
[90,"","","","","",""]
[95,"","","","","",""]
[100,"","","","","",""]
[105,"","","","","",""]
[110,"","","","","",""]
[115,"","","","","",""]
[120,"","","","","",""]
[125,"","","","","",""]
[130,"","","","","",""]
[135,"","","","","",""]
[140,"","","","","",""]
[145,"","","","","",""]
[150,"","","","","",""]
[155,"","","","","",""]
[160,"","","","","",""]
[165,"","","","","",""]
[170,"","","","","",""]
[175,"","","","","",""]
[180,"","","","","",""]
[185,"","","","","",""]
[190,"","","","","",""]

{"sheet":"Actions de secours","index":1,"n_rows":21,"n_cols":6,"rows_kept":21,"cut":false,"hidden":false,"merged":[]}
["N°","Info déclencht","Actions","Lieux","Délai","Moyens"]
["AS1","Contrat non réalisé le 15/05/15","Prévoir une clause de décalage dans le contrat.","Bureau",1,"Cabinet juridique"]
["AS2"]
["AS3"]
["AS4"]
["AS5"]
["AS6"]
["AS7"]
["AS8"]
["AS9"]
["AS10"]
["AS11"]
["AS12"]
["AS13"]
["AS14"]
["AS15"]
["AS16"]
["AS17"]
["AS18"]
["AS19"]
["AS20"]

{"sheet":"Inventaires","index":2,"n_rows":43,"n_cols":9,"rows_kept":43,"cut":false,"hidden":false,"merged":[]}
["N°","Actions","Famille","N°","Resp.","Lieux","Date","Délai","Moyens"]
[{"$f":"D2","v":10},"Faire l'analyse fiscale","Juridique",10,"Monia","Bureau","2015-08-11",2,"Code pénal, Cabinet juridique"]
[{"$f":"D3","v":20},"Désigner les intervenants internes et externes et leurs budgets","Organisation",20,"Rochelle","Bureau","2015-08-19",1,"Organigramme"]
[40,"Rechercher les financements","Budget",40,"Monia","Bureau","2015-08-25",2]
[70,"Faire les études techniques (Sol, impact)","Produits",70,"Jean-Pierre","Bureau","2015-09-30",2]
[35,"Faire les études d'insertion","Produits",35,"Jean-Pierre","Bureau","2015-10-30",3]
[25,"Elaborer le plan d'exploitation futur","Produits",25,"Florence","Bureau","2015-10-30",1]
[40,"Lancer les procédures et autorisations administratives","Produits",40,"Monia","Bureau","2016-01-01",5]
[50,"Préparer la libération des emprises",null,50,"Rochelle"]
[45,"Obtenir les autorisations administratives",null,45,"Monia"]
[55,"Renégocier le contrat MOA",null,55]
[30,"Lancer les marchés de travaux","Juridique",30,"Monia",null,"2015-09-15"]
[0,"Réaliser les travaux"]
[0,"Faire les réceptions intermédaires"]
[0,"Gérer les marchés de travaux"]
[0,"Etablir les décomptes avec les financeurs."]
[0,"Encaisser les acomptes"]
[0,"Négocier les protocoles de 1ère gestion"]
[0,"Faire un premier remplissage"]
[0,"Contractualiser avec les clients"]
[0,"Faire la réception des marchés de travaux"]
[0,"Faire un contrôle technique de 1ère exploitation"]
[0,"Faire la réception avec le MOA (cession et facturation)"]
[0,"Répondre aux contentieux"]
[0]
[0]
[0]
[0]
[0]
[0]
[0]
[0]
[0]
[0]
[0]
[0]
[0]
[{"$f":"D38","v":0}]
[0]
[0]
[0]
[0]
[0]

{"sheet":"Acceptabilité","index":3,"n_rows":0,"n_cols":0,"rows_kept":0,"cut":false,"hidden":false,"merged":[]}

{"sheet":"Aspects critiques","index":4,"n_rows":1353,"n_cols":13,"rows_kept":1353,"cut":false,"hidden":false,"merged":[[7,3,7,4],[7,9,7,10],[5,0,7,0],[5,1,7,1],[8,0,10,0],[8,1,10,1],[8,2,8,3],[8,5,8,7],[8,9,9,10],[9,2,9,3],[2,9,3,10],[4,9,4,10],[2,5,2,7],[3,5,3,7],[5,2,5,3],[5,5,5,7],[5,9,6,10],[6,2,6,3],[6,5,6,7],[3,0,4,0],[3,1,4,1],[3,2,3,3],[2,2,2,3],[4,3,4,4],[15,3,15,4],[15,9,15,10],[16,0,18,0],[16,1,18,1],[16,2,16,3],[16,5,16,7],[16,9,17,10],[17,2,17,3],[17,5,17,7],[18,3,18,4],[9,5,9,7],[10,3,10,4],[10,9,10,10],[13,2,13,3],[13,5,13,7],[13,9,14,10],[14,2,14,3],[14,5,14,7],[14,0,15,0],[14,1,15,1],[24,2,24,3],[24,5,24,7],[24,9,25,10],[25,0,26,0],[25,1,26,1],[25,2,25,3],[25,5,25,7],[26,3,26,4],[26,9,26,10],[18,9,18,10],[19,0,21,0],[19,1,21,1],[19,2,19,3],[19,5,19,7],[19,9,20,10],[20,2,20,3],[20,5,20,7],[21,3,21,4],[21,9,21,10],[30,0,32,0],[30,1,32,1],[30,2,30,3],[30,5,30,7],[30,9,31,10],[31,2,31,3],[31,5,31,7],[32,3,32,4],[32,9,32,10],[27,0,29,0],[27,1,29,1],[27,2,27,3],[27,5,27,7],[27,9,28,10],[28,2,28,3],[28,5,28,7],[29,3,29,4],[29,9,29,10],[38,0,40,0],[38,1,40,1],[38,2,38,3],[38,5,38,7],[38,9,39,10],[39,2,39,3],[39,5,39,7],[40,3,40,4],[40,9,40,10],[35,2,35,3],[35,5,35,7],[35,9,36,10],[36,0,37,0],[36,1,37,1],[36,2,36,3],[36,5,36,7],[37,3,37,4],[37,9,37,10],[46,2,46,3],[46,5,46,7],[46,9,47,10],[47,0,48,0],[47,1,48,1],[47,2,47,3],[47,5,47,7],[48,3,48,4],[48,9,48,10],[41,0,43,0],[41,1,43,1],[41,2,41,3],[41,5,41,7],[41,9,42,10],[42,2,42,3],[42,5,42,7],[43,3,43,4],[43,9,43,10],[52,0,54,0],[52,1,54,1],[52,2,52,3],[52,5,52,7],[52,9,53,10],[53,2,53,3],[53,5,53,7],[54,3,54,4],[54,9,54,10],[49,0,51,0],[49,1,51,1],[49,2,49,3],[49,5,49,7],[49,9,50,10],[50,2,50,3],[50,5,50,7],[51,3,51,4],[51,9,51,10],[60,0,62,0],[60,1,62,1],[60,2,60,3],[60,5,60,7],[60,9,61,10],[61,2,61,3],[61,5,61,7],[62,3,62,4],[62,9,62,10],[57,2,57,3],[57,5,57,7],[57,9,58,10],[58,0,59,0],[58,1,59,1],[58,2,58,3],[58,5,58,7],[59,3,59,4],[59,9,59,10],[68,2,68,3],[68,5,68,7],[68,9,69,10],[69,0,70,0],[69,1,70,1],[69,2,69,3],[69,5,69,7],[70,3,70,4],[70,9,70,10],[63,0,65,0],[63,1,65,1],[63,2,63,3],[63,5,63,7],[63,9,64,10],[64,2,64,3],[64,5,64,7],[65,3,65,4],[65,9,65,10],[74,0,76,0],[74,1,76,1],[74,2,74,3],[74,5,74,7],[74,9,75,10],[75,2,75,3],[75,5,75,7],[76,3,76,4],[76,9,76,10],[71,0,73,0],[71,1,73,1],[71,2,71,3],[71,5,71,7],[71,9,72,10],[72,2,72,3],[72,5,72,7],[73,3,73,4],[73,9,73,10],[82,0,84,0],[82,1,84,1],[82,2,82,3],[82,5,82,7],[82,9,83,10],[83,2,83,3],[83,5,83,7],[84,3,84,4],[84,9,84,10],[79,2,79,3],[79,5,79,7],[79,9,80,10],[80,0,81,0],[80,1,81,1],[80,2,80,3],[80,5,80,7],[81,3,81,4],[81,9,81,10],[90,2,90,3],[90,5,90,7],[90,9,91,10],[91,0,92,0],[91,1,92,1],[91,2,91,3],[91,5,91,7],[92,3,92,4],[92,9,92,10],[85,0,87,0],[85,1,87,1],[85,2,85,3],[85,5,85,7],[85,9,86,10],[86,2,86,3],[86,5,86,7],[87,3,87,4],[87,9,87,10],[96,0,98,0],[96,1,98,1],[96,2,96,3],[96,5,96,7],[96,9,97,10],[97,2,97,3],[97,5,97,7],[98,3,98,4],[98,9,98,10],[93,0,95,0],[93,1,95,1],[93,2,93,3],[93,5,93,7],[93,9,94,10],[94,2,94,3],[94,5,94,7],[95,3,95,4],[95,9,95,10],[104,0,106,0],[104,1,106,1],[104,2,104,3],[104,5,104,7],[104,9,105,10],[105,2,105,3],[105,5,105,7],[106,3,106,4],[106,9,106,10],[101,2,101,3],[101,5,101,7],[101,9,102,10],[102,0,103,0],[102,1,103,1],[102,2,102,3],[102,5,102,7],[103,3,103,4],[103,9,103,10],[112,2,112,3],[112,5,112,7],[112,9,113,10],[113,0,114,0],[113,1,114,1],[113,2,113,3],[113,5,113,7],[114,3,114,4],[114,9,114,10],[107,0,109,0],[107,1,109,1],[107,2,107,3],[107,5,107,7],[107,9,108,10],[108,2,108,3],[108,5,108,7],[109,3,109,4],[109,9,109,10],[118,0,120,0],[118,1,120,1],[118,2,118,3],[118,5,118,7],[118,9,119,10],[119,2,119,3],[119,5,119,7],[120,3,120,4],[120,9,120,10],[115,0,117,0],[115,1,117,1],[115,2,115,3],[115,5,115,7],[115,9,116,10],[116,2,116,3],[116,5,116,7],[117,3,117,4],[117,9,117,10],[126,0,128,0],[126,1,128,1],[126,2,126,3],[126,5,126,7],[126,9,127,10],[127,2,127,3],[127,5,127,7],[128,3,128,4],[128,9,128,10],[123,2,123,3],[123,5,123,7],[123,9,124,10],[124,0,125,0],[124,1,125,1],[124,2,124,3],[124,5,124,7],[125,3,125,4],[125,9,125,10],[134,2,134,3],[134,5,134,7],[134,9,135,10],[135,0,136,0],[135,1,136,1],[135,2,135,3],[135,5,135,7],[136,3,136,4],[136,9,136,10],[129,0,131,0],[129,1,131,1],[129,2,129,3],[129,5,129,7],[129,9,130,10],[130,2,130,3],[130,5,130,7],[131,3,131,4],[131,9,131,10],[140,0,142,0],[140,1,142,1],[140,2,140,3],[140,5,140,7],[140,9,141,10],[141,2,141,3],[141,5,141,7],[142,3,142,4],[142,9,142,10],[137,0,139,0],[137,1,139,1],[137,2,137,3],[137,5,137,7],[137,9,138,10],[138,2,138,3],[138,5,138,7],[139,3,139,4],[139,9,139,10],[148,0,150,0],[148,1,150,1],[148,2,148,3],[148,5,148,7],[148,9,149,10],[149,2,149,3],[149,5,149,7],[150,3,150,4],[150,9,150,10],[145,2,145,3],[145,5,145,7],[145,9,146,10],[146,0,147,0],[146,1,147,1],[146,2,146,3],[146,5,146,7],[147,3,147,4],[147,9,147,10],[156,2,156,3],[156,5,156,7],[156,9,157,10],[157,0,158,0],[157,1,158,1],[157,2,157,3],[157,5,157,7],[158,3,158,4],[158,9,158,10],[151,0,153,0],[151,1,153,1],[151,2,151,3],[151,5,151,7],[151,9,152,10],[152,2,152,3],[152,5,152,7],[153,3,153,4],[153,9,153,10],[162,0,164,0],[162,1,164,1],[162,2,162,3],[162,5,162,7],[162,9,163,10],[163,2,163,3],[163,5,163,7],[164,3,164,4],[164,9,164,10],[159,0,161,0],[159,1,161,1],[159,2,159,3],[159,5,159,7],[159,9,160,10],[160,2,160,3],[160,5,160,7],[161,3,161,4],[161,9,161,10],[170,0,172,0],[170,1,172,1],[170,2,170,3],[170,5,170,7],[170,9,171,10],[171,2,171,3],[171,5,171,7],[172,3,172,4],[172,9,172,10],[167,2,167,3],[167,5,167,7],[167,9,168,10],[168,0,169,0],[168,1,169,1],[168,2,168,3],[168,5,168,7],[169,3,169,4],[169,9,169,10],[178,2,178,3],[178,5,178,7],[178,9,179,10],[179,0,180,0],[179,1,180,1],[179,2,179,3],[179,5,179,7],[180,3,180,4],[180,9,180,10],[173,0,175,0],[173,1,175,1],[173,2,173,3],[173,5,173,7],[173,9,174,10],[174,2,174,3],[174,5,174,7],[175,3,175,4],[175,9,175,10],[184,0,186,0],[184,1,186,1],[184,2,184,3],[184,5,184,7],[184,9,185,10],[185,2,185,3],[185,5,185,7],[186,3,186,4],[186,9,186,10],[181,0,183,0],[181,1,183,1],[181,2,181,3],[181,5,181,7],[181,9,182,10],[182,2,182,3],[182,5,182,7],[183,3,183,4],[183,9,183,10],[192,0,194,0],[192,1,194,1],[192,2,192,3],[192,5,192,7],[192,9,193,10],[193,2,193,3],[193,5,193,7],[194,3,194,4],[194,9,194,10],[189,2,189,3],[189,5,189,7],[189,9,190,10],[190,0,191,0],[190,1,191,1],[190,2,190,3],[190,5,190,7],[191,3,191,4],[191,9,191,10],[200,2,200,3],[200,5,200,7],[200,9,201,10],[201,0,202,0],[201,1,202,1],[201,2,201,3],[201,5,201,7],[202,3,202,4],[202,9,202,10],[195,0,197,0],[195,1,197,1],[195,2,195,3],[195,5,195,7],[195,9,196,10],[196,2,196,3],[196,5,196,7],[197,3,197,4],[197,9,197,10],[206,0,208,0],[206,1,208,1],[206,2,206,3],[206,5,206,7],[206,9,207,10],[207,2,207,3],[207,5,207,7],[208,3,208,4],[208,9,208,10],[203,0,205,0],[203,1,205,1],[203,2,203,3],[203,5,203,7],[203,9,204,10],[204,2,204,3],[204,5,204,7],[205,3,205,4],[205,9,205,10],[214,0,216,0],[214,1,216,1],[214,2,214,3],[214,5,214,7],[214,9,215,10],[215,2,215,3],[215,5,215,7],[216,3,216,4],[216,9,216,10],[211,2,211,3],[211,5,211,7],[211,9,212,10],[212,0,213,0],[212,1,213,1],[212,2,212,3],[212,5,212,7],[213,3,213,4],[213,9,213,10],[222,2,222,3],[222,5,222,7],[222,9,223,10],[223,0,224,0],[223,1,224,1],[223,2,223,3],[223,5,223,7],[224,3,224,4],[224,9,224,10],[217,0,219,0],[217,1,219,1],[217,2,217,3],[217,5,217,7],[217,9,218,10],[218,2,218,3],[218,5,218,7],[219,3,219,4],[219,9,219,10],[228,0,230,0],[228,1,230,1],[228,2,228,3],[228,5,228,7],[228,9,229,10],[229,2,229,3],[229,5,229,7],[230,3,230,4],[230,9,230,10],[225,0,227,0],[225,1,227,1],[225,2,225,3],[225,5,225,7],[225,9,226,10],[226,2,226,3],[226,5,226,7],[227,3,227,4],[227,9,227,10],[236,0,238,0],[236,1,238,1],[236,2,236,3],[236,5,236,7],[236,9,237,10],[237,2,237,3],[237,5,237,7],[238,3,238,4],[238,9,238,10],[233,2,233,3],[233,5,233,7],[233,9,234,10],[234,0,235,0],[234,1,235,1],[234,2,234,3],[234,5,234,7],[235,3,235,4],[235,9,235,10],[244,2,244,3],[244,5,244,7],[244,9,245,10],[245,0,246,0],[245,1,246,1],[245,2,245,3],[245,5,245,7],[246,3,246,4],[246,9,246,10],[239,0,241,0],[239,1,241,1],[239,2,239,3],[239,5,239,7],[239,9,240,10],[240,2,240,3],[240,5,240,7],[241,3,241,4],[241,9,241,10],[250,0,252,0],[250,1,252,1],[250,2,250,3],[250,5,250,7],[250,9,251,10],[251,2,251,3],[251,5,251,7],[252,3,252,4],[252,9,252,10],[247,0,249,0],[247,1,249,1],[247,2,247,3],[247,5,247,7],[247,9,248,10],[248,2,248,3],[248,5,248,7],[249,3,249,4],[249,9,249,10],[258,0,260,0],[258,1,260,1],[258,2,258,3],[258,5,258,7],[258,9,259,10],[259,2,259,3],[259,5,259,7],[260,3,260,4],[260,9,260,10],[255,2,255,3],[255,5,255,7],[255,9,256,10],[256,0,257,0],[256,1,257,1],[256,2,256,3],[256,5,256,7],[257,3,257,4],[257,9,257,10],[266,2,266,3],[266,5,266,7],[266,9,267,10],[267,0,268,0],[267,1,268,1],[267,2,267,3],[267,5,267,7],[268,3,268,4],[268,9,268,10],[261,0,263,0],[261,1,263,1],[261,2,261,3],[261,5,261,7],[261,9,262,10],[262,2,262,3],[262,5,262,7],[263,3,263,4],[263,9,263,10],[272,0,274,0],[272,1,274,1],[272,2,272,3],[272,5,272,7],[272,9,273,10],[273,2,273,3],[273,5,273,7],[274,3,274,4],[274,9,274,10],[269,0,271,0],[269,1,271,1],[269,2,269,3],[269,5,269,7],[269,9,270,10],[270,2,270,3],[270,5,270,7],[271,3,271,4],[271,9,271,10],[280,0,282,0],[280,1,282,1],[280,2,280,3],[280,5,280,7],[280,9,281,10],[281,2,281,3],[281,5,281,7],[282,3,282,4],[282,9,282,10],[277,2,277,3],[277,5,277,7],[277,9,278,10],[278,0,279,0],[278,1,279,1],[278,2,278,3],[278,5,278,7],[279,3,279,4],[279,9,279,10],[288,2,288,3],[288,5,288,7],[288,9,289,10],[289,0,290,0],[289,1,290,1],[289,2,289,3],[289,5,289,7],[290,3,290,4],[290,9,290,10],[283,0,285,0],[283,1,285,1],[283,2,283,3],[283,5,283,7],[283,9,284,10],[284,2,284,3],[284,5,284,7],[285,3,285,4],[285,9,285,10],[294,0,296,0],[294,1,296,1],[294,2,294,3],[294,5,294,7],[294,9,295,10],[295,2,295,3],[295,5,295,7],[296,3,296,4],[296,9,296,10],[291,0,293,0],[291,1,293,1],[291,2,291,3],[291,5,291,7],[291,9,292,10],[292,2,292,3],[292,5,292,7],[293,3,293,4],[293,9,293,10],[302,0,304,0],[302,1,304,1],[302,2,302,3],[302,5,302,7],[302,9,303,10],[303,2,303,3],[303,5,303,7],[304,3,304,4],[304,9,304,10],[299,2,299,3],[299,5,299,7],[299,9,300,10],[300,0,301,0],[300,1,301,1],[300,2,300,3],[300,5,300,7],[301,3,301,4],[301,9,301,10],[310,2,310,3],[310,5,310,7],[310,9,311,10],[311,0,312,0],[311,1,312,1],[311,2,311,3],[311,5,311,7],[312,3,312,4],[312,9,312,10],[305,0,307,0],[305,1,307,1],[305,2,305,3],[305,5,305,7],[305,9,306,10],[306,2,306,3],[306,5,306,7],[307,3,307,4],[307,9,307,10],[316,0,318,0],[316,1,318,1],[316,2,316,3],[316,5,316,7],[316,9,317,10],[317,2,317,3],[317,5,317,7],[318,3,318,4],[318,9,318,10],[313,0,315,0],[313,1,315,1],[313,2,313,3],[313,5,313,7],[313,9,314,10],[314,2,314,3],[314,5,314,7],[315,3,315,4],[315,9,315,10],[324,0,326,0],[324,1,326,1],[324,2,324,3],[324,5,324,7],[324,9,325,10],[325,2,325,3],[325,5,325,7],[326,3,326,4],[326,9,326,10],[321,2,321,3],[321,5,321,7],[321,9,322,10],[322,0,323,0],[322,1,323,1],[322,2,322,3],[322,5,322,7],[323,3,323,4],[323,9,323,10],[332,2,332,3],[332,5,332,7],[332,9,333,10],[333,0,334,0],[333,1,334,1],[333,2,333,3],[333,5,333,7],[334,3,334,4],[334,9,334,10],[327,0,329,0],[327,1,329,1],[327,2,327,3],[327,5,327,7],[327,9,328,10],[328,2,328,3],[328,5,328,7],[329,3,329,4],[329,9,329,10],[338,0,340,0],[338,1,340,1],[338,2,338,3],[338,5,338,7],[338,9,339,10],[339,2,339,3],[339,5,339,7],[340,3,340,4],[340,9,340,10],[335,0,337,0],[335,1,337,1],[335,2,335,3],[335,5,335,7],[335,9,336,10],[336,2,336,3],[336,5,336,7],[337,3,337,4],[337,9,337,10],[346,0,348,0],[346,1,348,1],[346,2,346,3],[346,5,346,7],[346,9,347,10],[347,2,347,3],[347,5,347,7],[348,3,348,4],[348,9,348,10],[343,2,343,3],[343,5,343,7],[343,9,344,10],[344,0,345,0],[344,1,345,1],[344,2,344,3],[344,5,344,7],[345,3,345,4],[345,9,345,10],[354,2,354,3],[354,5,354,7],[354,9,355,10],[355,0,356,0],[355,1,356,1],[355,2,355,3],[355,5,355,7],[356,3,356,4],[356,9,356,10],[349,0,351,0],[349,1,351,1],[349,2,349,3],[349,5,349,7],[349,9,350,10],[350,2,350,3],[350,5,350,7],[351,3,351,4],[351,9,351,10],[360,0,362,0],[360,1,362,1],[360,2,360,3],[360,5,360,7],[360,9,361,10],[361,2,361,3],[361,5,361,7],[362,3,362,4],[362,9,362,10],[357,0,359,0],[357,1,359,1],[357,2,357,3],[357,5,357,7],[357,9,358,10],[358,2,358,3],[358,5,358,7],[359,3,359,4],[359,9,359,10],[368,0,370,0],[368,1,370,1],[368,2,368,3],[368,5,368,7],[368,9,369,10],[369,2,369,3],[369,5,369,7],[370,3,370,4],[370,9,370,10],[365,2,365,3],[365,5,365,7],[365,9,366,10],[366,0,367,0],[366,1,367,1],[366,2,366,3],[366,5,366,7],[367,3,367,4],[367,9,367,10],[376,2,376,3],[376,5,376,7],[376,9,377,10],[377,0,378,0],[377,1,378,1],[377,2,377,3],[377,5,377,7],[378,3,378,4],[378,9,378,10],[371,0,373,0],[371,1,373,1],[371,2,371,3],[371,5,371,7],[371,9,372,10],[372,2,372,3],[372,5,372,7],[373,3,373,4],[373,9,373,10],[382,0,384,0],[382,1,384,1],[382,2,382,3],[382,5,382,7],[382,9,383,10],[383,2,383,3],[383,5,383,7],[384,3,384,4],[384,9,384,10],[379,0,381,0],[379,1,381,1],[379,2,379,3],[379,5,379,7],[379,9,380,10],[380,2,380,3],[380,5,380,7],[381,3,381,4],[381,9,381,10],[390,0,392,0],[390,1,392,1],[390,2,390,3],[390,5,390,7],[390,9,391,10],[391,2,391,3],[391,5,391,7],[392,3,392,4],[392,9,392,10],[387,2,387,3],[387,5,387,7],[387,9,388,10],[388,0,389,0],[388,1,389,1],[388,2,388,3],[388,5,388,7],[389,3,389,4],[389,9,389,10],[398,2,398,3],[398,5,398,7],[398,9,399,10],[399,0,400,0],[399,1,400,1],[399,2,399,3],[399,5,399,7],[400,3,400,4],[400,9,400,10],[393,0,395,0],[393,1,395,1],[393,2,393,3],[393,5,393,7],[393,9,394,10],[394,2,394,3],[394,5,394,7],[395,3,395,4],[395,9,395,10],[404,0,406,0],[404,1,406,1],[404,2,404,3],[404,5,404,7],[404,9,405,10],[405,2,405,3],[405,5,405,7],[406,3,406,4],[406,9,406,10],[401,0,403,0],[401,1,403,1],[401,2,401,3],[401,5,401,7],[401,9,402,10],[402,2,402,3],[402,5,402,7],[403,3,403,4],[403,9,403,10],[412,0,414,0]],"merged_total":3321,"flags":["merged_cut"]}
[]
["N° AC :","Aspect Critique"]
["10-1","Cabinet juridique","Cause",null,"Prob","Effet",null,null,"Grav","Acceptabilité"]
["Risque 1","Ne pas être compétent","Le type de contrat traité est spécifique",null,"P3","Retard dans le démarrage dû à une diificulté de contractualiser",null,null,"G1",null,null,null,{"$f":"IFERROR(VLOOKUP(CONCATENATE(E4,I4),Pro_Grav,2,FALSE),\"\")","v":0}]
[null,null,"Action Préventive","Trouver un cabinet ayant déjà traité des situations similaires",null,"Action de secours","Prévoir une clause de décalage dans le contrat.","Info D","Contrat non réalisé le 15/05/15",{"$f":"IF(M4=\"\",\"\",IF(M4=1,\"Non\",\"Oui\"))","v":"Oui"}]
["Risque 2",null,"Cause",null,"Prob","Effet",null,null,"Grav","Acceptabilité"]
[null,null,null,null,null,null,null,null,null,null,null,null,{"$f":"IFERROR(VLOOKUP(CONCATENATE(E7,I7),Pro_Grav,2,FALSE),\"\")","v":""}]
[null,null,"Action Préventive",null,null,"Action de secours",null,"Info D",null,{"$f":"IF(M7=\"\",\"\",IF(M7=1,\"Non\",\"Oui\"))","v":""}]
["Risque 3",null,"Cause",null,"Prob","Effet",null,null,"Grav","Acceptabilité"]
[null,null,null,null,null,null,null,null,null,null,null,null,{"$f":"IFERROR(VLOOKUP(CONCATENATE(E10,I10),Pro_Grav,2,FALSE),\"\")","v":""}]
[null,null,"Action Préventive",null,null,"Action de secours",null,"Info D",null,{"$f":"IF(M10=\"\",\"\",IF(M10=1,\"Non\",\"Oui\"))","v":""},null,null,{"$f":"IFERROR(VLOOKUP(CONCATENATE(E11,I11),Pro_Grav,2,FALSE),\"\")","v":""}]
[]
["N° AC :","Aspect Critique"]
["20-1","2015-08-19","Cause",null,"Prob","Effet",null,null,"Grav","Acceptabilité"]
["Risque 1","Etre trop tôt","Le personnel n'est pas revenu de congé",null,"P3","Manque d'enchaînement",null,null,"G1",null,null,null,{"$f":"IFERROR(VLOOKUP(CONCATENATE(E15,I15),Pro_Grav,2,FALSE),\"\")","v":0}]
[null,null,"Action Préventive",null,null,"Action de secours",null,"Info D",null,{"$f":"IF(M15=\"\",\"\",IF(M15=1,\"Non\",\"Oui\"))","v":"Oui"}]
["Risque 2",null,"Cause",null,"Prob","Effet",null,null,"Grav","Acceptabilité"]
[null,null,null,null,null,null,null,null,null,null,null,null,{"$f":"IFERROR(VLOOKUP(CONCATENATE(E18,I18),Pro_Grav,2,FALSE),\"\")","v":""}]
[null,null,"Action Préventive",null,null,"Action de secours",null,"Info D",null,{"$f":"IF(M18=\"\",\"\",IF(M18=1,\"Non\",\"Oui\"))","v":""}]
["Risque 3",null,"Cause",null,"Prob","Effet",null,null,"Grav","Acceptabilité"]
[null,null,null,null,null,null,null,null,null,null,null,null,{"$f":"IFERROR(VLOOKUP(CONCATENATE(E21,I21),Pro_Grav,2,FALSE),\"\")","v":""}]
[null,null,"Action Préventive",null,null,"Action de secours",null,"Info D",null,{"$f":"IF(M21=\"\",\"\",IF(M21=1,\"Non\",\"Oui\"))","v":""},null,null,{"$f":"IFERROR(VLOOKUP(CONCATENATE(E22,I22),Pro_Grav,2,FALSE),\"\")","v":""}]
[]
["N° AC :","Aspect Critique"]
[null,null,"Cause",null,"Prob","Effet",null,null,"Grav","Acceptabilité"]
["Risque 1",null,null,null,null,null,null,null,null,null,null,null,{"$f":"IFERROR(VLOOKUP(CONCATENATE(E26,I26),Pro_Grav,2,FALSE),\"\")","v":""}]
[null,null,"Action Préventive",null,null,"Action de secours",null,"Info D",null,{"$f":"IF(M26=\"\",\"\",IF(M26=1,\"Non\",\"Oui\"))","v":""}]
["Risque 2",null,"Cause",null,"Prob","Effet",null,null,"Grav","Acceptabilité"]
[null,null,null,null,null,null,null,null,null,null,null,null,{"$f":"IFERROR(VLOOKUP(CONCATENATE(E29,I29),Pro_Grav,2,FALSE),\"\")","v":""}]
[null,null,"Action Préventive",null,null,"Action de secours",null,"Info D",null,{"$f":"IF(M29=\"\",\"\",IF(M29=1,\"Non\",\"Oui\"))","v":""}]
["Risque 3",null,"Cause",null,"Prob","Effet",null,null,"Grav","Acceptabilité"]
[null,null,null,null,null,null,null,null,null,null,null,null,{"$f":"IFERROR(VLOOKUP(CONCATENATE(E32,I32),Pro_Grav,2,FALSE),\"\")","v":""}]
[null,null,"Action Préventive",null,null,"Action de secours",null,"Info D",null,{"$f":"IF(M32=\"\",\"\",IF(M32=1,\"Non\",\"Oui\"))","v":""}]
[]
["N° AC :","Aspect Critique"]
[null,null,"Cause",null,"Prob","Effet",null,null,"Grav","Acceptabilité"]
["Risque 1",null,null,null,null,null,null,null,null,null,null,null,{"$f":"IFERROR(VLOOKUP(CONCATENATE(E37,I37),Pro_Grav,2,FALSE),\"\")","v":""}]
[null,null,"Action Préventive",null,null,"Action de secours",null,"Info D",null,{"$f":"IF(M37=\"\",\"\",IF(M37=1,\"Non\",\"Oui\"))","v":""}]
["Risque 2",null,"Cause",null,"Prob","Effet",null,null,"Grav","Acceptabilité"]
[null,null,null,null,null,null,null,null,null,null,null,null,{"$f":"IFERROR(VLOOKUP(CONCATENATE(E40,I40),Pro_Grav,2,FALSE),\"\")","v":""}]
[null,null,"Action Préventive",null,null,"Action de secours",null,"Info D",null,{"$f":"IF(M40=\"\",\"\",IF(M40=1,\"Non\",\"Oui\"))","v":""}]
["Risque 3",null,"Cause",null,"Prob","Effet",null,null,"Grav","Acceptabilité"]
[null,null,null,null,null,null,null,null,null,null,null,null,{"$f":"IFERROR(VLOOKUP(CONCATENATE(E43,I43),Pro_Grav,2,FALSE),\"\")","v":""}]
[null,null,"Action Préventive",null,null,"Action de secours",null,"Info D",null,{"$f":"IF(M43=\"\",\"\",IF(M43=1,\"Non\",\"Oui\"))","v":""}]
[]
["N° AC :","Aspect Critique"]
[null,null,"Cause",null,"Prob","Effet",null,null,"Grav","Acceptabilité"]
["Risque 1",null,null,null,null,null,null,null,null,null,null,null,{"$f":"IFERROR(VLOOKUP(CONCATENATE(E48,I48),Pro_Grav,2,FALSE),\"\")","v":""}]
[null,null,"Action Préventive",null,null,"Action de secours",null,"Info D",null,{"$f":"IF(M48=\"\",\"\",IF(M48=1,\"Non\",\"Oui\"))","v":""}]
["Risque 2",null,"Cause",null,"Prob","Effet",null,null,"Grav","Acceptabilité"]
[null,null,null,null,null,null,null,null,null,null,null,null,{"$f":"IFERROR(VLOOKUP(CONCATENATE(E51,I51),Pro_Grav,2,FALSE),\"\")","v":""}]
[null,null,"Action Préventive",null,null,"Action de secours",null,"Info D",null,{"$f":"IF(M51=\"\",\"\",IF(M51=1,\"Non\",\"Oui\"))","v":""}]
["Risque 3",null,"Cause",null,"Prob","Effet",null,null,"Grav","Acceptabilité"]
[null,null,null,null,null,null,null,null,null,null,null,null,{"$f":"IFERROR(VLOOKUP(CONCATENATE(E54,I54),Pro_Grav,2,FALSE),\"\")","v":""}]
[null,null,"Action Préventive",null,null,"Action de secours",null,"Info D",null,{"$f":"IF(M54=\"\",\"\",IF(M54=1,\"Non\",\"Oui\"))","v":""}]
[]
["N° AC :","Aspect Critique"]
[null,null,"Cause",null,"Prob","Effet",null,null,"Grav","Acceptabilité"]
["Risque 1",null,null,null,null,null,null,null,null,null,null,null,{"$f":"IFERROR(VLOOKUP(CONCATENATE(E59,I59),Pro_Grav,2,FALSE),\"\")","v":""}]
[null,null,"Action Préventive",null,null,"Action de secours",null,"Info D",null,{"$f":"IF(M59=\"\",\"\",IF(M59=1,\"Non\",\"Oui\"))","v":""}]
["Risque 2",null,"Cause",null,"Prob","Effet",null,null,"Grav","Acceptabilité"]
[null,null,null,null,null,null,null,null,null,null,null,null,{"$f":"IFERROR(VLOOKUP(CONCATENATE(E62,I62),Pro_Grav,2,FALSE),\"\")","v":""}]
[null,null,"Action Préventive",null,null,"Action de secours",null,"Info D",null,{"$f":"IF(M62=\"\",\"\",IF(M62=1,\"Non\",\"Oui\"))","v":""}]
["Risque 3",null,"Cause",null,"Prob","Effet",null,null,"Grav","Acceptabilité"]
[null,null,null,null,null,null,null,null,null,null,null,null,{"$f":"IFERROR(VLOOKUP(CONCATENATE(E65,I65),Pro_Grav,2,FALSE),\"\")","v":""}]
[null,null,"Action Préventive",null,null,"Action de secours",null,"Info D",null,{"$f":"IF(M65=\"\",\"\",IF(M65=1,\"Non\",\"Oui\"))","v":""}]
[]
["N° AC :","Aspect Critique"]
[null,null,"Cause",null,"Prob","Effet",null,null,"Grav","Acceptabilité"]
["Risque 1",null,null,null,null,null,null,null,null,null,null,null,{"$f":"IFERROR(VLOOKUP(CONCATENATE(E70,I70),Pro_Grav,2,FALSE),\"\")","v":""}]
[null,null,"Action Préventive",null,null,"Action de secours",null,"Info D",null,{"$f":"IF(M70=\"\",\"\",IF(M70=1,\"Non\",\"Oui\"))","v":""}]
["Risque 2",null,"Cause",null,"Prob","Effet",null,null,"Grav","Acceptabilité"]
[null,null,null,null,null,null,null,null,null,null,null,null,{"$f":"IFERROR(VLOOKUP(CONCATENATE(E73,I73),Pro_Grav,2,FALSE),\"\")","v":""}]
[null,null,"Action Préventive",null,null,"Action de secours",null,"Info D",null,{"$f":"IF(M73=\"\",\"\",IF(M73=1,\"Non\",\"Oui\"))","v":""}]
["Risque 3",null,"Cause",null,"Prob","Effet",null,null,"Grav","Acceptabilité"]
[null,null,null,null,null,null,null,null,null,null,null,null,{"$f":"IFERROR(VLOOKUP(CONCATENATE(E76,I76),Pro_Grav,2,FALSE),\"\")","v":""}]
[null,null,"Action Préventive",null,null,"Action de secours",null,"Info D",null,{"$f":"IF(M76=\"\",\"\",IF(M76=1,\"Non\",\"Oui\"))","v":""}]
[]
["N° AC :","Aspect Critique"]
[null,null,"Cause",null,"Prob","Effet",null,null,"Grav","Acceptabilité"]
["Risque 1",null,null,null,null,null,null,null,null,null,null,null,{"$f":"IFERROR(VLOOKUP(CONCATENATE(E81,I81),Pro_Grav,2,FALSE),\"\")","v":""}]
[null,null,"Action Préventive",null,null,"Action de secours",null,"Info D",null,{"$f":"IF(M81=\"\",\"\",IF(M81=1,\"Non\",\"Oui\"))","v":""}]
["Risque 2",null,"Cause",null,"Prob","Effet",null,null,"Grav","Acceptabilité"]
[null,null,null,null,null,null,null,null,null,null,null,null,{"$f":"IFERROR(VLOOKUP(CONCATENATE(E84,I84),Pro_Grav,2,FALSE),\"\")","v":""}]
[null,null,"Action Préventive",null,null,"Action de secours",null,"Info D",null,{"$f":"IF(M84=\"\",\"\",IF(M84=1,\"Non\",\"Oui\"))","v":""}]
["Risque 3",null,"Cause",null,"Prob","Effet",null,null,"Grav","Acceptabilité"]
[null,null,null,null,null,null,null,null,null,null,null,null,{"$f":"IFERROR(VLOOKUP(CONCATENATE(E87,I87),Pro_Grav,2,FALSE),\"\")","v":""}]
[null,null,"Action Préventive",null,null,"Action de secours",null,"Info D",null,{"$f":"IF(M87=\"\",\"\",IF(M87=1,\"Non\",\"Oui\"))","v":""}]
[]
["N° AC :","Aspect Critique"]
[null,null,"Cause",null,"Prob","Effet",null,null,"Grav","Acceptabilité"]
["Risque 1",null,null,null,null,null,null,null,null,null,null,null,{"$f":"IFERROR(VLOOKUP(CONCATENATE(E92,I92),Pro_Grav,2,FALSE),\"\")","v":""}]
[null,null,"Action Préventive",null,null,"Action de secours",null,"Info D",null,{"$f":"IF(M92=\"\",\"\",IF(M92=1,\"Non\",\"Oui\"))","v":""}]
["Risque 2",null,"Cause",null,"Prob","Effet",null,null,"Grav","Acceptabilité"]
[null,null,null,null,null,null,null,null,null,null,null,null,{"$f":"IFERROR(VLOOKUP(CONCATENATE(E95,I95),Pro_Grav,2,FALSE),\"\")","v":""}]
[null,null,"Action Préventive",null,null,"Action de secours",null,"Info D",null,{"$f":"IF(M95=\"\",\"\",IF(M95=1,\"Non\",\"Oui\"))","v":""}]
["Risque 3",null,"Cause",null,"Prob","Effet",null,null,"Grav","Acceptabilité"]
[null,null,null,null,null,null,null,null,null,null,null,null,{"$f":"IFERROR(VLOOKUP(CONCATENATE(E98,I98),Pro_Grav,2,FALSE),\"\")","v":""}]
[null,null,"Action Préventive",null,null,"Action de secours",null,"Info D",null,{"$f":"IF(M98=\"\",\"\",IF(M98=1,\"Non\",\"Oui\"))","v":""}]
[]
["N° AC :","Aspect Critique"]
[null,null,"Cause",null,"Prob","Effet",null,null,"Grav","Acceptabilité"]
["Risque 1",null,null,null,null,null,null,null,null,null,null,null,{"$f":"IFERROR(VLOOKUP(CONCATENATE(E103,I103),Pro_Grav,2,FALSE),\"\")","v":""}]
[null,null,"Action Préventive",null,null,"Action de secours",null,"Info D",null,{"$f":"IF(M103=\"\",\"\",IF(M103=1,\"Non\",\"Oui\"))","v":""}]
["Risque 2",null,"Cause",null,"Prob","Effet",null,null,"Grav","Acceptabilité"]
[null,null,null,null,null,null,null,null,null,null,null,null,{"$f":"IFERROR(VLOOKUP(CONCATENATE(E106,I106),Pro_Grav,2,FALSE),\"\")","v":""}]
[null,null,"Action Préventive",null,null,"Action de secours",null,"Info D",null,{"$f":"IF(M106=\"\",\"\",IF(M106=1,\"Non\",\"Oui\"))","v":""}]
["Risque 3",null,"Cause",null,"Prob","Effet",null,null,"Grav","Acceptabilité"]
[null,null,null,null,null,null,null,null,null,null,null,null,{"$f":"IFERROR(VLOOKUP(CONCATENATE(E109,I109),Pro_Grav,2,FALSE),\"\")","v":""}]
[null,null,"Action Préventive",null,null,"Action de secours",null,"Info D",null,{"$f":"IF(M109=\"\",\"\",IF(M109=1,\"Non\",\"Oui\"))","v":""}]
[]
["N° AC :","Aspect Critique"]
[null,null,"Cause",null,"Prob","Effet",null,null,"Grav","Acceptabilité"]
["Risque 1",null,null,null,null,null,null,null,null,null,null,null,{"$f":"IFERROR(VLOOKUP(CONCATENATE(E114,I114),Pro_Grav,2,FALSE),\"\")","v":""}]
[null,null,"Action Préventive",null,null,"Action de secours",null,"Info D",null,{"$f":"IF(M114=\"\",\"\",IF(M114=1,\"Non\",\"Oui\"))","v":""}]
["Risque 2",null,"Cause",null,"Prob","Effet",null,null,"Grav","Acceptabilité"]
[null,null,null,null,null,null,null,null,null,null,null,null,{"$f":"IFERROR(VLOOKUP(CONCATENATE(E117,I117),Pro_Grav,2,FALSE),\"\")","v":""}]
[null,null,"Action Préventive",null,null,"Action de secours",null,"Info D",null,{"$f":"IF(M117=\"\",\"\",IF(M117=1,\"Non\",\"Oui\"))","v":""}]
["Risque 3",null,"Cause",null,"Prob","Effet",null,null,"Grav","Acceptabilité"]
[null,null,null,null,null,null,null,null,null,null,null,null,{"$f":"IFERROR(VLOOKUP(CONCATENATE(E120,I120),Pro_Grav,2,FALSE),\"\")","v":""}]
[null,null,"Action Préventive",null,null,"Action de secours",null,"Info D",null,{"$f":"IF(M120=\"\",\"\",IF(M120=1,\"Non\",\"Oui\"))","v":""}]
[]
["N° AC :","Aspect Critique"]
[null,null,"Cause",null,"Prob","Effet",null,null,"Grav","Acceptabilité"]
["Risque 1",null,null,null,null,null,null,null,null,null,null,null,{"$f":"IFERROR(VLOOKUP(CONCATENATE(E125,I125),Pro_Grav,2,FALSE),\"\")","v":""}]
[null,null,"Action Préventive",null,null,"Action de secours",null,"Info D",null,{"$f":"IF(M125=\"\",\"\",IF(M125=1,\"Non\",\"Oui\"))","v":""}]
["Risque 2",null,"Cause",null,"Prob","Effet",null,null,"Grav","Acceptabilité"]
[null,null,null,null,null,null,null,null,null,null,null,null,{"$f":"IFERROR(VLOOKUP(CONCATENATE(E128,I128),Pro_Grav,2,FALSE),\"\")","v":""}]
[null,null,"Action Préventive",null,null,"Action de secours",null,"Info D",null,{"$f":"IF(M128=\"\",\"\",IF(M128=1,\"Non\",\"Oui\"))","v":""}]
["Risque 3",null,"Cause",null,"Prob","Effet",null,null,"Grav","Acceptabilité"]
[null,null,null,null,null,null,null,null,null,null,null,null,{"$f":"IFERROR(VLOOKUP(CONCATENATE(E131,I131),Pro_Grav,2,FALSE),\"\")","v":""}]
[null,null,"Action Préventive",null,null,"Action de secours",null,"Info D",null,{"$f":"IF(M131=\"\",\"\",IF(M131=1,\"Non\",\"Oui\"))","v":""}]
[]
["N° AC :","Aspect Critique"]
[null,null,"Cause",null,"Prob","Effet",null,null,"Grav","Acceptabilité"]
["Risque 1",null,null,null,null,null,null,null,null,null,null,null,{"$f":"IFERROR(VLOOKUP(CONCATENATE(E136,I136),Pro_Grav,2,FALSE),\"\")","v":""}]
[null,null,"Action Préventive",null,null,"Action de secours",null,"Info D",null,{"$f":"IF(M136=\"\",\"\",IF(M136=1,\"Non\",\"Oui\"))","v":""}]
["Risque 2",null,"Cause",null,"Prob","Effet",null,null,"Grav","Acceptabilité"]
[null,null,null,null,null,null,null,null,null,null,null,null,{"$f":"IFERROR(VLOOKUP(CONCATENATE(E139,I139),Pro_Grav,2,FALSE),\"\")","v":""}]
[null,null,"Action Préventive",null,null,"Action de secours",null,"Info D",null,{"$f":"IF(M139=\"\",\"\",IF(M139=1,\"Non\",\"Oui\"))","v":""}]
["Risque 3",null,"Cause",null,"Prob","Effet",null,null,"Grav","Acceptabilité"]
[null,null,null,null,null,null,null,null,null,null,null,null,{"$f":"IFERROR(VLOOKUP(CONCATENATE(E142,I142),Pro_Grav,2,FALSE),\"\")","v":""}]
[null,null,"Action Préventive",null,null,"Action de secours",null,"Info D",null,{"$f":"IF(M142=\"\",\"\",IF(M142=1,\"Non\",\"Oui\"))","v":""}]
[]
["N° AC :","Aspect Critique"]
[null,null,"Cause",null,"Prob","Effet",null,null,"Grav","Acceptabilité"]
["Risque 1",null,null,null,null,null,null,null,null,null,null,null,{"$f":"IFERROR(VLOOKUP(CONCATENATE(E147,I147),Pro_Grav,2,FALSE),\"\")","v":""}]
[null,null,"Action Préventive",null,null,"Action de secours",null,"Info D",null,{"$f":"IF(M147=\"\",\"\",IF(M147=1,\"Non\",\"Oui\"))","v":""}]
["Risque 2",null,"Cause",null,"Prob","Effet",null,null,"Grav","Acceptabilité"]
[null,null,null,null,null,null,null,null,null,null,null,null,{"$f":"IFERROR(VLOOKUP(CONCATENATE(E150,I150),Pro_Grav,2,FALSE),\"\")","v":""}]
[null,null,"Action Préventive",null,null,"Action de secours",null,"Info D",null,{"$f":"IF(M150=\"\",\"\",IF(M150=1,\"Non\",\"Oui\"))","v":""}]
["Risque 3",null,"Cause",null,"Prob","Effet",null,null,"Grav","Acceptabilité"]
[null,null,null,null,null,null,null,null,null,null,null,null,{"$f":"IFERROR(VLOOKUP(CONCATENATE(E153,I153),Pro_Grav,2,FALSE),\"\")","v":""}]
[null,null,"Action Préventive",null,null,"Action de secours",null,"Info D",null,{"$f":"IF(M153=\"\",\"\",IF(M153=1,\"Non\",\"Oui\"))","v":""}]
[]
["N° AC :","Aspect Critique"]
[null,null,"Cause",null,"Prob","Effet",null,null,"Grav","Acceptabilité"]
["Risque 1",null,null,null,null,null,null,null,null,null,null,null,{"$f":"IFERROR(VLOOKUP(CONCATENATE(E158,I158),Pro_Grav,2,FALSE),\"\")","v":""}]
[null,null,"Action Préventive",null,null,"Action de secours",null,"Info D",null,{"$f":"IF(M158=\"\",\"\",IF(M158=1,\"Non\",\"Oui\"))","v":""}]
["Risque 2",null,"Cause",null,"Prob","Effet",null,null,"Grav","Acceptabilité"]
[null,null,null,null,null,null,null,null,null,null,null,null,{"$f":"IFERROR(VLOOKUP(CONCATENATE(E161,I161),Pro_Grav,2,FALSE),\"\")","v":""}]
[null,null,"Action Préventive",null,null,"Action de secours",null,"Info D",null,{"$f":"IF(M161=\"\",\"\",IF(M161=1,\"Non\",\"Oui\"))","v":""}]
["Risque 3",null,"Cause",null,"Prob","Effet",null,null,"Grav","Acceptabilité"]
[null,null,null,null,null,null,null,null,null,null,null,null,{"$f":"IFERROR(VLOOKUP(CONCATENATE(E164,I164),Pro_Grav,2,FALSE),\"\")","v":""}]
[null,null,"Action Préventive",null,null,"Action de secours",null,"Info D",null,{"$f":"IF(M164=\"\",\"\",IF(M164=1,\"Non\",\"Oui\"))","v":""}]
[]
["N° AC :","Aspect Critique"]
[null,null,"Cause",null,"Prob","Effet",null,null,"Grav","Acceptabilité"]
["Risque 1",null,null,null,null,null,null,null,null,null,null,null,{"$f":"IFERROR(VLOOKUP(CONCATENATE(E169,I169),Pro_Grav,2,FALSE),\"\")","v":""}]
[null,null,"Action Préventive",null,null,"Action de secours",null,"Info D",null,{"$f":"IF(M169=\"\",\"\",IF(M169=1,\"Non\",\"Oui\"))","v":""}]
["Risque 2",null,"Cause",null,"Prob","Effet",null,null,"Grav","Acceptabilité"]
[null,null,null,null,null,null,null,null,null,null,null,null,{"$f":"IFERROR(VLOOKUP(CONCATENATE(E172,I172),Pro_Grav,2,FALSE),\"\")","v":""}]
[null,null,"Action Préventive",null,null,"Action de secours",null,"Info D",null,{"$f":"IF(M172=\"\",\"\",IF(M172=1,\"Non\",\"Oui\"))","v":""}]
["Risque 3",null,"Cause",null,"Prob","Effet",null,null,"Grav","Acceptabilité"]
[null,null,null,null,null,null,null,null,null,null,null,null,{"$f":"IFERROR(VLOOKUP(CONCATENATE(E175,I175),Pro_Grav,2,FALSE),\"\")","v":""}]
[null,null,"Action Préventive",null,null,"Action de secours",null,"Info D",null,{"$f":"IF(M175=\"\",\"\",IF(M175=1,\"Non\",\"Oui\"))","v":""}]
[]
["N° AC :","Aspect Critique"]
[null,null,"Cause",null,"Prob","Effet",null,null,"Grav","Acceptabilité"]
["Risque 1",null,null,null,null,null,null,null,null,null,null,null,{"$f":"IFERROR(VLOOKUP(CONCATENATE(E180,I180),Pro_Grav,2,FALSE),\"\")","v":""}]
[null,null,"Action Préventive",null,null,"Action de secours",null,"Info D",null,{"$f":"IF(M180=\"\",\"\",IF(M180=1,\"Non\",\"Oui\"))","v":""}]
["Risque 2",null,"Cause",null,"Prob","Effet",null,null,"Grav","Acceptabilité"]
[null,null,null,null,null,null,null,null,null,null,null,null,{"$f":"IFERROR(VLOOKUP(CONCATENATE(E183,I183),Pro_Grav,2,FALSE),\"\")","v":""}]
[null,null,"Action Préventive",null,null,"Action de secours",null,"Info D",null,{"$f":"IF(M183=\"\",\"\",IF(M183=1,\"Non\",\"Oui\"))","v":""}]
["Risque 3",null,"Cause",null,"Prob","Effet",null,null,"Grav","Acceptabilité"]
[null,null,null,null,null,null,null,null,null,null,null,null,{"$f":"IFERROR(VLOOKUP(CONCATENATE(E186,I186),Pro_Grav,2,FALSE),\"\")","v":""}]
[null,null,"Action Préventive",null,null,"Action de secours",null,"Info D",null,{"$f":"IF(M186=\"\",\"\",IF(M186=1,\"Non\",\"Oui\"))","v":""}]
[]
["N° AC :","Aspect Critique"]
[null,null,"Cause",null,"Prob","Effet",null,null,"Grav","Acceptabilité"]
["Risque 1",null,null,null,null,null,null,null,null,null,null,null,{"$f":"IFERROR(VLOOKUP(CONCATENATE(E191,I191),Pro_Grav,2,FALSE),\"\")","v":""}]
[null,null,"Action Préventive",null,null,"Action de secours",null,"Info D",null,{"$f":"IF(M191=\"\",\"\",IF(M191=1,\"Non\",\"Oui\"))","v":""}]
["Risque 2",null,"Cause",null,"Prob","Effet",null,null,"Grav","Acceptabilité"]
[null,null,null,null,null,null,null,null,null,null,null,null,{"$f":"IFERROR(VLOOKUP(CONCATENATE(E194,I194),Pro_Grav,2,FALSE),\"\")","v":""}]
[null,null,"Action Préventive",null,null,"Action de secours",null,"Info D",null,{"$f":"IF(M194=\"\",\"\",IF(M194=1,\"Non\",\"Oui\"))","v":""}]
["Risque 3",null,"Cause",null,"Prob","Effet",null,null,"Grav","Acceptabilité"]
[null,null,null,null,null,null,null,null,null,null,null,null,{"$f":"IFERROR(VLOOKUP(CONCATENATE(E197,I197),Pro_Grav,2,FALSE),\"\")","v":""}]
[null,null,"Action Préventive",null,null,"Action de secours",null,"Info D",null,{"$f":"IF(M197=\"\",\"\",IF(M197=1,\"Non\",\"Oui\"))","v":""}]
[]
["N° AC :","Aspect Critique"]
[null,null,"Cause",null,"Prob","Effet",null,null,"Grav","Acceptabilité"]
["Risque 1",null,null,null,null,null,null,null,null,null,null,null,{"$f":"IFERROR(VLOOKUP(CONCATENATE(E202,I202),Pro_Grav,2,FALSE),\"\")","v":""}]
[null,null,"Action Préventive",null,null,"Action de secours",null,"Info D",null,{"$f":"IF(M202=\"\",\"\",IF(M202=1,\"Non\",\"Oui\"))","v":""}]
["Risque 2",null,"Cause",null,"Prob","Effet",null,null,"Grav","Acceptabilité"]
[null,null,null,null,null,null,null,null,null,null,null,null,{"$f":"IFERROR(VLOOKUP(CONCATENATE(E205,I205),Pro_Grav,2,FALSE),\"\")","v":""}]
[null,null,"Action Préventive",null,null,"Action de secours",null,"Info D",null,{"$f":"IF(M205=\"\",\"\",IF(M205=1,\"Non\",\"Oui\"))","v":""}]
["Risque 3",null,"Cause",null,"Prob","Effet",null,null,"Grav","Acceptabilité"]
[null,null,null,null,null,null,null,null,null,null,null,null,{"$f":"IFERROR(VLOOKUP(CONCATENATE(E208,I208),Pro_Grav,2,FALSE),\"\")","v":""}]
[null,null,"Action Préventive",null,null,"Action de secours",null,"Info D",null,{"$f":"IF(M208=\"\",\"\",IF(M208=1,\"Non\",\"Oui\"))","v":""}]
[]
["N° AC :","Aspect Critique"]
[null,null,"Cause",null,"Prob","Effet",null,null,"Grav","Acceptabilité"]
["Risque 1",null,null,null,null,null,null,null,null,null,null,null,{"$f":"IFERROR(VLOOKUP(CONCATENATE(E213,I213),Pro_Grav,2,FALSE),\"\")","v":""}]
[null,null,"Action Préventive",null,null,"Action de secours",null,"Info D",null,{"$f":"IF(M213=\"\",\"\",IF(M213=1,\"Non\",\"Oui\"))","v":""}]
["Risque 2",null,"Cause",null,"Prob","Effet",null,null,"Grav","Acceptabilité"]
[null,null,null,null,null,null,null,null,null,null,null,null,{"$f":"IFERROR(VLOOKUP(CONCATENATE(E216,I216),Pro_Grav,2,FALSE),\"\")","v":""}]
[null,null,"Action Préventive",null,null,"Action de secours",null,"Info D",null,{"$f":"IF(M216=\"\",\"\",IF(M216=1,\"Non\",\"Oui\"))","v":""}]
["Risque 3",null,"Cause",null,"Prob","Effet",null,null,"Grav","Acceptabilité"]
[null,null,null,null,null,null,null,null,null,null,null,null,{"$f":"IFERROR(VLOOKUP(CONCATENATE(E219,I219),Pro_Grav,2,FALSE),\"\")","v":""}]
[null,null,"Action Préventive",null,null,"Action de secours",null,"Info D",null,{"$f":"IF(M219=\"\",\"\",IF(M219=1,\"Non\",\"Oui\"))","v":""}]
[]
["N° AC :","Aspect Critique"]
[null,null,"Cause",null,"Prob","Effet",null,null,"Grav","Acceptabilité"]
["Risque 1",null,null,null,null,null,null,null,null,null,null,null,{"$f":"IFERROR(VLOOKUP(CONCATENATE(E224,I224),Pro_Grav,2,FALSE),\"\")","v":""}]
[null,null,"Action Préventive",null,null,"Action de secours",null,"Info D",null,{"$f":"IF(M224=\"\",\"\",IF(M224=1,\"Non\",\"Oui\"))","v":""}]
["Risque 2",null,"Cause",null,"Prob","Effet",null,null,"Grav","Acceptabilité"]
[null,null,null,null,null,null,null,null,null,null,null,null,{"$f":"IFERROR(VLOOKUP(CONCATENATE(E227,I227),Pro_Grav,2,FALSE),\"\")","v":""}]
[null,null,"Action Préventive",null,null,"Action de secours",null,"Info D",null,{"$f":"IF(M227=\"\",\"\",IF(M227=1,\"Non\",\"Oui\"))","v":""}]
["Risque 3",null,"Cause",null,"Prob","Effet",null,null,"Grav","Acceptabilité"]
[null,null,null,null,null,null,null,null,null,null,null,null,{"$f":"IFERROR(VLOOKUP(CONCATENATE(E230,I230),Pro_Grav,2,FALSE),\"\")","v":""}]
[null,null,"Action Préventive",null,null,"Action de secours",null,"Info D",null,{"$f":"IF(M230=\"\",\"\",IF(M230=1,\"Non\",\"Oui\"))","v":""}]
[]
["N° AC :","Aspect Critique"]
[null,null,"Cause",null,"Prob","Effet",null,null,"Grav","Acceptabilité"]
["Risque 1",null,null,null,null,null,null,null,null,null,null,null,{"$f":"IFERROR(VLOOKUP(CONCATENATE(E235,I235),Pro_Grav,2,FALSE),\"\")","v":""}]
[null,null,"Action Préventive",null,null,"Action de secours",null,"Info D",null,{"$f":"IF(M235=\"\",\"\",IF(M235=1,\"Non\",\"Oui\"))","v":""}]
["Risque 2",null,"Cause",null,"Prob","Effet",null,null,"Grav","Acceptabilité"]
[null,null,null,null,null,null,null,null,null,null,null,null,{"$f":"IFERROR(VLOOKUP(CONCATENATE(E238,I238),Pro_Grav,2,FALSE),\"\")","v":""}]
[null,null,"Action Préventive",null,null,"Action de secours",null,"Info D",null,{"$f":"IF(M238=\"\",\"\",IF(M238=1,\"Non\",\"Oui\"))","v":""}]
["Risque 3",null,"Cause",null,"Prob","Effet",null,null,"Grav","Acceptabilité"]
[null,null,null,null,null,null,null,null,null,null,null,null,{"$f":"IFERROR(VLOOKUP(CONCATENATE(E241,I241),Pro_Grav,2,FALSE),\"\")","v":""}]
[null,null,"Action Préventive",null,null,"Action de secours",null,"Info D",null,{"$f":"IF(M241=\"\",\"\",IF(M241=1,\"Non\",\"Oui\"))","v":""}]
[]
["N° AC :","Aspect Critique"]
[null,null,"Cause",null,"Prob","Effet",null,null,"Grav","Acceptabilité"]
["Risque 1",null,null,null,null,null,null,null,null,null,null,null,{"$f":"IFERROR(VLOOKUP(CONCATENATE(E246,I246),Pro_Grav,2,FALSE),\"\")","v":""}]
[null,null,"Action Préventive",null,null,"Action de secours",null,"Info D",null,{"$f":"IF(M246=\"\",\"\",IF(M246=1,\"Non\",\"Oui\"))","v":""}]
["Risque 2",null,"Cause",null,"Prob","Effet",null,null,"Grav","Acceptabilité"]
[null,null,null,null,null,null,null,null,null,null,null,null,{"$f":"IFERROR(VLOOKUP(CONCATENATE(E249,I249),Pro_Grav,2,FALSE),\"\")","v":""}]
[null,null,"Action Préventive",null,null,"Action de secours",null,"Info D",null,{"$f":"IF(M249=\"\",\"\",IF(M249=1,\"Non\",\"Oui\"))","v":""}]
["Risque 3",null,"Cause",null,"Prob","Effet",null,null,"Grav","Acceptabilité"]
[null,null,null,null,null,null,null,null,null,null,null,null,{"$f":"IFERROR(VLOOKUP(CONCATENATE(E252,I252),Pro_Grav,2,FALSE),\"\")","v":""}]
[null,null,"Action Préventive",null,null,"Action de secours",null,"Info D",null,{"$f":"IF(M252=\"\",\"\",IF(M252=1,\"Non\",\"Oui\"))","v":""}]
[]
["N° AC :","Aspect Critique"]
[null,null,"Cause",null,"Prob","Effet",null,null,"Grav","Acceptabilité"]
["Risque 1",null,null,null,null,null,null,null,null,null,null,null,{"$f":"IFERROR(VLOOKUP(CONCATENATE(E257,I257),Pro_Grav,2,FALSE),\"\")","v":""}]
[null,null,"Action Préventive",null,null,"Action de secours",null,"Info D",null,{"$f":"IF(M257=\"\",\"\",IF(M257=1,\"Non\",\"Oui\"))","v":""}]
["Risque 2",null,"Cause",null,"Prob","Effet",null,null,"Grav","Acceptabilité"]
[null,null,null,null,null,null,null,null,null,null,null,null,{"$f":"IFERROR(VLOOKUP(CONCATENATE(E260,I260),Pro_Grav,2,FALSE),\"\")","v":""}]
[null,null,"Action Préventive",null,null,"Action de secours",null,"Info D",null,{"$f":"IF(M260=\"\",\"\",IF(M260=1,\"Non\",\"Oui\"))","v":""}]
["Risque 3",null,"Cause",null,"Prob","Effet",null,null,"Grav","Acceptabilité"]
[null,null,null,null,null,null,null,null,null,null,null,null,{"$f":"IFERROR(VLOOKUP(CONCATENATE(E263,I263),Pro_Grav,2,FALSE),\"\")","v":""}]
[null,null,"Action Préventive",null,null,"Action de secours",null,"Info D",null,{"$f":"IF(M263=\"\",\"\",IF(M263=1,\"Non\",\"Oui\"))","v":""}]
[]
["N° AC :","Aspect Critique"]
[null,null,"Cause",null,"Prob","Effet",null,null,"Grav","Acceptabilité"]
["Risque 1",null,null,null,null,null,null,null,null,null,null,null,{"$f":"IFERROR(VLOOKUP(CONCATENATE(E268,I268),Pro_Grav,2,FALSE),\"\")","v":""}]
[null,null,"Action Préventive",null,null,"Action de secours",null,"Info D",null,{"$f":"IF(M268=\"\",\"\",IF(M268=1,\"Non\",\"Oui\"))","v":""}]
["Risque 2",null,"Cause",null,"Prob","Effet",null,null,"Grav","Acceptabilité"]
[null,null,null,null,null,null,null,null,null,null,null,null,{"$f":"IFERROR(VLOOKUP(CONCATENATE(E271,I271),Pro_Grav,2,FALSE),\"\")","v":""}]
[null,null,"Action Préventive",null,null,"Action de secours",null,"Info D",null,{"$f":"IF(M271=\"\",\"\",IF(M271=1,\"Non\",\"Oui\"))","v":""}]
["Risque 3",null,"Cause",null,"Prob","Effet",null,null,"Grav","Acceptabilité"]
[null,null,null,null,null,null,null,null,null,null,null,null,{"$f":"IFERROR(VLOOKUP(CONCATENATE(E274,I274),Pro_Grav,2,FALSE),\"\")","v":""}]
[null,null,"Action Préventive",null,null,"Action de secours",null,"Info D",null,{"$f":"IF(M274=\"\",\"\",IF(M274=1,\"Non\",\"Oui\"))","v":""}]
[]
["N° AC :","Aspect Critique"]
[null,null,"Cause",null,"Prob","Effet",null,null,"Grav","Acceptabilité"]
["Risque 1",null,null,null,null,null,null,null,null,null,null,null,{"$f":"IFERROR(VLOOKUP(CONCATENATE(E279,I279),Pro_Grav,2,FALSE),\"\")","v":""}]
[null,null,"Action Préventive",null,null,"Action de secours",null,"Info D",null,{"$f":"IF(M279=\"\",\"\",IF(M279=1,\"Non\",\"Oui\"))","v":""}]
["Risque 2",null,"Cause",null,"Prob","Effet",null,null,"Grav","Acceptabilité"]
[null,null,null,null,null,null,null,null,null,null,null,null,{"$f":"IFERROR(VLOOKUP(CONCATENATE(E282,I282),Pro_Grav,2,FALSE),\"\")","v":""}]
[null,null,"Action Préventive",null,null,"Action de secours",null,"Info D",null,{"$f":"IF(M282=\"\",\"\",IF(M282=1,\"Non\",\"Oui\"))","v":""}]
["Risque 3",null,"Cause",null,"Prob","Effet",null,null,"Grav","Acceptabilité"]
[null,null,null,null,null,null,null,null,null,null,null,null,{"$f":"IFERROR(VLOOKUP(CONCATENATE(E285,I285),Pro_Grav,2,FALSE),\"\")","v":""}]
[null,null,"Action Préventive",null,null,"Action de secours",null,"Info D",null,{"$f":"IF(M285=\"\",\"\",IF(M285=1,\"Non\",\"Oui\"))","v":""}]
[]
["N° AC :","Aspect Critique"]
[null,null,"Cause",null,"Prob","Effet",null,null,"Grav","Acceptabilité"]
["Risque 1",null,null,null,null,null,null,null,null,null,null,null,{"$f":"IFERROR(VLOOKUP(CONCATENATE(E290,I290),Pro_Grav,2,FALSE),\"\")","v":""}]
[null,null,"Action Préventive",null,null,"Action de secours",null,"Info D",null,{"$f":"IF(M290=\"\",\"\",IF(M290=1,\"Non\",\"Oui\"))","v":""}]
["Risque 2",null,"Cause",null,"Prob","Effet",null,null,"Grav","Acceptabilité"]
[null,null,null,null,null,null,null,null,null,null,null,null,{"$f":"IFERROR(VLOOKUP(CONCATENATE(E293,I293),Pro_Grav,2,FALSE),\"\")","v":""}]
[null,null,"Action Préventive",null,null,"Action de secours",null,"Info D",null,{"$f":"IF(M293=\"\",\"\",IF(M293=1,\"Non\",\"Oui\"))","v":""}]
["Risque 3",null,"Cause",null,"Prob","Effet",null,null,"Grav","Acceptabilité"]
[null,null,null,null,null,null,null,null,null,null,null,null,{"$f":"IFERROR(VLOOKUP(CONCATENATE(E296,I296),Pro_Grav,2,FALSE),\"\")","v":""}]
[null,null,"Action Préventive",null,null,"Action de secours",null,"Info D",null,{"$f":"IF(M296=\"\",\"\",IF(M296=1,\"Non\",\"Oui\"))","v":""}]
[]
["N° AC :","Aspect Critique"]
[null,null,"Cause",null,"Prob","Effet",null,null,"Grav","Acceptabilité"]
["Risque 1",null,null,null,null,null,null,null,null,null,null,null,{"$f":"IFERROR(VLOOKUP(CONCATENATE(E301,I301),Pro_Grav,2,FALSE),\"\")","v":""}]
[null,null,"Action Préventive",null,null,"Action de secours",null,"Info D",null,{"$f":"IF(M301=\"\",\"\",IF(M301=1,\"Non\",\"Oui\"))","v":""}]
["Risque 2",null,"Cause",null,"Prob","Effet",null,null,"Grav","Acceptabilité"]
[null,null,null,null,null,null,null,null,null,null,null,null,{"$f":"IFERROR(VLOOKUP(CONCATENATE(E304,I304),Pro_Grav,2,FALSE),\"\")","v":""}]
[null,null,"Action Préventive",null,null,"Action de secours",null,"Info D",null,{"$f":"IF(M304=\"\",\"\",IF(M304=1,\"Non\",\"Oui\"))","v":""}]
["Risque 3",null,"Cause",null,"Prob","Effet",null,null,"Grav","Acceptabilité"]
[null,null,null,null,null,null,null,null,null,null,null,null,{"$f":"IFERROR(VLOOKUP(CONCATENATE(E307,I307),Pro_Grav,2,FALSE),\"\")","v":""}]
[null,null,"Action Préventive",null,null,"Action de secours",null,"Info D",null,{"$f":"IF(M307=\"\",\"\",IF(M307=1,\"Non\",\"Oui\"))","v":""}]
[]
["N° AC :","Aspect Critique"]
[null,null,"Cause",null,"Prob","Effet",null,null,"Grav","Acceptabilité"]
["Risque 1",null,null,null,null,null,null,null,null,null,null,null,{"$f":"IFERROR(VLOOKUP(CONCATENATE(E312,I312),Pro_Grav,2,FALSE),\"\")","v":""}]
[null,null,"Action Préventive",null,null,"Action de secours",null,"Info D",null,{"$f":"IF(M312=\"\",\"\",IF(M312=1,\"Non\",\"Oui\"))","v":""}]
["Risque 2",null,"Cause",null,"Prob","Effet",null,null,"Grav","Acceptabilité"]
[null,null,null,null,null,null,null,null,null,null,null,null,{"$f":"IFERROR(VLOOKUP(CONCATENATE(E315,I315),Pro_Grav,2,FALSE),\"\")","v":""}]
[null,null,"Action Préventive",null,null,"Action de secours",null,"Info D",null,{"$f":"IF(M315=\"\",\"\",IF(M315=1,\"Non\",\"Oui\"))","v":""}]
["Risque 3",null,"Cause",null,"Prob","Effet",null,null,"Grav","Acceptabilité"]
[null,null,null,null,null,null,null,null,null,null,null,null,{"$f":"IFERROR(VLOOKUP(CONCATENATE(E318,I318),Pro_Grav,2,FALSE),\"\")","v":""}]
[null,null,"Action Préventive",null,null,"Action de secours",null,"Info D",null,{"$f":"IF(M318=\"\",\"\",IF(M318=1,\"Non\",\"Oui\"))","v":""}]
[]
["N° AC :","Aspect Critique"]
[null,null,"Cause",null,"Prob","Effet",null,null,"Grav","Acceptabilité"]
["Risque 1",null,null,null,null,null,null,null,null,null,null,null,{"$f":"IFERROR(VLOOKUP(CONCATENATE(E323,I323),Pro_Grav,2,FALSE),\"\")","v":""}]
[null,null,"Action Préventive",null,null,"Action de secours",null,"Info D",null,{"$f":"IF(M323=\"\",\"\",IF(M323=1,\"Non\",\"Oui\"))","v":""}]
["Risque 2",null,"Cause",null,"Prob","Effet",null,null,"Grav","Acceptabilité"]
[null,null,null,null,null,null,null,null,null,null,null,null,{"$f":"IFERROR(VLOOKUP(CONCATENATE(E326,I326),Pro_Grav,2,FALSE),\"\")","v":""}]
[null,null,"Action Préventive",null,null,"Action de secours",null,"Info D",null,{"$f":"IF(M326=\"\",\"\",IF(M326=1,\"Non\",\"Oui\"))","v":""}]
["Risque 3",null,"Cause",null,"Prob","Effet",null,null,"Grav","Acceptabilité"]
[null,null,null,null,null,null,null,null,null,null,null,null,{"$f":"IFERROR(VLOOKUP(CONCATENATE(E329,I329),Pro_Grav,2,FALSE),\"\")","v":""}]
[null,null,"Action Préventive",null,null,"Action de secours",null,"Info D",null,{"$f":"IF(M329=\"\",\"\",IF(M329=1,\"Non\",\"Oui\"))","v":""}]
[]
["N° AC :","Aspect Critique"]
[null,null,"Cause",null,"Prob","Effet",null,null,"Grav","Acceptabilité"]
["Risque 1",null,null,null,null,null,null,null,null,null,null,null,{"$f":"IFERROR(VLOOKUP(CONCATENATE(E334,I334),Pro_Grav,2,FALSE),\"\")","v":""}]
[null,null,"Action Préventive",null,null,"Action de secours",null,"Info D",null,{"$f":"IF(M334=\"\",\"\",IF(M334=1,\"Non\",\"Oui\"))","v":""}]
["Risque 2",null,"Cause",null,"Prob","Effet",null,null,"Grav","Acceptabilité"]
[null,null,null,null,null,null,null,null,null,null,null,null,{"$f":"IFERROR(VLOOKUP(CONCATENATE(E337,I337),Pro_Grav,2,FALSE),\"\")","v":""}]
[null,null,"Action Préventive",null,null,"Action de secours",null,"Info D",null,{"$f":"IF(M337=\"\",\"\",IF(M337=1,\"Non\",\"Oui\"))","v":""}]
["Risque 3",null,"Cause",null,"Prob","Effet",null,null,"Grav","Acceptabilité"]
[null,null,null,null,null,null,null,null,null,null,null,null,{"$f":"IFERROR(VLOOKUP(CONCATENATE(E340,I340),Pro_Grav,2,FALSE),\"\")","v":""}]
[null,null,"Action Préventive",null,null,"Action de secours",null,"Info D",null,{"$f":"IF(M340=\"\",\"\",IF(M340=1,\"Non\",\"Oui\"))","v":""}]
[]
["N° AC :","Aspect Critique"]
[null,null,"Cause",null,"Prob","Effet",null,null,"Grav","Acceptabilité"]
["Risque 1",null,null,null,null,null,null,null,null,null,null,null,{"$f":"IFERROR(VLOOKUP(CONCATENATE(E345,I345),Pro_Grav,2,FALSE),\"\")","v":""}]
[null,null,"Action Préventive",null,null,"Action de secours",null,"Info D",null,{"$f":"IF(M345=\"\",\"\",IF(M345=1,\"Non\",\"Oui\"))","v":""}]
["Risque 2",null,"Cause",null,"Prob","Effet",null,null,"Grav","Acceptabilité"]
[null,null,null,null,null,null,null,null,null,null,null,null,{"$f":"IFERROR(VLOOKUP(CONCATENATE(E348,I348),Pro_Grav,2,FALSE),\"\")","v":""}]
[null,null,"Action Préventive",null,null,"Action de secours",null,"Info D",null,{"$f":"IF(M348=\"\",\"\",IF(M348=1,\"Non\",\"Oui\"))","v":""}]
["Risque 3",null,"Cause",null,"Prob","Effet",null,null,"Grav","Acceptabilité"]
[null,null,null,null,null,null,null,null,null,null,null,null,{"$f":"IFERROR(VLOOKUP(CONCATENATE(E351,I351),Pro_Grav,2,FALSE),\"\")","v":""}]
[null,null,"Action Préventive",null,null,"Action de secours",null,"Info D",null,{"$f":"IF(M351=\"\",\"\",IF(M351=1,\"Non\",\"Oui\"))","v":""}]
[]
["N° AC :","Aspect Critique"]
[null,null,"Cause",null,"Prob","Effet",null,null,"Grav","Acceptabilité"]
["Risque 1",null,null,null,null,null,null,null,null,null,null,null,{"$f":"IFERROR(VLOOKUP(CONCATENATE(E356,I356),Pro_Grav,2,FALSE),\"\")","v":""}]
[null,null,"Action Préventive",null,null,"Action de secours",null,"Info D",null,{"$f":"IF(M356=\"\",\"\",IF(M356=1,\"Non\",\"Oui\"))","v":""}]
["Risque 2",null,"Cause",null,"Prob","Effet",null,null,"Grav","Acceptabilité"]
[null,null,null,null,null,null,null,null,null,null,null,null,{"$f":"IFERROR(VLOOKUP(CONCATENATE(E359,I359),Pro_Grav,2,FALSE),\"\")","v":""}]
[null,null,"Action Préventive",null,null,"Action de secours",null,"Info D",null,{"$f":"IF(M359=\"\",\"\",IF(M359=1,\"Non\",\"Oui\"))","v":""}]
["Risque 3",null,"Cause",null,"Prob","Effet",null,null,"Grav","Acceptabilité"]
[null,null,null,null,null,null,null,null,null,null,null,null,{"$f":"IFERROR(VLOOKUP(CONCATENATE(E362,I362),Pro_Grav,2,FALSE),\"\")","v":""}]
[null,null,"Action Préventive",null,null,"Action de secours",null,"Info D",null,{"$f":"IF(M362=\"\",\"\",IF(M362=1,\"Non\",\"Oui\"))","v":""}]
[]
["N° AC :","Aspect Critique"]
[null,null,"Cause",null,"Prob","Effet",null,null,"Grav","Acceptabilité"]
["Risque 1",null,null,null,null,null,null,null,null,null,null,null,{"$f":"IFERROR(VLOOKUP(CONCATENATE(E367,I367),Pro_Grav,2,FALSE),\"\")","v":""}]
[null,null,"Action Préventive",null,null,"Action de secours",null,"Info D",null,{"$f":"IF(M367=\"\",\"\",IF(M367=1,\"Non\",\"Oui\"))","v":""}]
["Risque 2",null,"Cause",null,"Prob","Effet",null,null,"Grav","Acceptabilité"]
[null,null,null,null,null,null,null,null,null,null,null,null,{"$f":"IFERROR(VLOOKUP(CONCATENATE(E370,I370),Pro_Grav,2,FALSE),\"\")","v":""}]
[null,null,"Action Préventive",null,null,"Action de secours",null,"Info D",null,{"$f":"IF(M370=\"\",\"\",IF(M370=1,\"Non\",\"Oui\"))","v":""}]
["Risque 3",null,"Cause",null,"Prob","Effet",null,null,"Grav","Acceptabilité"]
[null,null,null,null,null,null,null,null,null,null,null,null,{"$f":"IFERROR(VLOOKUP(CONCATENATE(E373,I373),Pro_Grav,2,FALSE),\"\")","v":""}]
[null,null,"Action Préventive",null,null,"Action de secours",null,"Info D",null,{"$f":"IF(M373=\"\",\"\",IF(M373=1,\"Non\",\"Oui\"))","v":""}]
[]
["N° AC :","Aspect Critique"]
[null,null,"Cause",null,"Prob","Effet",null,null,"Grav","Acceptabilité"]
["Risque 1",null,null,null,null,null,null,null,null,null,null,null,{"$f":"IFERROR(VLOOKUP(CONCATENATE(E378,I378),Pro_Grav,2,FALSE),\"\")","v":""}]
[null,null,"Action Préventive",null,null,"Action de secours",null,"Info D",null,{"$f":"IF(M378=\"\",\"\",IF(M378=1,\"Non\",\"Oui\"))","v":""}]
["Risque 2",null,"Cause",null,"Prob","Effet",null,null,"Grav","Acceptabilité"]
[null,null,null,null,null,null,null,null,null,null,null,null,{"$f":"IFERROR(VLOOKUP(CONCATENATE(E381,I381),Pro_Grav,2,FALSE),\"\")","v":""}]
[null,null,"Action Préventive",null,null,"Action de secours",null,"Info D",null,{"$f":"IF(M381=\"\",\"\",IF(M381=1,\"Non\",\"Oui\"))","v":""}]
["Risque 3",null,"Cause",null,"Prob","Effet",null,null,"Grav","Acceptabilité"]
[null,null,null,null,null,null,null,null,null,null,null,null,{"$f":"IFERROR(VLOOKUP(CONCATENATE(E384,I384),Pro_Grav,2,FALSE),\"\")","v":""}]
[null,null,"Action Préventive",null,null,"Action de secours",null,"Info D",null,{"$f":"IF(M384=\"\",\"\",IF(M384=1,\"Non\",\"Oui\"))","v":""}]
[]
["N° AC :","Aspect Critique"]
[null,null,"Cause",null,"Prob","Effet",null,null,"Grav","Acceptabilité"]
["Risque 1",null,null,null,null,null,null,null,null,null,null,null,{"$f":"IFERROR(VLOOKUP(CONCATENATE(E389,I389),Pro_Grav,2,FALSE),\"\")","v":""}]
[null,null,"Action Préventive",null,null,"Action de secours",null,"Info D",null,{"$f":"IF(M389=\"\",\"\",IF(M389=1,\"Non\",\"Oui\"))","v":""}]
["Risque 2",null,"Cause",null,"Prob","Effet",null,null,"Grav","Acceptabilité"]
[null,null,null,null,null,null,null,null,null,null,null,null,{"$f":"IFERROR(VLOOKUP(CONCATENATE(E392,I392),Pro_Grav,2,FALSE),\"\")","v":""}]
[null,null,"Action Préventive",null,null,"Action de secours",null,"Info D",null,{"$f":"IF(M392=\"\",\"\",IF(M392=1,\"Non\",\"Oui\"))","v":""}]
["Risque 3",null,"Cause",null,"Prob","Effet",null,null,"Grav","Acceptabilité"]
[null,null,null,null,null,null,null,null,null,null,null,null,{"$f":"IFERROR(VLOOKUP(CONCATENATE(E395,I395),Pro_Grav,2,FALSE),\"\")","v":""}]
[null,null,"Action Préventive",null,null,"Action de secours",null,"Info D",null,{"$f":"IF(M395=\"\",\"\",IF(M395=1,\"Non\",\"Oui\"))","v":""}]
[]
["N° AC :","Aspect Critique"]
[null,null,"Cause",null,"Prob","Effet",null,null,"Grav","Acceptabilité"]
["Risque 1",null,null,null,null,null,null,null,null,null,null,null,{"$f":"IFERROR(VLOOKUP(CONCATENATE(E400,I400),Pro_Grav,2,FALSE),\"\")","v":""}]
[null,null,"Action Préventive",null,null,"Action de secours",null,"Info D",null,{"$f":"IF(M400=\"\",\"\",IF(M400=1,\"Non\",\"Oui\"))","v":""}]
["Risque 2",null,"Cause",null,"Prob","Effet",null,null,"Grav","Acceptabilité"]
[null,null,null,null,null,null,null,null,null,null,null,null,{"$f":"IFERROR(VLOOKUP(CONCATENATE(E403,I403),Pro_Grav,2,FALSE),\"\")","v":""}]
[null,null,"Action Préventive",null,null,"Action de secours",null,"Info D",null,{"$f":"IF(M403=\"\",\"\",IF(M403=1,\"Non\",\"Oui\"))","v":""}]
["Risque 3",null,"Cause",null,"Prob","Effet",null,null,"Grav","Acceptabilité"]
[null,null,null,null,null,null,null,null,null,null,null,null,{"$f":"IFERROR(VLOOKUP(CONCATENATE(E406,I406),Pro_Grav,2,FALSE),\"\")","v":""}]
[null,null,"Action Préventive",null,null,"Action de secours",null,"Info D",null,{"$f":"IF(M406=\"\",\"\",IF(M406=1,\"Non\",\"Oui\"))","v":""}]
[]
["N° AC :","Aspect Critique"]
[null,null,"Cause",null,"Prob","Effet",null,null,"Grav","Acceptabilité"]
["Risque 1",null,null,null,null,null,null,null,null,null,null,null,{"$f":"IFERROR(VLOOKUP(CONCATENATE(E411,I411),Pro_Grav,2,FALSE),\"\")","v":""}]
[null,null,"Action Préventive",null,null,"Action de secours",null,"Info D",null,{"$f":"IF(M411=\"\",\"\",IF(M411=1,\"Non\",\"Oui\"))","v":""}]
["Risque 2",null,"Cause",null,"Prob","Effet",null,null,"Grav","Acceptabilité"]
[null,null,null,null,null,null,null,null,null,null,null,null,{"$f":"IFERROR(VLOOKUP(CONCATENATE(E414,I414),Pro_Grav,2,FALSE),\"\")","v":""}]
[null,null,"Action Préventive",null,null,"Action de secours",null,"Info D",null,{"$f":"IF(M414=\"\",\"\",IF(M414=1,\"Non\",\"Oui\"))","v":""}]
["Risque 3",null,"Cause",null,"Prob","Effet",null,null,"Grav","Acceptabilité"]
[null,null,null,null,null,null,null,null,null,null,null,null,{"$f":"IFERROR(VLOOKUP(CONCATENATE(E417,I417),Pro_Grav,2,FALSE),\"\")","v":""}]
[null,null,"Action Préventive",null,null,"Action de secours",null,"Info D",null,{"$f":"IF(M417=\"\",\"\",IF(M417=1,\"Non\",\"Oui\"))","v":""}]
[]
["N° AC :","Aspect Critique"]
[null,null,"Cause",null,"Prob","Effet",null,null,"Grav","Acceptabilité"]
["Risque 1",null,null,null,null,null,null,null,null,null,null,null,{"$f":"IFERROR(VLOOKUP(CONCATENATE(E422,I422),Pro_Grav,2,FALSE),\"\")","v":""}]
[null,null,"Action Préventive",null,null,"Action de secours",null,"Info D",null,{"$f":"IF(M422=\"\",\"\",IF(M422=1,\"Non\",\"Oui\"))","v":""}]
["Risque 2",null,"Cause",null,"Prob","Effet",null,null,"Grav","Acceptabilité"]
[null,null,null,null,null,null,null,null,null,null,null,null,{"$f":"IFERROR(VLOOKUP(CONCATENATE(E425,I425),Pro_Grav,2,FALSE),\"\")","v":""}]
[null,null,"Action Préventive",null,null,"Action de secours",null,"Info D",null,{"$f":"IF(M425=\"\",\"\",IF(M425=1,\"Non\",\"Oui\"))","v":""}]
["Risque 3",null,"Cause",null,"Prob","Effet",null,null,"Grav","Acceptabilité"]
[null,null,null,null,null,null,null,null,null,null,null,null,{"$f":"IFERROR(VLOOKUP(CONCATENATE(E428,I428),Pro_Grav,2,FALSE),\"\")","v":""}]
[null,null,"Action Préventive",null,null,"Action de secours",null,"Info D",null,{"$f":"IF(M428=\"\",\"\",IF(M428=1,\"Non\",\"Oui\"))","v":""}]
[]
["N° AC :","Aspect Critique"]
[null,null,"Cause",null,"Prob","Effet",null,null,"Grav","Acceptabilité"]
["Risque 1",null,null,null,null,null,null,null,null,null,null,null,{"$f":"IFERROR(VLOOKUP(CONCATENATE(E433,I433),Pro_Grav,2,FALSE),\"\")","v":""}]
[null,null,"Action Préventive",null,null,"Action de secours",null,"Info D",null,{"$f":"IF(M433=\"\",\"\",IF(M433=1,\"Non\",\"Oui\"))","v":""}]
["Risque 2",null,"Cause",null,"Prob","Effet",null,null,"Grav","Acceptabilité"]
[null,null,null,null,null,null,null,null,null,null,null,null,{"$f":"IFERROR(VLOOKUP(CONCATENATE(E436,I436),Pro_Grav,2,FALSE),\"\")","v":""}]
[null,null,"Action Préventive",null,null,"Action de secours",null,"Info D",null,{"$f":"IF(M436=\"\",\"\",IF(M436=1,\"Non\",\"Oui\"))","v":""}]
["Risque 3",null,"Cause",null,"Prob","Effet",null,null,"Grav","Acceptabilité"]
[null,null,null,null,null,null,null,null,null,null,null,null,{"$f":"IFERROR(VLOOKUP(CONCATENATE(E439,I439),Pro_Grav,2,FALSE),\"\")","v":""}]
[null,null,"Action Préventive",null,null,"Action de secours",null,"Info D",null,{"$f":"IF(M439=\"\",\"\",IF(M439=1,\"Non\",\"Oui\"))","v":""}]
[]
["N° AC :","Aspect Critique"]
[null,null,"Cause",null,"Prob","Effet",null,null,"Grav","Acceptabilité"]
["Risque 1",null,null,null,null,null,null,null,null,null,null,null,{"$f":"IFERROR(VLOOKUP(CONCATENATE(E444,I444),Pro_Grav,2,FALSE),\"\")","v":""}]
[null,null,"Action Préventive",null,null,"Action de secours",null,"Info D",null,{"$f":"IF(M444=\"\",\"\",IF(M444=1,\"Non\",\"Oui\"))","v":""}]
["Risque 2",null,"Cause",null,"Prob","Effet",null,null,"Grav","Acceptabilité"]
[null,null,null,null,null,null,null,null,null,null,null,null,{"$f":"IFERROR(VLOOKUP(CONCATENATE(E447,I447),Pro_Grav,2,FALSE),\"\")","v":""}]
[null,null,"Action Préventive",null,null,"Action de secours",null,"Info D",null,{"$f":"IF(M447=\"\",\"\",IF(M447=1,\"Non\",\"Oui\"))","v":""}]
["Risque 3",null,"Cause",null,"Prob","Effet",null,null,"Grav","Acceptabilité"]
[null,null,null,null,null,null,null,null,null,null,null,null,{"$f":"IFERROR(VLOOKUP(CONCATENATE(E450,I450),Pro_Grav,2,FALSE),\"\")","v":""}]
[null,null,"Action Préventive",null,null,"Action de secours",null,"Info D",null,{"$f":"IF(M450=\"\",\"\",IF(M450=1,\"Non\",\"Oui\"))","v":""}]
[]
["N° AC :","Aspect Critique"]
[null,null,"Cause",null,"Prob","Effet",null,null,"Grav","Acceptabilité"]
["Risque 1",null,null,null,null,null,null,null,null,null,null,null,{"$f":"IFERROR(VLOOKUP(CONCATENATE(E455,I455),Pro_Grav,2,FALSE),\"\")","v":""}]
[null,null,"Action Préventive",null,null,"Action de secours",null,"Info D",null,{"$f":"IF(M455=\"\",\"\",IF(M455=1,\"Non\",\"Oui\"))","v":""}]
["Risque 2",null,"Cause",null,"Prob","Effet",null,null,"Grav","Acceptabilité"]
[null,null,null,null,null,null,null,null,null,null,null,null,{"$f":"IFERROR(VLOOKUP(CONCATENATE(E458,I458),Pro_Grav,2,FALSE),\"\")","v":""}]
[null,null,"Action Préventive",null,null,"Action de secours",null,"Info D",null,{"$f":"IF(M458=\"\",\"\",IF(M458=1,\"Non\",\"Oui\"))","v":""}]
["Risque 3",null,"Cause",null,"Prob","Effet",null,null,"Grav","Acceptabilité"]
[null,null,null,null,null,null,null,null,null,null,null,null,{"$f":"IFERROR(VLOOKUP(CONCATENATE(E461,I461),Pro_Grav,2,FALSE),\"\")","v":""}]
[null,null,"Action Préventive",null,null,"Action de secours",null,"Info D",null,{"$f":"IF(M461=\"\",\"\",IF(M461=1,\"Non\",\"Oui\"))","v":""}]
[]
["N° AC :","Aspect Critique"]
[null,null,"Cause",null,"Prob","Effet",null,null,"Grav","Acceptabilité"]
["Risque 1",null,null,null,null,null,null,null,null,null,null,null,{"$f":"IFERROR(VLOOKUP(CONCATENATE(E466,I466),Pro_Grav,2,FALSE),\"\")","v":""}]
[null,null,"Action Préventive",null,null,"Action de secours",null,"Info D",null,{"$f":"IF(M466=\"\",\"\",IF(M466=1,\"Non\",\"Oui\"))","v":""}]
["Risque 2",null,"Cause",null,"Prob","Effet",null,null,"Grav","Acceptabilité"]
[null,null,null,null,null,null,null,null,null,null,null,null,{"$f":"IFERROR(VLOOKUP(CONCATENATE(E469,I469),Pro_Grav,2,FALSE),\"\")","v":""}]
[null,null,"Action Préventive",null,null,"Action de secours",null,"Info D",null,{"$f":"IF(M469=\"\",\"\",IF(M469=1,\"Non\",\"Oui\"))","v":""}]
["Risque 3",null,"Cause",null,"Prob","Effet",null,null,"Grav","Acceptabilité"]
[null,null,null,null,null,null,null,null,null,null,null,null,{"$f":"IFERROR(VLOOKUP(CONCATENATE(E472,I472),Pro_Grav,2,FALSE),\"\")","v":""}]
[null,null,"Action Préventive",null,null,"Action de secours",null,"Info D",null,{"$f":"IF(M472=\"\",\"\",IF(M472=1,\"Non\",\"Oui\"))","v":""}]
[]
["N° AC :","Aspect Critique"]
[null,null,"Cause",null,"Prob","Effet",null,null,"Grav","Acceptabilité"]
["Risque 1",null,null,null,null,null,null,null,null,null,null,null,{"$f":"IFERROR(VLOOKUP(CONCATENATE(E477,I477),Pro_Grav,2,FALSE),\"\")","v":""}]
[null,null,"Action Préventive",null,null,"Action de secours",null,"Info D",null,{"$f":"IF(M477=\"\",\"\",IF(M477=1,\"Non\",\"Oui\"))","v":""}]
["Risque 2",null,"Cause",null,"Prob","Effet",null,null,"Grav","Acceptabilité"]
[null,null,null,null,null,null,null,null,null,null,null,null,{"$f":"IFERROR(VLOOKUP(CONCATENATE(E480,I480),Pro_Grav,2,FALSE),\"\")","v":""}]
[null,null,"Action Préventive",null,null,"Action de secours",null,"Info D",null,{"$f":"IF(M480=\"\",\"\",IF(M480=1,\"Non\",\"Oui\"))","v":""}]
["Risque 3",null,"Cause",null,"Prob","Effet",null,null,"Grav","Acceptabilité"]
[null,null,null,null,null,null,null,null,null,null,null,null,{"$f":"IFERROR(VLOOKUP(CONCATENATE(E483,I483),Pro_Grav,2,FALSE),\"\")","v":""}]
[null,null,"Action Préventive",null,null,"Action de secours",null,"Info D",null,{"$f":"IF(M483=\"\",\"\",IF(M483=1,\"Non\",\"Oui\"))","v":""}]
[]
["N° AC :","Aspect Critique"]
[null,null,"Cause",null,"Prob","Effet",null,null,"Grav","Acceptabilité"]
["Risque 1",null,null,null,null,null,null,null,null,null,null,null,{"$f":"IFERROR(VLOOKUP(CONCATENATE(E488,I488),Pro_Grav,2,FALSE),\"\")","v":""}]
[null,null,"Action Préventive",null,null,"Action de secours",null,"Info D",null,{"$f":"IF(M488=\"\",\"\",IF(M488=1,\"Non\",\"Oui\"))","v":""}]
["Risque 2",null,"Cause",null,"Prob","Effet",null,null,"Grav","Acceptabilité"]
[null,null,null,null,null,null,null,null,null,null,null,null,{"$f":"IFERROR(VLOOKUP(CONCATENATE(E491,I491),Pro_Grav,2,FALSE),\"\")","v":""}]
[null,null,"Action Préventive",null,null,"Action de secours",null,"Info D",null,{"$f":"IF(M491=\"\",\"\",IF(M491=1,\"Non\",\"Oui\"))","v":""}]
["Risque 3",null,"Cause",null,"Prob","Effet",null,null,"Grav","Acceptabilité"]
[null,null,null,null,null,null,null,null,null,null,null,null,{"$f":"IFERROR(VLOOKUP(CONCATENATE(E494,I494),Pro_Grav,2,FALSE),\"\")","v":""}]
[null,null,"Action Préventive",null,null,"Action de secours",null,"Info D",null,{"$f":"IF(M494=\"\",\"\",IF(M494=1,\"Non\",\"Oui\"))","v":""}]
[]
["N° AC :","Aspect Critique"]
[null,null,"Cause",null,"Prob","Effet",null,null,"Grav","Acceptabilité"]
["Risque 1",null,null,null,null,null,null,null,null,null,null,null,{"$f":"IFERROR(VLOOKUP(CONCATENATE(E499,I499),Pro_Grav,2,FALSE),\"\")","v":""}]
[null,null,"Action Préventive",null,null,"Action de secours",null,"Info D",null,{"$f":"IF(M499=\"\",\"\",IF(M499=1,\"Non\",\"Oui\"))","v":""}]
["Risque 2",null,"Cause",null,"Prob","Effet",null,null,"Grav","Acceptabilité"]
[null,null,null,null,null,null,null,null,null,null,null,null,{"$f":"IFERROR(VLOOKUP(CONCATENATE(E502,I502),Pro_Grav,2,FALSE),\"\")","v":""}]
[null,null,"Action Préventive",null,null,"Action de secours",null,"Info D",null,{"$f":"IF(M502=\"\",\"\",IF(M502=1,\"Non\",\"Oui\"))","v":""}]
["Risque 3",null,"Cause",null,"Prob","Effet",null,null,"Grav","Acceptabilité"]
[null,null,null,null,null,null,null,null,null,null,null,null,{"$f":"IFERROR(VLOOKUP(CONCATENATE(E505,I505),Pro_Grav,2,FALSE),\"\")","v":""}]
[null,null,"Action Préventive",null,null,"Action de secours",null,"Info D",null,{"$f":"IF(M505=\"\",\"\",IF(M505=1,\"Non\",\"Oui\"))","v":""}]
[]
["N° AC :","Aspect Critique"]
[null,null,"Cause",null,"Prob","Effet",null,null,"Grav","Acceptabilité"]
["Risque 1",null,null,null,null,null,null,null,null,null,null,null,{"$f":"IFERROR(VLOOKUP(CONCATENATE(E510,I510),Pro_Grav,2,FALSE),\"\")","v":""}]
[null,null,"Action Préventive",null,null,"Action de secours",null,"Info D",null,{"$f":"IF(M510=\"\",\"\",IF(M510=1,\"Non\",\"Oui\"))","v":""}]
["Risque 2",null,"Cause",null,"Prob","Effet",null,null,"Grav","Acceptabilité"]
[null,null,null,null,null,null,null,null,null,null,null,null,{"$f":"IFERROR(VLOOKUP(CONCATENATE(E513,I513),Pro_Grav,2,FALSE),\"\")","v":""}]
[null,null,"Action Préventive",null,null,"Action de secours",null,"Info D",null,{"$f":"IF(M513=\"\",\"\",IF(M513=1,\"Non\",\"Oui\"))","v":""}]
["Risque 3",null,"Cause",null,"Prob","Effet",null,null,"Grav","Acceptabilité"]
[null,null,null,null,null,null,null,null,null,null,null,null,{"$f":"IFERROR(VLOOKUP(CONCATENATE(E516,I516),Pro_Grav,2,FALSE),\"\")","v":""}]
[null,null,"Action Préventive",null,null,"Action de secours",null,"Info D",null,{"$f":"IF(M516=\"\",\"\",IF(M516=1,\"Non\",\"Oui\"))","v":""}]
[]
["N° AC :","Aspect Critique"]
[null,null,"Cause",null,"Prob","Effet",null,null,"Grav","Acceptabilité"]
["Risque 1",null,null,null,null,null,null,null,null,null,null,null,{"$f":"IFERROR(VLOOKUP(CONCATENATE(E521,I521),Pro_Grav,2,FALSE),\"\")","v":""}]
[null,null,"Action Préventive",null,null,"Action de secours",null,"Info D",null,{"$f":"IF(M521=\"\",\"\",IF(M521=1,\"Non\",\"Oui\"))","v":""}]
["Risque 2",null,"Cause",null,"Prob","Effet",null,null,"Grav","Acceptabilité"]
[null,null,null,null,null,null,null,null,null,null,null,null,{"$f":"IFERROR(VLOOKUP(CONCATENATE(E524,I524),Pro_Grav,2,FALSE),\"\")","v":""}]
[null,null,"Action Préventive",null,null,"Action de secours",null,"Info D",null,{"$f":"IF(M524=\"\",\"\",IF(M524=1,\"Non\",\"Oui\"))","v":""}]
["Risque 3",null,"Cause",null,"Prob","Effet",null,null,"Grav","Acceptabilité"]
[null,null,null,null,null,null,null,null,null,null,null,null,{"$f":"IFERROR(VLOOKUP(CONCATENATE(E527,I527),Pro_Grav,2,FALSE),\"\")","v":""}]
[null,null,"Action Préventive",null,null,"Action de secours",null,"Info D",null,{"$f":"IF(M527=\"\",\"\",IF(M527=1,\"Non\",\"Oui\"))","v":""}]
[]
["N° AC :","Aspect Critique"]
[null,null,"Cause",null,"Prob","Effet",null,null,"Grav","Acceptabilité"]
["Risque 1",null,null,null,null,null,null,null,null,null,null,null,{"$f":"IFERROR(VLOOKUP(CONCATENATE(E532,I532),Pro_Grav,2,FALSE),\"\")","v":""}]
[null,null,"Action Préventive",null,null,"Action de secours",null,"Info D",null,{"$f":"IF(M532=\"\",\"\",IF(M532=1,\"Non\",\"Oui\"))","v":""}]
["Risque 2",null,"Cause",null,"Prob","Effet",null,null,"Grav","Acceptabilité"]
[null,null,null,null,null,null,null,null,null,null,null,null,{"$f":"IFERROR(VLOOKUP(CONCATENATE(E535,I535),Pro_Grav,2,FALSE),\"\")","v":""}]
[null,null,"Action Préventive",null,null,"Action de secours",null,"Info D",null,{"$f":"IF(M535=\"\",\"\",IF(M535=1,\"Non\",\"Oui\"))","v":""}]
["Risque 3",null,"Cause",null,"Prob","Effet",null,null,"Grav","Acceptabilité"]
[null,null,null,null,null,null,null,null,null,null,null,null,{"$f":"IFERROR(VLOOKUP(CONCATENATE(E538,I538),Pro_Grav,2,FALSE),\"\")","v":""}]
[null,null,"Action Préventive",null,null,"Action de secours",null,"Info D",null,{"$f":"IF(M538=\"\",\"\",IF(M538=1,\"Non\",\"Oui\"))","v":""}]
[]
["N° AC :","Aspect Critique"]
[null,null,"Cause",null,"Prob","Effet",null,null,"Grav","Acceptabilité"]
["Risque 1",null,null,null,null,null,null,null,null,null,null,null,{"$f":"IFERROR(VLOOKUP(CONCATENATE(E543,I543),Pro_Grav,2,FALSE),\"\")","v":""}]
[null,null,"Action Préventive",null,null,"Action de secours",null,"Info D",null,{"$f":"IF(M543=\"\",\"\",IF(M543=1,\"Non\",\"Oui\"))","v":""}]
["Risque 2",null,"Cause",null,"Prob","Effet",null,null,"Grav","Acceptabilité"]
[null,null,null,null,null,null,null,null,null,null,null,null,{"$f":"IFERROR(VLOOKUP(CONCATENATE(E546,I546),Pro_Grav,2,FALSE),\"\")","v":""}]
[null,null,"Action Préventive",null,null,"Action de secours",null,"Info D",null,{"$f":"IF(M546=\"\",\"\",IF(M546=1,\"Non\",\"Oui\"))","v":""}]
["Risque 3",null,"Cause",null,"Prob","Effet",null,null,"Grav","Acceptabilité"]
[null,null,null,null,null,null,null,null,null,null,null,null,{"$f":"IFERROR(VLOOKUP(CONCATENATE(E549,I549),Pro_Grav,2,FALSE),\"\")","v":""}]
[null,null,"Action Préventive",null,null,"Action de secours",null,"Info D",null,{"$f":"IF(M549=\"\",\"\",IF(M549=1,\"Non\",\"Oui\"))","v":""}]
[]
["N° AC :","Aspect Critique"]
[null,null,"Cause",null,"Prob","Effet",null,null,"Grav","Acceptabilité"]
["Risque 1",null,null,null,null,null,null,null,null,null,null,null,{"$f":"IFERROR(VLOOKUP(CONCATENATE(E554,I554),Pro_Grav,2,FALSE),\"\")","v":""}]
[null,null,"Action Préventive",null,null,"Action de secours",null,"Info D",null,{"$f":"IF(M554=\"\",\"\",IF(M554=1,\"Non\",\"Oui\"))","v":""}]
["Risque 2",null,"Cause",null,"Prob","Effet",null,null,"Grav","Acceptabilité"]
[null,null,null,null,null,null,null,null,null,null,null,null,{"$f":"IFERROR(VLOOKUP(CONCATENATE(E557,I557),Pro_Grav,2,FALSE),\"\")","v":""}]
[null,null,"Action Préventive",null,null,"Action de secours",null,"Info D",null,{"$f":"IF(M557=\"\",\"\",IF(M557=1,\"Non\",\"Oui\"))","v":""}]
["Risque 3",null,"Cause",null,"Prob","Effet",null,null,"Grav","Acceptabilité"]
[null,null,null,null,null,null,null,null,null,null,null,null,{"$f":"IFERROR(VLOOKUP(CONCATENATE(E560,I560),Pro_Grav,2,FALSE),\"\")","v":""}]
[null,null,"Action Préventive",null,null,"Action de secours",null,"Info D",null,{"$f":"IF(M560=\"\",\"\",IF(M560=1,\"Non\",\"Oui\"))","v":""}]
[]
["N° AC :","Aspect Critique"]
[null,null,"Cause",null,"Prob","Effet",null,null,"Grav","Acceptabilité"]
["Risque 1",null,null,null,null,null,null,null,null,null,null,null,{"$f":"IFERROR(VLOOKUP(CONCATENATE(E565,I565),Pro_Grav,2,FALSE),\"\")","v":""}]
[null,null,"Action Préventive",null,null,"Action de secours",null,"Info D",null,{"$f":"IF(M565=\"\",\"\",IF(M565=1,\"Non\",\"Oui\"))","v":""}]
["Risque 2",null,"Cause",null,"Prob","Effet",null,null,"Grav","Acceptabilité"]
[null,null,null,null,null,null,null,null,null,null,null,null,{"$f":"IFERROR(VLOOKUP(CONCATENATE(E568,I568),Pro_Grav,2,FALSE),\"\")","v":""}]
[null,null,"Action Préventive",null,null,"Action de secours",null,"Info D",null,{"$f":"IF(M568=\"\",\"\",IF(M568=1,\"Non\",\"Oui\"))","v":""}]
["Risque 3",null,"Cause",null,"Prob","Effet",null,null,"Grav","Acceptabilité"]
[null,null,null,null,null,null,null,null,null,null,null,null,{"$f":"IFERROR(VLOOKUP(CONCATENATE(E571,I571),Pro_Grav,2,FALSE),\"\")","v":""}]
[null,null,"Action Préventive",null,null,"Action de secours",null,"Info D",null,{"$f":"IF(M571=\"\",\"\",IF(M571=1,\"Non\",\"Oui\"))","v":""}]
[]
["N° AC :","Aspect Critique"]
[null,null,"Cause",null,"Prob","Effet",null,null,"Grav","Acceptabilité"]
["Risque 1",null,null,null,null,null,null,null,null,null,null,null,{"$f":"IFERROR(VLOOKUP(CONCATENATE(E576,I576),Pro_Grav,2,FALSE),\"\")","v":""}]
[null,null,"Action Préventive",null,null,"Action de secours",null,"Info D",null,{"$f":"IF(M576=\"\",\"\",IF(M576=1,\"Non\",\"Oui\"))","v":""}]
["Risque 2",null,"Cause",null,"Prob","Effet",null,null,"Grav","Acceptabilité"]
[null,null,null,null,null,null,null,null,null,null,null,null,{"$f":"IFERROR(VLOOKUP(CONCATENATE(E579,I579),Pro_Grav,2,FALSE),\"\")","v":""}]
[null,null,"Action Préventive",null,null,"Action de secours",null,"Info D",null,{"$f":"IF(M579=\"\",\"\",IF(M579=1,\"Non\",\"Oui\"))","v":""}]
["Risque 3",null,"Cause",null,"Prob","Effet",null,null,"Grav","Acceptabilité"]
[null,null,null,null,null,null,null,null,null,null,null,null,{"$f":"IFERROR(VLOOKUP(CONCATENATE(E582,I582),Pro_Grav,2,FALSE),\"\")","v":""}]
[null,null,"Action Préventive",null,null,"Action de secours",null,"Info D",null,{"$f":"IF(M582=\"\",\"\",IF(M582=1,\"Non\",\"Oui\"))","v":""}]
[]
["N° AC :","Aspect Critique"]
[null,null,"Cause",null,"Prob","Effet",null,null,"Grav","Acceptabilité"]
["Risque 1",null,null,null,null,null,null,null,null,null,null,null,{"$f":"IFERROR(VLOOKUP(CONCATENATE(E587,I587),Pro_Grav,2,FALSE),\"\")","v":""}]
[null,null,"Action Préventive",null,null,"Action de secours",null,"Info D",null,{"$f":"IF(M587=\"\",\"\",IF(M587=1,\"Non\",\"Oui\"))","v":""}]
["Risque 2",null,"Cause",null,"Prob","Effet",null,null,"Grav","Acceptabilité"]
[null,null,null,null,null,null,null,null,null,null,null,null,{"$f":"IFERROR(VLOOKUP(CONCATENATE(E590,I590),Pro_Grav,2,FALSE),\"\")","v":""}]
[null,null,"Action Préventive",null,null,"Action de secours",null,"Info D",null,{"$f":"IF(M590=\"\",\"\",IF(M590=1,\"Non\",\"Oui\"))","v":""}]
["Risque 3",null,"Cause",null,"Prob","Effet",null,null,"Grav","Acceptabilité"]
[null,null,null,null,null,null,null,null,null,null,null,null,{"$f":"IFERROR(VLOOKUP(CONCATENATE(E593,I593),Pro_Grav,2,FALSE),\"\")","v":""}]
[null,null,"Action Préventive",null,null,"Action de secours",null,"Info D",null,{"$f":"IF(M593=\"\",\"\",IF(M593=1,\"Non\",\"Oui\"))","v":""}]
[]
["N° AC :","Aspect Critique"]
[null,null,"Cause",null,"Prob","Effet",null,null,"Grav","Acceptabilité"]
["Risque 1",null,null,null,null,null,null,null,null,null,null,null,{"$f":"IFERROR(VLOOKUP(CONCATENATE(E598,I598),Pro_Grav,2,FALSE),\"\")","v":""}]
[null,null,"Action Préventive",null,null,"Action de secours",null,"Info D",null,{"$f":"IF(M598=\"\",\"\",IF(M598=1,\"Non\",\"Oui\"))","v":""}]
["Risque 2",null,"Cause",null,"Prob","Effet",null,null,"Grav","Acceptabilité"]
[null,null,null,null,null,null,null,null,null,null,null,null,{"$f":"IFERROR(VLOOKUP(CONCATENATE(E601,I601),Pro_Grav,2,FALSE),\"\")","v":""}]
[null,null,"Action Préventive",null,null,"Action de secours",null,"Info D",null,{"$f":"IF(M601=\"\",\"\",IF(M601=1,\"Non\",\"Oui\"))","v":""}]
["Risque 3",null,"Cause",null,"Prob","Effet",null,null,"Grav","Acceptabilité"]
[null,null,null,null,null,null,null,null,null,null,null,null,{"$f":"IFERROR(VLOOKUP(CONCATENATE(E604,I604),Pro_Grav,2,FALSE),\"\")","v":""}]
[null,null,"Action Préventive",null,null,"Action de secours",null,"Info D",null,{"$f":"IF(M604=\"\",\"\",IF(M604=1,\"Non\",\"Oui\"))","v":""}]
[]
["N° AC :","Aspect Critique"]
[null,null,"Cause",null,"Prob","Effet",null,null,"Grav","Acceptabilité"]
["Risque 1",null,null,null,null,null,null,null,null,null,null,null,{"$f":"IFERROR(VLOOKUP(CONCATENATE(E609,I609),Pro_Grav,2,FALSE),\"\")","v":""}]
[null,null,"Action Préventive",null,null,"Action de secours",null,"Info D",null,{"$f":"IF(M609=\"\",\"\",IF(M609=1,\"Non\",\"Oui\"))","v":""}]
["Risque 2",null,"Cause",null,"Prob","Effet",null,null,"Grav","Acceptabilité"]
[null,null,null,null,null,null,null,null,null,null,null,null,{"$f":"IFERROR(VLOOKUP(CONCATENATE(E612,I612),Pro_Grav,2,FALSE),\"\")","v":""}]
[null,null,"Action Préventive",null,null,"Action de secours",null,"Info D",null,{"$f":"IF(M612=\"\",\"\",IF(M612=1,\"Non\",\"Oui\"))","v":""}]
["Risque 3",null,"Cause",null,"Prob","Effet",null,null,"Grav","Acceptabilité"]
[null,null,null,null,null,null,null,null,null,null,null,null,{"$f":"IFERROR(VLOOKUP(CONCATENATE(E615,I615),Pro_Grav,2,FALSE),\"\")","v":""}]
[null,null,"Action Préventive",null,null,"Action de secours",null,"Info D",null,{"$f":"IF(M615=\"\",\"\",IF(M615=1,\"Non\",\"Oui\"))","v":""}]
[]
["N° AC :","Aspect Critique"]
[null,null,"Cause",null,"Prob","Effet",null,null,"Grav","Acceptabilité"]
["Risque 1",null,null,null,null,null,null,null,null,null,null,null,{"$f":"IFERROR(VLOOKUP(CONCATENATE(E620,I620),Pro_Grav,2,FALSE),\"\")","v":""}]
[null,null,"Action Préventive",null,null,"Action de secours",null,"Info D",null,{"$f":"IF(M620=\"\",\"\",IF(M620=1,\"Non\",\"Oui\"))","v":""}]
["Risque 2",null,"Cause",null,"Prob","Effet",null,null,"Grav","Acceptabilité"]
[null,null,null,null,null,null,null,null,null,null,null,null,{"$f":"IFERROR(VLOOKUP(CONCATENATE(E623,I623),Pro_Grav,2,FALSE),\"\")","v":""}]
[null,null,"Action Préventive",null,null,"Action de secours",null,"Info D",null,{"$f":"IF(M623=\"\",\"\",IF(M623=1,\"Non\",\"Oui\"))","v":""}]
["Risque 3",null,"Cause",null,"Prob","Effet",null,null,"Grav","Acceptabilité"]
[null,null,null,null,null,null,null,null,null,null,null,null,{"$f":"IFERROR(VLOOKUP(CONCATENATE(E626,I626),Pro_Grav,2,FALSE),\"\")","v":""}]
[null,null,"Action Préventive",null,null,"Action de secours",null,"Info D",null,{"$f":"IF(M626=\"\",\"\",IF(M626=1,\"Non\",\"Oui\"))","v":""}]
[]
["N° AC :","Aspect Critique"]
[null,null,"Cause",null,"Prob","Effet",null,null,"Grav","Acceptabilité"]
["Risque 1",null,null,null,null,null,null,null,null,null,null,null,{"$f":"IFERROR(VLOOKUP(CONCATENATE(E631,I631),Pro_Grav,2,FALSE),\"\")","v":""}]
[null,null,"Action Préventive",null,null,"Action de secours",null,"Info D",null,{"$f":"IF(M631=\"\",\"\",IF(M631=1,\"Non\",\"Oui\"))","v":""}]
["Risque 2",null,"Cause",null,"Prob","Effet",null,null,"Grav","Acceptabilité"]
[null,null,null,null,null,null,null,null,null,null,null,null,{"$f":"IFERROR(VLOOKUP(CONCATENATE(E634,I634),Pro_Grav,2,FALSE),\"\")","v":""}]
[null,null,"Action Préventive",null,null,"Action de secours",null,"Info D",null,{"$f":"IF(M634=\"\",\"\",IF(M634=1,\"Non\",\"Oui\"))","v":""}]
["Risque 3",null,"Cause",null,"Prob","Effet",null,null,"Grav","Acceptabilité"]
[null,null,null,null,null,null,null,null,null,null,null,null,{"$f":"IFERROR(VLOOKUP(CONCATENATE(E637,I637),Pro_Grav,2,FALSE),\"\")","v":""}]
[null,null,"Action Préventive",null,null,"Action de secours",null,"Info D",null,{"$f":"IF(M637=\"\",\"\",IF(M637=1,\"Non\",\"Oui\"))","v":""}]
[]
["N° AC :","Aspect Critique"]
[null,null,"Cause",null,"Prob","Effet",null,null,"Grav","Acceptabilité"]
["Risque 1",null,null,null,null,null,null,null,null,null,null,null,{"$f":"IFERROR(VLOOKUP(CONCATENATE(E642,I642),Pro_Grav,2,FALSE),\"\")","v":""}]
[null,null,"Action Préventive",null,null,"Action de secours",null,"Info D",null,{"$f":"IF(M642=\"\",\"\",IF(M642=1,\"Non\",\"Oui\"))","v":""}]
["Risque 2",null,"Cause",null,"Prob","Effet",null,null,"Grav","Acceptabilité"]
[null,null,null,null,null,null,null,null,null,null,null,null,{"$f":"IFERROR(VLOOKUP(CONCATENATE(E645,I645),Pro_Grav,2,FALSE),\"\")","v":""}]
[null,null,"Action Préventive",null,null,"Action de secours",null,"Info D",null,{"$f":"IF(M645=\"\",\"\",IF(M645=1,\"Non\",\"Oui\"))","v":""}]
["Risque 3",null,"Cause",null,"Prob","Effet",null,null,"Grav","Acceptabilité"]
[null,null,null,null,null,null,null,null,null,null,null,null,{"$f":"IFERROR(VLOOKUP(CONCATENATE(E648,I648),Pro_Grav,2,FALSE),\"\")","v":""}]
[null,null,"Action Préventive",null,null,"Action de secours",null,"Info D",null,{"$f":"IF(M648=\"\",\"\",IF(M648=1,\"Non\",\"Oui\"))","v":""}]
[]
["N° AC :","Aspect Critique"]
[null,null,"Cause",null,"Prob","Effet",null,null,"Grav","Acceptabilité"]
["Risque 1",null,null,null,null,null,null,null,null,null,null,null,{"$f":"IFERROR(VLOOKUP(CONCATENATE(E653,I653),Pro_Grav,2,FALSE),\"\")","v":""}]
[null,null,"Action Préventive",null,null,"Action de secours",null,"Info D",null,{"$f":"IF(M653=\"\",\"\",IF(M653=1,\"Non\",\"Oui\"))","v":""}]
["Risque 2",null,"Cause",null,"Prob","Effet",null,null,"Grav","Acceptabilité"]
[null,null,null,null,null,null,null,null,null,null,null,null,{"$f":"IFERROR(VLOOKUP(CONCATENATE(E656,I656),Pro_Grav,2,FALSE),\"\")","v":""}]
[null,null,"Action Préventive",null,null,"Action de secours",null,"Info D",null,{"$f":"IF(M656=\"\",\"\",IF(M656=1,\"Non\",\"Oui\"))","v":""}]
["Risque 3",null,"Cause",null,"Prob","Effet",null,null,"Grav","Acceptabilité"]
[null,null,null,null,null,null,null,null,null,null,null,null,{"$f":"IFERROR(VLOOKUP(CONCATENATE(E659,I659),Pro_Grav,2,FALSE),\"\")","v":""}]
[null,null,"Action Préventive",null,null,"Action de secours",null,"Info D",null,{"$f":"IF(M659=\"\",\"\",IF(M659=1,\"Non\",\"Oui\"))","v":""}]
[]
["N° AC :","Aspect Critique"]
[null,null,"Cause",null,"Prob","Effet",null,null,"Grav","Acceptabilité"]
["Risque 1",null,null,null,null,null,null,null,null,null,null,null,{"$f":"IFERROR(VLOOKUP(CONCATENATE(E664,I664),Pro_Grav,2,FALSE),\"\")","v":""}]
[null,null,"Action Préventive",null,null,"Action de secours",null,"Info D",null,{"$f":"IF(M664=\"\",\"\",IF(M664=1,\"Non\",\"Oui\"))","v":""}]
["Risque 2",null,"Cause",null,"Prob","Effet",null,null,"Grav","Acceptabilité"]
[null,null,null,null,null,null,null,null,null,null,null,null,{"$f":"IFERROR(VLOOKUP(CONCATENATE(E667,I667),Pro_Grav,2,FALSE),\"\")","v":""}]
[null,null,"Action Préventive",null,null,"Action de secours",null,"Info D",null,{"$f":"IF(M667=\"\",\"\",IF(M667=1,\"Non\",\"Oui\"))","v":""}]
["Risque 3",null,"Cause",null,"Prob","Effet",null,null,"Grav","Acceptabilité"]
[null,null,null,null,null,null,null,null,null,null,null,null,{"$f":"IFERROR(VLOOKUP(CONCATENATE(E670,I670),Pro_Grav,2,FALSE),\"\")","v":""}]
[null,null,"Action Préventive",null,null,"Action de secours",null,"Info D",null,{"$f":"IF(M670=\"\",\"\",IF(M670=1,\"Non\",\"Oui\"))","v":""}]
[]
["N° AC :","Aspect Critique"]
[null,null,"Cause",null,"Prob","Effet",null,null,"Grav","Acceptabilité"]
["Risque 1",null,null,null,null,null,null,null,null,null,null,null,{"$f":"IFERROR(VLOOKUP(CONCATENATE(E675,I675),Pro_Grav,2,FALSE),\"\")","v":""}]
[null,null,"Action Préventive",null,null,"Action de secours",null,"Info D",null,{"$f":"IF(M675=\"\",\"\",IF(M675=1,\"Non\",\"Oui\"))","v":""}]
["Risque 2",null,"Cause",null,"Prob","Effet",null,null,"Grav","Acceptabilité"]
[null,null,null,null,null,null,null,null,null,null,null,null,{"$f":"IFERROR(VLOOKUP(CONCATENATE(E678,I678),Pro_Grav,2,FALSE),\"\")","v":""}]
[null,null,"Action Préventive",null,null,"Action de secours",null,"Info D",null,{"$f":"IF(M678=\"\",\"\",IF(M678=1,\"Non\",\"Oui\"))","v":""}]
["Risque 3",null,"Cause",null,"Prob","Effet",null,null,"Grav","Acceptabilité"]
[null,null,null,null,null,null,null,null,null,null,null,null,{"$f":"IFERROR(VLOOKUP(CONCATENATE(E681,I681),Pro_Grav,2,FALSE),\"\")","v":""}]
[null,null,"Action Préventive",null,null,"Action de secours",null,"Info D",null,{"$f":"IF(M681=\"\",\"\",IF(M681=1,\"Non\",\"Oui\"))","v":""}]
[]
["N° AC :","Aspect Critique"]
[null,null,"Cause",null,"Prob","Effet",null,null,"Grav","Acceptabilité"]
["Risque 1",null,null,null,null,null,null,null,null,null,null,null,{"$f":"IFERROR(VLOOKUP(CONCATENATE(E686,I686),Pro_Grav,2,FALSE),\"\")","v":""}]
[null,null,"Action Préventive",null,null,"Action de secours",null,"Info D",null,{"$f":"IF(M686=\"\",\"\",IF(M686=1,\"Non\",\"Oui\"))","v":""}]
["Risque 2",null,"Cause",null,"Prob","Effet",null,null,"Grav","Acceptabilité"]
[null,null,null,null,null,null,null,null,null,null,null,null,{"$f":"IFERROR(VLOOKUP(CONCATENATE(E689,I689),Pro_Grav,2,FALSE),\"\")","v":""}]
[null,null,"Action Préventive",null,null,"Action de secours",null,"Info D",null,{"$f":"IF(M689=\"\",\"\",IF(M689=1,\"Non\",\"Oui\"))","v":""}]
["Risque 3",null,"Cause",null,"Prob","Effet",null,null,"Grav","Acceptabilité"]
[null,null,null,null,null,null,null,null,null,null,null,null,{"$f":"IFERROR(VLOOKUP(CONCATENATE(E692,I692),Pro_Grav,2,FALSE),\"\")","v":""}]
[null,null,"Action Préventive",null,null,"Action de secours",null,"Info D",null,{"$f":"IF(M692=\"\",\"\",IF(M692=1,\"Non\",\"Oui\"))","v":""},null,null,{"$f":"IFERROR(VLOOKUP(CONCATENATE(E693,I693),Pro_Grav,2,FALSE),\"\")","v":""}]
[]
["N° AC :","Aspect Critique"]
[null,null,"Cause",null,"Prob","Effet",null,null,"Grav","Acceptabilité"]
["Risque 1",null,null,null,null,null,null,null,null,null,null,null,{"$f":"IFERROR(VLOOKUP(CONCATENATE(E697,I697),Pro_Grav,2,FALSE),\"\")","v":""}]
[null,null,"Action Préventive",null,null,"Action de secours",null,"Info D",null,{"$f":"IF(M697=\"\",\"\",IF(M697=1,\"Non\",\"Oui\"))","v":""}]
["Risque 2",null,"Cause",null,"Prob","Effet",null,null,"Grav","Acceptabilité"]
[null,null,null,null,null,null,null,null,null,null,null,null,{"$f":"IFERROR(VLOOKUP(CONCATENATE(E700,I700),Pro_Grav,2,FALSE),\"\")","v":""}]
[null,null,"Action Préventive",null,null,"Action de secours",null,"Info D",null,{"$f":"IF(M700=\"\",\"\",IF(M700=1,\"Non\",\"Oui\"))","v":""}]
["Risque 3",null,"Cause",null,"Prob","Effet",null,null,"Grav","Acceptabilité"]
[null,null,null,null,null,null,null,null,null,null,null,null,{"$f":"IFERROR(VLOOKUP(CONCATENATE(E703,I703),Pro_Grav,2,FALSE),\"\")","v":""}]
[null,null,"Action Préventive",null,null,"Action de secours",null,"Info D",null,{"$f":"IF(M703=\"\",\"\",IF(M703=1,\"Non\",\"Oui\"))","v":""}]
[]
["N° AC :","Aspect Critique"]
[null,null,"Cause",null,"Prob","Effet",null,null,"Grav","Acceptabilité"]
["Risque 1",null,null,null,null,null,null,null,null,null,null,null,{"$f":"IFERROR(VLOOKUP(CONCATENATE(E708,I708),Pro_Grav,2,FALSE),\"\")","v":""}]
[null,null,"Action Préventive",null,null,"Action de secours",null,"Info D",null,{"$f":"IF(M708=\"\",\"\",IF(M708=1,\"Non\",\"Oui\"))","v":""}]
["Risque 2",null,"Cause",null,"Prob","Effet",null,null,"Grav","Acceptabilité"]
[null,null,null,null,null,null,null,null,null,null,null,null,{"$f":"IFERROR(VLOOKUP(CONCATENATE(E711,I711),Pro_Grav,2,FALSE),\"\")","v":""}]
[null,null,"Action Préventive",null,null,"Action de secours",null,"Info D",null,{"$f":"IF(M711=\"\",\"\",IF(M711=1,\"Non\",\"Oui\"))","v":""}]
["Risque 3",null,"Cause",null,"Prob","Effet",null,null,"Grav","Acceptabilité"]
[null,null,null,null,null,null,null,null,null,null,null,null,{"$f":"IFERROR(VLOOKUP(CONCATENATE(E714,I714),Pro_Grav,2,FALSE),\"\")","v":""}]
[null,null,"Action Préventive",null,null,"Action de secours",null,"Info D",null,{"$f":"IF(M714=\"\",\"\",IF(M714=1,\"Non\",\"Oui\"))","v":""}]
[]
["N° AC :","Aspect Critique"]
[null,null,"Cause",null,"Prob","Effet",null,null,"Grav","Acceptabilité"]
["Risque 1",null,null,null,null,null,null,null,null,null,null,null,{"$f":"IFERROR(VLOOKUP(CONCATENATE(E719,I719),Pro_Grav,2,FALSE),\"\")","v":""}]
[null,null,"Action Préventive",null,null,"Action de secours",null,"Info D",null,{"$f":"IF(M719=\"\",\"\",IF(M719=1,\"Non\",\"Oui\"))","v":""}]
["Risque 2",null,"Cause",null,"Prob","Effet",null,null,"Grav","Acceptabilité"]
[null,null,null,null,null,null,null,null,null,null,null,null,{"$f":"IFERROR(VLOOKUP(CONCATENATE(E722,I722),Pro_Grav,2,FALSE),\"\")","v":""}]
[null,null,"Action Préventive",null,null,"Action de secours",null,"Info D",null,{"$f":"IF(M722=\"\",\"\",IF(M722=1,\"Non\",\"Oui\"))","v":""}]
["Risque 3",null,"Cause",null,"Prob","Effet",null,null,"Grav","Acceptabilité"]
[null,null,null,null,null,null,null,null,null,null,null,null,{"$f":"IFERROR(VLOOKUP(CONCATENATE(E725,I725),Pro_Grav,2,FALSE),\"\")","v":""}]
[null,null,"Action Préventive",null,null,"Action de secours",null,"Info D",null,{"$f":"IF(M725=\"\",\"\",IF(M725=1,\"Non\",\"Oui\"))","v":""}]
[]
["N° AC :","Aspect Critique"]
[null,null,"Cause",null,"Prob","Effet",null,null,"Grav","Acceptabilité"]
["Risque 1",null,null,null,null,null,null,null,null,null,null,null,{"$f":"IFERROR(VLOOKUP(CONCATENATE(E730,I730),Pro_Grav,2,FALSE),\"\")","v":""}]
[null,null,"Action Préventive",null,null,"Action de secours",null,"Info D",null,{"$f":"IF(M730=\"\",\"\",IF(M730=1,\"Non\",\"Oui\"))","v":""}]
["Risque 2",null,"Cause",null,"Prob","Effet",null,null,"Grav","Acceptabilité"]
[null,null,null,null,null,null,null,null,null,null,null,null,{"$f":"IFERROR(VLOOKUP(CONCATENATE(E733,I733),Pro_Grav,2,FALSE),\"\")","v":""}]
[null,null,"Action Préventive",null,null,"Action de secours",null,"Info D",null,{"$f":"IF(M733=\"\",\"\",IF(M733=1,\"Non\",\"Oui\"))","v":""}]
["Risque 3",null,"Cause",null,"Prob","Effet",null,null,"Grav","Acceptabilité"]
[null,null,null,null,null,null,null,null,null,null,null,null,{"$f":"IFERROR(VLOOKUP(CONCATENATE(E736,I736),Pro_Grav,2,FALSE),\"\")","v":""}]
[null,null,"Action Préventive",null,null,"Action de secours",null,"Info D",null,{"$f":"IF(M736=\"\",\"\",IF(M736=1,\"Non\",\"Oui\"))","v":""}]
[]
["N° AC :","Aspect Critique"]
[null,null,"Cause",null,"Prob","Effet",null,null,"Grav","Acceptabilité"]
["Risque 1",null,null,null,null,null,null,null,null,null,null,null,{"$f":"IFERROR(VLOOKUP(CONCATENATE(E741,I741),Pro_Grav,2,FALSE),\"\")","v":""}]
[null,null,"Action Préventive",null,null,"Action de secours",null,"Info D",null,{"$f":"IF(M741=\"\",\"\",IF(M741=1,\"Non\",\"Oui\"))","v":""}]
["Risque 2",null,"Cause",null,"Prob","Effet",null,null,"Grav","Acceptabilité"]
[null,null,null,null,null,null,null,null,null,null,null,null,{"$f":"IFERROR(VLOOKUP(CONCATENATE(E744,I744),Pro_Grav,2,FALSE),\"\")","v":""}]
[null,null,"Action Préventive",null,null,"Action de secours",null,"Info D",null,{"$f":"IF(M744=\"\",\"\",IF(M744=1,\"Non\",\"Oui\"))","v":""}]
["Risque 3",null,"Cause",null,"Prob","Effet",null,null,"Grav","Acceptabilité"]
[null,null,null,null,null,null,null,null,null,null,null,null,{"$f":"IFERROR(VLOOKUP(CONCATENATE(E747,I747),Pro_Grav,2,FALSE),\"\")","v":""}]
[null,null,"Action Préventive",null,null,"Action de secours",null,"Info D",null,{"$f":"IF(M747=\"\",\"\",IF(M747=1,\"Non\",\"Oui\"))","v":""}]
[]
["N° AC :","Aspect Critique"]
[null,null,"Cause",null,"Prob","Effet",null,null,"Grav","Acceptabilité"]
["Risque 1",null,null,null,null,null,null,null,null,null,null,null,{"$f":"IFERROR(VLOOKUP(CONCATENATE(E752,I752),Pro_Grav,2,FALSE),\"\")","v":""}]
[null,null,"Action Préventive",null,null,"Action de secours",null,"Info D",null,{"$f":"IF(M752=\"\",\"\",IF(M752=1,\"Non\",\"Oui\"))","v":""}]
["Risque 2",null,"Cause",null,"Prob","Effet",null,null,"Grav","Acceptabilité"]
[null,null,null,null,null,null,null,null,null,null,null,null,{"$f":"IFERROR(VLOOKUP(CONCATENATE(E755,I755),Pro_Grav,2,FALSE),\"\")","v":""}]
[null,null,"Action Préventive",null,null,"Action de secours",null,"Info D",null,{"$f":"IF(M755=\"\",\"\",IF(M755=1,\"Non\",\"Oui\"))","v":""}]
["Risque 3",null,"Cause",null,"Prob","Effet",null,null,"Grav","Acceptabilité"]
[null,null,null,null,null,null,null,null,null,null,null,null,{"$f":"IFERROR(VLOOKUP(CONCATENATE(E758,I758),Pro_Grav,2,FALSE),\"\")","v":""}]
[null,null,"Action Préventive",null,null,"Action de secours",null,"Info D",null,{"$f":"IF(M758=\"\",\"\",IF(M758=1,\"Non\",\"Oui\"))","v":""}]
[]
["N° AC :","Aspect Critique"]
[null,null,"Cause",null,"Prob","Effet",null,null,"Grav","Acceptabilité"]
["Risque 1",null,null,null,null,null,null,null,null,null,null,null,{"$f":"IFERROR(VLOOKUP(CONCATENATE(E763,I763),Pro_Grav,2,FALSE),\"\")","v":""}]
[null,null,"Action Préventive",null,null,"Action de secours",null,"Info D",null,{"$f":"IF(M763=\"\",\"\",IF(M763=1,\"Non\",\"Oui\"))","v":""}]
["Risque 2",null,"Cause",null,"Prob","Effet",null,null,"Grav","Acceptabilité"]
[null,null,null,null,null,null,null,null,null,null,null,null,{"$f":"IFERROR(VLOOKUP(CONCATENATE(E766,I766),Pro_Grav,2,FALSE),\"\")","v":""}]
[null,null,"Action Préventive",null,null,"Action de secours",null,"Info D",null,{"$f":"IF(M766=\"\",\"\",IF(M766=1,\"Non\",\"Oui\"))","v":""}]
["Risque 3",null,"Cause",null,"Prob","Effet",null,null,"Grav","Acceptabilité"]
[null,null,null,null,null,null,null,null,null,null,null,null,{"$f":"IFERROR(VLOOKUP(CONCATENATE(E769,I769),Pro_Grav,2,FALSE),\"\")","v":""}]
[null,null,"Action Préventive",null,null,"Action de secours",null,"Info D",null,{"$f":"IF(M769=\"\",\"\",IF(M769=1,\"Non\",\"Oui\"))","v":""}]
[]
["N° AC :","Aspect Critique"]
[null,null,"Cause",null,"Prob","Effet",null,null,"Grav","Acceptabilité"]
["Risque 1",null,null,null,null,null,null,null,null,null,null,null,{"$f":"IFERROR(VLOOKUP(CONCATENATE(E774,I774),Pro_Grav,2,FALSE),\"\")","v":""}]
[null,null,"Action Préventive",null,null,"Action de secours",null,"Info D",null,{"$f":"IF(M774=\"\",\"\",IF(M774=1,\"Non\",\"Oui\"))","v":""}]
["Risque 2",null,"Cause",null,"Prob","Effet",null,null,"Grav","Acceptabilité"]
[null,null,null,null,null,null,null,null,null,null,null,null,{"$f":"IFERROR(VLOOKUP(CONCATENATE(E777,I777),Pro_Grav,2,FALSE),\"\")","v":""}]
[null,null,"Action Préventive",null,null,"Action de secours",null,"Info D",null,{"$f":"IF(M777=\"\",\"\",IF(M777=1,\"Non\",\"Oui\"))","v":""}]
["Risque 3",null,"Cause",null,"Prob","Effet",null,null,"Grav","Acceptabilité"]
[null,null,null,null,null,null,null,null,null,null,null,null,{"$f":"IFERROR(VLOOKUP(CONCATENATE(E780,I780),Pro_Grav,2,FALSE),\"\")","v":""}]
[null,null,"Action Préventive",null,null,"Action de secours",null,"Info D",null,{"$f":"IF(M780=\"\",\"\",IF(M780=1,\"Non\",\"Oui\"))","v":""}]
[]
["N° AC :","Aspect Critique"]
[null,null,"Cause",null,"Prob","Effet",null,null,"Grav","Acceptabilité"]
["Risque 1",null,null,null,null,null,null,null,null,null,null,null,{"$f":"IFERROR(VLOOKUP(CONCATENATE(E785,I785),Pro_Grav,2,FALSE),\"\")","v":""}]
[null,null,"Action Préventive",null,null,"Action de secours",null,"Info D",null,{"$f":"IF(M785=\"\",\"\",IF(M785=1,\"Non\",\"Oui\"))","v":""}]
["Risque 2",null,"Cause",null,"Prob","Effet",null,null,"Grav","Acceptabilité"]
[null,null,null,null,null,null,null,null,null,null,null,null,{"$f":"IFERROR(VLOOKUP(CONCATENATE(E788,I788),Pro_Grav,2,FALSE),\"\")","v":""}]
[null,null,"Action Préventive",null,null,"Action de secours",null,"Info D",null,{"$f":"IF(M788=\"\",\"\",IF(M788=1,\"Non\",\"Oui\"))","v":""}]
["Risque 3",null,"Cause",null,"Prob","Effet",null,null,"Grav","Acceptabilité"]
[null,null,null,null,null,null,null,null,null,null,null,null,{"$f":"IFERROR(VLOOKUP(CONCATENATE(E791,I791),Pro_Grav,2,FALSE),\"\")","v":""}]
[null,null,"Action Préventive",null,null,"Action de secours",null,"Info D",null,{"$f":"IF(M791=\"\",\"\",IF(M791=1,\"Non\",\"Oui\"))","v":""}]
[]
["N° AC :","Aspect Critique"]
[null,null,"Cause",null,"Prob","Effet",null,null,"Grav","Acceptabilité"]
["Risque 1",null,null,null,null,null,null,null,null,null,null,null,{"$f":"IFERROR(VLOOKUP(CONCATENATE(E796,I796),Pro_Grav,2,FALSE),\"\")","v":""}]
[null,null,"Action Préventive",null,null,"Action de secours",null,"Info D",null,{"$f":"IF(M796=\"\",\"\",IF(M796=1,\"Non\",\"Oui\"))","v":""}]
["Risque 2",null,"Cause",null,"Prob","Effet",null,null,"Grav","Acceptabilité"]
[null,null,null,null,null,null,null,null,null,null,null,null,{"$f":"IFERROR(VLOOKUP(CONCATENATE(E799,I799),Pro_Grav,2,FALSE),\"\")","v":""}]
[null,null,"Action Préventive",null,null,"Action de secours",null,"Info D",null,{"$f":"IF(M799=\"\",\"\",IF(M799=1,\"Non\",\"Oui\"))","v":""}]
["Risque 3",null,"Cause",null,"Prob","Effet",null,null,"Grav","Acceptabilité"]
[null,null,null,null,null,null,null,null,null,null,null,null,{"$f":"IFERROR(VLOOKUP(CONCATENATE(E802,I802),Pro_Grav,2,FALSE),\"\")","v":""}]
[null,null,"Action Préventive",null,null,"Action de secours",null,"Info D",null,{"$f":"IF(M802=\"\",\"\",IF(M802=1,\"Non\",\"Oui\"))","v":""}]
[]
["N° AC :","Aspect Critique"]
[null,null,"Cause",null,"Prob","Effet",null,null,"Grav","Acceptabilité"]
["Risque 1",null,null,null,null,null,null,null,null,null,null,null,{"$f":"IFERROR(VLOOKUP(CONCATENATE(E807,I807),Pro_Grav,2,FALSE),\"\")","v":""}]
[null,null,"Action Préventive",null,null,"Action de secours",null,"Info D",null,{"$f":"IF(M807=\"\",\"\",IF(M807=1,\"Non\",\"Oui\"))","v":""}]
["Risque 2",null,"Cause",null,"Prob","Effet",null,null,"Grav","Acceptabilité"]
[null,null,null,null,null,null,null,null,null,null,null,null,{"$f":"IFERROR(VLOOKUP(CONCATENATE(E810,I810),Pro_Grav,2,FALSE),\"\")","v":""}]
[null,null,"Action Préventive",null,null,"Action de secours",null,"Info D",null,{"$f":"IF(M810=\"\",\"\",IF(M810=1,\"Non\",\"Oui\"))","v":""}]
["Risque 3",null,"Cause",null,"Prob","Effet",null,null,"Grav","Acceptabilité"]
[null,null,null,null,null,null,null,null,null,null,null,null,{"$f":"IFERROR(VLOOKUP(CONCATENATE(E813,I813),Pro_Grav,2,FALSE),\"\")","v":""}]
[null,null,"Action Préventive",null,null,"Action de secours",null,"Info D",null,{"$f":"IF(M813=\"\",\"\",IF(M813=1,\"Non\",\"Oui\"))","v":""}]
[]
["N° AC :","Aspect Critique"]
[null,null,"Cause",null,"Prob","Effet",null,null,"Grav","Acceptabilité"]
["Risque 1",null,null,null,null,null,null,null,null,null,null,null,{"$f":"IFERROR(VLOOKUP(CONCATENATE(E818,I818),Pro_Grav,2,FALSE),\"\")","v":""}]
[null,null,"Action Préventive",null,null,"Action de secours",null,"Info D",null,{"$f":"IF(M818=\"\",\"\",IF(M818=1,\"Non\",\"Oui\"))","v":""}]
["Risque 2",null,"Cause",null,"Prob","Effet",null,null,"Grav","Acceptabilité"]
[null,null,null,null,null,null,null,null,null,null,null,null,{"$f":"IFERROR(VLOOKUP(CONCATENATE(E821,I821),Pro_Grav,2,FALSE),\"\")","v":""}]
[null,null,"Action Préventive",null,null,"Action de secours",null,"Info D",null,{"$f":"IF(M821=\"\",\"\",IF(M821=1,\"Non\",\"Oui\"))","v":""}]
["Risque 3",null,"Cause",null,"Prob","Effet",null,null,"Grav","Acceptabilité"]
[null,null,null,null,null,null,null,null,null,null,null,null,{"$f":"IFERROR(VLOOKUP(CONCATENATE(E824,I824),Pro_Grav,2,FALSE),\"\")","v":""}]
[null,null,"Action Préventive",null,null,"Action de secours",null,"Info D",null,{"$f":"IF(M824=\"\",\"\",IF(M824=1,\"Non\",\"Oui\"))","v":""}]
[]
["N° AC :","Aspect Critique"]
[null,null,"Cause",null,"Prob","Effet",null,null,"Grav","Acceptabilité"]
["Risque 1",null,null,null,null,null,null,null,null,null,null,null,{"$f":"IFERROR(VLOOKUP(CONCATENATE(E829,I829),Pro_Grav,2,FALSE),\"\")","v":""}]
[null,null,"Action Préventive",null,null,"Action de secours",null,"Info D",null,{"$f":"IF(M829=\"\",\"\",IF(M829=1,\"Non\",\"Oui\"))","v":""}]
["Risque 2",null,"Cause",null,"Prob","Effet",null,null,"Grav","Acceptabilité"]
[null,null,null,null,null,null,null,null,null,null,null,null,{"$f":"IFERROR(VLOOKUP(CONCATENATE(E832,I832),Pro_Grav,2,FALSE),\"\")","v":""}]
[null,null,"Action Préventive",null,null,"Action de secours",null,"Info D",null,{"$f":"IF(M832=\"\",\"\",IF(M832=1,\"Non\",\"Oui\"))","v":""}]
["Risque 3",null,"Cause",null,"Prob","Effet",null,null,"Grav","Acceptabilité"]
[null,null,null,null,null,null,null,null,null,null,null,null,{"$f":"IFERROR(VLOOKUP(CONCATENATE(E835,I835),Pro_Grav,2,FALSE),\"\")","v":""}]
[null,null,"Action Préventive",null,null,"Action de secours",null,"Info D",null,{"$f":"IF(M835=\"\",\"\",IF(M835=1,\"Non\",\"Oui\"))","v":""}]
[]
["N° AC :","Aspect Critique"]
[null,null,"Cause",null,"Prob","Effet",null,null,"Grav","Acceptabilité"]
["Risque 1",null,null,null,null,null,null,null,null,null,null,null,{"$f":"IFERROR(VLOOKUP(CONCATENATE(E840,I840),Pro_Grav,2,FALSE),\"\")","v":""}]
[null,null,"Action Préventive",null,null,"Action de secours",null,"Info D",null,{"$f":"IF(M840=\"\",\"\",IF(M840=1,\"Non\",\"Oui\"))","v":""}]
["Risque 2",null,"Cause",null,"Prob","Effet",null,null,"Grav","Acceptabilité"]
[null,null,null,null,null,null,null,null,null,null,null,null,{"$f":"IFERROR(VLOOKUP(CONCATENATE(E843,I843),Pro_Grav,2,FALSE),\"\")","v":""}]
[null,null,"Action Préventive",null,null,"Action de secours",null,"Info D",null,{"$f":"IF(M843=\"\",\"\",IF(M843=1,\"Non\",\"Oui\"))","v":""}]
["Risque 3",null,"Cause",null,"Prob","Effet",null,null,"Grav","Acceptabilité"]
[null,null,null,null,null,null,null,null,null,null,null,null,{"$f":"IFERROR(VLOOKUP(CONCATENATE(E846,I846),Pro_Grav,2,FALSE),\"\")","v":""}]
[null,null,"Action Préventive",null,null,"Action de secours",null,"Info D",null,{"$f":"IF(M846=\"\",\"\",IF(M846=1,\"Non\",\"Oui\"))","v":""}]
[]
["N° AC :","Aspect Critique"]
[null,null,"Cause",null,"Prob","Effet",null,null,"Grav","Acceptabilité"]
["Risque 1",null,null,null,null,null,null,null,null,null,null,null,{"$f":"IFERROR(VLOOKUP(CONCATENATE(E851,I851),Pro_Grav,2,FALSE),\"\")","v":""}]
[null,null,"Action Préventive",null,null,"Action de secours",null,"Info D",null,{"$f":"IF(M851=\"\",\"\",IF(M851=1,\"Non\",\"Oui\"))","v":""}]
["Risque 2",null,"Cause",null,"Prob","Effet",null,null,"Grav","Acceptabilité"]
[null,null,null,null,null,null,null,null,null,null,null,null,{"$f":"IFERROR(VLOOKUP(CONCATENATE(E854,I854),Pro_Grav,2,FALSE),\"\")","v":""}]
[null,null,"Action Préventive",null,null,"Action de secours",null,"Info D",null,{"$f":"IF(M854=\"\",\"\",IF(M854=1,\"Non\",\"Oui\"))","v":""}]
["Risque 3",null,"Cause",null,"Prob","Effet",null,null,"Grav","Acceptabilité"]
[null,null,null,null,null,null,null,null,null,null,null,null,{"$f":"IFERROR(VLOOKUP(CONCATENATE(E857,I857),Pro_Grav,2,FALSE),\"\")","v":""}]
[null,null,"Action Préventive",null,null,"Action de secours",null,"Info D",null,{"$f":"IF(M857=\"\",\"\",IF(M857=1,\"Non\",\"Oui\"))","v":""}]
[]
["N° AC :","Aspect Critique"]
[null,null,"Cause",null,"Prob","Effet",null,null,"Grav","Acceptabilité"]
["Risque 1",null,null,null,null,null,null,null,null,null,null,null,{"$f":"IFERROR(VLOOKUP(CONCATENATE(E862,I862),Pro_Grav,2,FALSE),\"\")","v":""}]
[null,null,"Action Préventive",null,null,"Action de secours",null,"Info D",null,{"$f":"IF(M862=\"\",\"\",IF(M862=1,\"Non\",\"Oui\"))","v":""}]
["Risque 2",null,"Cause",null,"Prob","Effet",null,null,"Grav","Acceptabilité"]
[null,null,null,null,null,null,null,null,null,null,null,null,{"$f":"IFERROR(VLOOKUP(CONCATENATE(E865,I865),Pro_Grav,2,FALSE),\"\")","v":""}]
[null,null,"Action Préventive",null,null,"Action de secours",null,"Info D",null,{"$f":"IF(M865=\"\",\"\",IF(M865=1,\"Non\",\"Oui\"))","v":""}]
["Risque 3",null,"Cause",null,"Prob","Effet",null,null,"Grav","Acceptabilité"]
[null,null,null,null,null,null,null,null,null,null,null,null,{"$f":"IFERROR(VLOOKUP(CONCATENATE(E868,I868),Pro_Grav,2,FALSE),\"\")","v":""}]
[null,null,"Action Préventive",null,null,"Action de secours",null,"Info D",null,{"$f":"IF(M868=\"\",\"\",IF(M868=1,\"Non\",\"Oui\"))","v":""}]
[]
["N° AC :","Aspect Critique"]
[null,null,"Cause",null,"Prob","Effet",null,null,"Grav","Acceptabilité"]
["Risque 1",null,null,null,null,null,null,null,null,null,null,null,{"$f":"IFERROR(VLOOKUP(CONCATENATE(E873,I873),Pro_Grav,2,FALSE),\"\")","v":""}]
[null,null,"Action Préventive",null,null,"Action de secours",null,"Info D",null,{"$f":"IF(M873=\"\",\"\",IF(M873=1,\"Non\",\"Oui\"))","v":""}]
["Risque 2",null,"Cause",null,"Prob","Effet",null,null,"Grav","Acceptabilité"]
[null,null,null,null,null,null,null,null,null,null,null,null,{"$f":"IFERROR(VLOOKUP(CONCATENATE(E876,I876),Pro_Grav,2,FALSE),\"\")","v":""}]
[null,null,"Action Préventive",null,null,"Action de secours",null,"Info D",null,{"$f":"IF(M876=\"\",\"\",IF(M876=1,\"Non\",\"Oui\"))","v":""}]
["Risque 3",null,"Cause",null,"Prob","Effet",null,null,"Grav","Acceptabilité"]
[null,null,null,null,null,null,null,null,null,null,null,null,{"$f":"IFERROR(VLOOKUP(CONCATENATE(E879,I879),Pro_Grav,2,FALSE),\"\")","v":""}]
[null,null,"Action Préventive",null,null,"Action de secours",null,"Info D",null,{"$f":"IF(M879=\"\",\"\",IF(M879=1,\"Non\",\"Oui\"))","v":""}]
[]
["N° AC :","Aspect Critique"]
[null,null,"Cause",null,"Prob","Effet",null,null,"Grav","Acceptabilité"]
["Risque 1",null,null,null,null,null,null,null,null,null,null,null,{"$f":"IFERROR(VLOOKUP(CONCATENATE(E884,I884),Pro_Grav,2,FALSE),\"\")","v":""}]
[null,null,"Action Préventive",null,null,"Action de secours",null,"Info D",null,{"$f":"IF(M884=\"\",\"\",IF(M884=1,\"Non\",\"Oui\"))","v":""}]
["Risque 2",null,"Cause",null,"Prob","Effet",null,null,"Grav","Acceptabilité"]
[null,null,null,null,null,null,null,null,null,null,null,null,{"$f":"IFERROR(VLOOKUP(CONCATENATE(E887,I887),Pro_Grav,2,FALSE),\"\")","v":""}]
[null,null,"Action Préventive",null,null,"Action de secours",null,"Info D",null,{"$f":"IF(M887=\"\",\"\",IF(M887=1,\"Non\",\"Oui\"))","v":""}]
["Risque 3",null,"Cause",null,"Prob","Effet",null,null,"Grav","Acceptabilité"]
[null,null,null,null,null,null,null,null,null,null,null,null,{"$f":"IFERROR(VLOOKUP(CONCATENATE(E890,I890),Pro_Grav,2,FALSE),\"\")","v":""}]
[null,null,"Action Préventive",null,null,"Action de secours",null,"Info D",null,{"$f":"IF(M890=\"\",\"\",IF(M890=1,\"Non\",\"Oui\"))","v":""}]
[]
["N° AC :","Aspect Critique"]
[null,null,"Cause",null,"Prob","Effet",null,null,"Grav","Acceptabilité"]
["Risque 1",null,null,null,null,null,null,null,null,null,null,null,{"$f":"IFERROR(VLOOKUP(CONCATENATE(E895,I895),Pro_Grav,2,FALSE),\"\")","v":""}]
[null,null,"Action Préventive",null,null,"Action de secours",null,"Info D",null,{"$f":"IF(M895=\"\",\"\",IF(M895=1,\"Non\",\"Oui\"))","v":""}]
["Risque 2",null,"Cause",null,"Prob","Effet",null,null,"Grav","Acceptabilité"]
[null,null,null,null,null,null,null,null,null,null,null,null,{"$f":"IFERROR(VLOOKUP(CONCATENATE(E898,I898),Pro_Grav,2,FALSE),\"\")","v":""}]
[null,null,"Action Préventive",null,null,"Action de secours",null,"Info D",null,{"$f":"IF(M898=\"\",\"\",IF(M898=1,\"Non\",\"Oui\"))","v":""}]
["Risque 3",null,"Cause",null,"Prob","Effet",null,null,"Grav","Acceptabilité"]
[null,null,null,null,null,null,null,null,null,null,null,null,{"$f":"IFERROR(VLOOKUP(CONCATENATE(E901,I901),Pro_Grav,2,FALSE),\"\")","v":""}]
[null,null,"Action Préventive",null,null,"Action de secours",null,"Info D",null,{"$f":"IF(M901=\"\",\"\",IF(M901=1,\"Non\",\"Oui\"))","v":""}]
[]
["N° AC :","Aspect Critique"]
[null,null,"Cause",null,"Prob","Effet",null,null,"Grav","Acceptabilité"]
["Risque 1",null,null,null,null,null,null,null,null,null,null,null,{"$f":"IFERROR(VLOOKUP(CONCATENATE(E906,I906),Pro_Grav,2,FALSE),\"\")","v":""}]
[null,null,"Action Préventive",null,null,"Action de secours",null,"Info D",null,{"$f":"IF(M906=\"\",\"\",IF(M906=1,\"Non\",\"Oui\"))","v":""}]
["Risque 2",null,"Cause",null,"Prob","Effet",null,null,"Grav","Acceptabilité"]
[null,null,null,null,null,null,null,null,null,null,null,null,{"$f":"IFERROR(VLOOKUP(CONCATENATE(E909,I909),Pro_Grav,2,FALSE),\"\")","v":""}]
[null,null,"Action Préventive",null,null,"Action de secours",null,"Info D",null,{"$f":"IF(M909=\"\",\"\",IF(M909=1,\"Non\",\"Oui\"))","v":""}]
["Risque 3",null,"Cause",null,"Prob","Effet",null,null,"Grav","Acceptabilité"]
[null,null,null,null,null,null,null,null,null,null,null,null,{"$f":"IFERROR(VLOOKUP(CONCATENATE(E912,I912),Pro_Grav,2,FALSE),\"\")","v":""}]
[null,null,"Action Préventive",null,null,"Action de secours",null,"Info D",null,{"$f":"IF(M912=\"\",\"\",IF(M912=1,\"Non\",\"Oui\"))","v":""}]
[]
["N° AC :","Aspect Critique"]
[null,null,"Cause",null,"Prob","Effet",null,null,"Grav","Acceptabilité"]
["Risque 1",null,null,null,null,null,null,null,null,null,null,null,{"$f":"IFERROR(VLOOKUP(CONCATENATE(E917,I917),Pro_Grav,2,FALSE),\"\")","v":""}]
[null,null,"Action Préventive",null,null,"Action de secours",null,"Info D",null,{"$f":"IF(M917=\"\",\"\",IF(M917=1,\"Non\",\"Oui\"))","v":""}]
["Risque 2",null,"Cause",null,"Prob","Effet",null,null,"Grav","Acceptabilité"]
[null,null,null,null,null,null,null,null,null,null,null,null,{"$f":"IFERROR(VLOOKUP(CONCATENATE(E920,I920),Pro_Grav,2,FALSE),\"\")","v":""}]
[null,null,"Action Préventive",null,null,"Action de secours",null,"Info D",null,{"$f":"IF(M920=\"\",\"\",IF(M920=1,\"Non\",\"Oui\"))","v":""}]
["Risque 3",null,"Cause",null,"Prob","Effet",null,null,"Grav","Acceptabilité"]
[null,null,null,null,null,null,null,null,null,null,null,null,{"$f":"IFERROR(VLOOKUP(CONCATENATE(E923,I923),Pro_Grav,2,FALSE),\"\")","v":""}]
[null,null,"Action Préventive",null,null,"Action de secours",null,"Info D",null,{"$f":"IF(M923=\"\",\"\",IF(M923=1,\"Non\",\"Oui\"))","v":""}]
[]
["N° AC :","Aspect Critique"]
[null,null,"Cause",null,"Prob","Effet",null,null,"Grav","Acceptabilité"]
["Risque 1",null,null,null,null,null,null,null,null,null,null,null,{"$f":"IFERROR(VLOOKUP(CONCATENATE(E928,I928),Pro_Grav,2,FALSE),\"\")","v":""}]
[null,null,"Action Préventive",null,null,"Action de secours",null,"Info D",null,{"$f":"IF(M928=\"\",\"\",IF(M928=1,\"Non\",\"Oui\"))","v":""}]
["Risque 2",null,"Cause",null,"Prob","Effet",null,null,"Grav","Acceptabilité"]
[null,null,null,null,null,null,null,null,null,null,null,null,{"$f":"IFERROR(VLOOKUP(CONCATENATE(E931,I931),Pro_Grav,2,FALSE),\"\")","v":""}]
[null,null,"Action Préventive",null,null,"Action de secours",null,"Info D",null,{"$f":"IF(M931=\"\",\"\",IF(M931=1,\"Non\",\"Oui\"))","v":""}]
["Risque 3",null,"Cause",null,"Prob","Effet",null,null,"Grav","Acceptabilité"]
[null,null,null,null,null,null,null,null,null,null,null,null,{"$f":"IFERROR(VLOOKUP(CONCATENATE(E934,I934),Pro_Grav,2,FALSE),\"\")","v":""}]
[null,null,"Action Préventive",null,null,"Action de secours",null,"Info D",null,{"$f":"IF(M934=\"\",\"\",IF(M934=1,\"Non\",\"Oui\"))","v":""}]
[]
["N° AC :","Aspect Critique"]
[null,null,"Cause",null,"Prob","Effet",null,null,"Grav","Acceptabilité"]
["Risque 1",null,null,null,null,null,null,null,null,null,null,null,{"$f":"IFERROR(VLOOKUP(CONCATENATE(E939,I939),Pro_Grav,2,FALSE),\"\")","v":""}]
[null,null,"Action Préventive",null,null,"Action de secours",null,"Info D",null,{"$f":"IF(M939=\"\",\"\",IF(M939=1,\"Non\",\"Oui\"))","v":""}]
["Risque 2",null,"Cause",null,"Prob","Effet",null,null,"Grav","Acceptabilité"]
[null,null,null,null,null,null,null,null,null,null,null,null,{"$f":"IFERROR(VLOOKUP(CONCATENATE(E942,I942),Pro_Grav,2,FALSE),\"\")","v":""}]
[null,null,"Action Préventive",null,null,"Action de secours",null,"Info D",null,{"$f":"IF(M942=\"\",\"\",IF(M942=1,\"Non\",\"Oui\"))","v":""}]
["Risque 3",null,"Cause",null,"Prob","Effet",null,null,"Grav","Acceptabilité"]
[null,null,null,null,null,null,null,null,null,null,null,null,{"$f":"IFERROR(VLOOKUP(CONCATENATE(E945,I945),Pro_Grav,2,FALSE),\"\")","v":""}]
[null,null,"Action Préventive",null,null,"Action de secours",null,"Info D",null,{"$f":"IF(M945=\"\",\"\",IF(M945=1,\"Non\",\"Oui\"))","v":""}]
[]
["N° AC :","Aspect Critique"]
[null,null,"Cause",null,"Prob","Effet",null,null,"Grav","Acceptabilité"]
["Risque 1",null,null,null,null,null,null,null,null,null,null,null,{"$f":"IFERROR(VLOOKUP(CONCATENATE(E950,I950),Pro_Grav,2,FALSE),\"\")","v":""}]
[null,null,"Action Préventive",null,null,"Action de secours",null,"Info D",null,{"$f":"IF(M950=\"\",\"\",IF(M950=1,\"Non\",\"Oui\"))","v":""}]
["Risque 2",null,"Cause",null,"Prob","Effet",null,null,"Grav","Acceptabilité"]
[null,null,null,null,null,null,null,null,null,null,null,null,{"$f":"IFERROR(VLOOKUP(CONCATENATE(E953,I953),Pro_Grav,2,FALSE),\"\")","v":""}]
[null,null,"Action Préventive",null,null,"Action de secours",null,"Info D",null,{"$f":"IF(M953=\"\",\"\",IF(M953=1,\"Non\",\"Oui\"))","v":""}]
["Risque 3",null,"Cause",null,"Prob","Effet",null,null,"Grav","Acceptabilité"]
[null,null,null,null,null,null,null,null,null,null,null,null,{"$f":"IFERROR(VLOOKUP(CONCATENATE(E956,I956),Pro_Grav,2,FALSE),\"\")","v":""}]
[null,null,"Action Préventive",null,null,"Action de secours",null,"Info D",null,{"$f":"IF(M956=\"\",\"\",IF(M956=1,\"Non\",\"Oui\"))","v":""}]
[]
["N° AC :","Aspect Critique"]
[null,null,"Cause",null,"Prob","Effet",null,null,"Grav","Acceptabilité"]
["Risque 1",null,null,null,null,null,null,null,null,null,null,null,{"$f":"IFERROR(VLOOKUP(CONCATENATE(E961,I961),Pro_Grav,2,FALSE),\"\")","v":""}]
[null,null,"Action Préventive",null,null,"Action de secours",null,"Info D",null,{"$f":"IF(M961=\"\",\"\",IF(M961=1,\"Non\",\"Oui\"))","v":""}]
["Risque 2",null,"Cause",null,"Prob","Effet",null,null,"Grav","Acceptabilité"]
[null,null,null,null,null,null,null,null,null,null,null,null,{"$f":"IFERROR(VLOOKUP(CONCATENATE(E964,I964),Pro_Grav,2,FALSE),\"\")","v":""}]
[null,null,"Action Préventive",null,null,"Action de secours",null,"Info D",null,{"$f":"IF(M964=\"\",\"\",IF(M964=1,\"Non\",\"Oui\"))","v":""}]
["Risque 3",null,"Cause",null,"Prob","Effet",null,null,"Grav","Acceptabilité"]
[null,null,null,null,null,null,null,null,null,null,null,null,{"$f":"IFERROR(VLOOKUP(CONCATENATE(E967,I967),Pro_Grav,2,FALSE),\"\")","v":""}]
[null,null,"Action Préventive",null,null,"Action de secours",null,"Info D",null,{"$f":"IF(M967=\"\",\"\",IF(M967=1,\"Non\",\"Oui\"))","v":""}]
[]
["N° AC :","Aspect Critique"]
[null,null,"Cause",null,"Prob","Effet",null,null,"Grav","Acceptabilité"]
["Risque 1",null,null,null,null,null,null,null,null,null,null,null,{"$f":"IFERROR(VLOOKUP(CONCATENATE(E972,I972),Pro_Grav,2,FALSE),\"\")","v":""}]
[null,null,"Action Préventive",null,null,"Action de secours",null,"Info D",null,{"$f":"IF(M972=\"\",\"\",IF(M972=1,\"Non\",\"Oui\"))","v":""}]
["Risque 2",null,"Cause",null,"Prob","Effet",null,null,"Grav","Acceptabilité"]
[null,null,null,null,null,null,null,null,null,null,null,null,{"$f":"IFERROR(VLOOKUP(CONCATENATE(E975,I975),Pro_Grav,2,FALSE),\"\")","v":""}]
[null,null,"Action Préventive",null,null,"Action de secours",null,"Info D",null,{"$f":"IF(M975=\"\",\"\",IF(M975=1,\"Non\",\"Oui\"))","v":""}]
["Risque 3",null,"Cause",null,"Prob","Effet",null,null,"Grav","Acceptabilité"]
[null,null,null,null,null,null,null,null,null,null,null,null,{"$f":"IFERROR(VLOOKUP(CONCATENATE(E978,I978),Pro_Grav,2,FALSE),\"\")","v":""}]
[null,null,"Action Préventive",null,null,"Action de secours",null,"Info D",null,{"$f":"IF(M978=\"\",\"\",IF(M978=1,\"Non\",\"Oui\"))","v":""}]
[]
["N° AC :","Aspect Critique"]
[null,null,"Cause",null,"Prob","Effet",null,null,"Grav","Acceptabilité"]
["Risque 1",null,null,null,null,null,null,null,null,null,null,null,{"$f":"IFERROR(VLOOKUP(CONCATENATE(E983,I983),Pro_Grav,2,FALSE),\"\")","v":""}]
[null,null,"Action Préventive",null,null,"Action de secours",null,"Info D",null,{"$f":"IF(M983=\"\",\"\",IF(M983=1,\"Non\",\"Oui\"))","v":""}]
["Risque 2",null,"Cause",null,"Prob","Effet",null,null,"Grav","Acceptabilité"]
[null,null,null,null,null,null,null,null,null,null,null,null,{"$f":"IFERROR(VLOOKUP(CONCATENATE(E986,I986),Pro_Grav,2,FALSE),\"\")","v":""}]
[null,null,"Action Préventive",null,null,"Action de secours",null,"Info D",null,{"$f":"IF(M986=\"\",\"\",IF(M986=1,\"Non\",\"Oui\"))","v":""}]
["Risque 3",null,"Cause",null,"Prob","Effet",null,null,"Grav","Acceptabilité"]
[null,null,null,null,null,null,null,null,null,null,null,null,{"$f":"IFERROR(VLOOKUP(CONCATENATE(E989,I989),Pro_Grav,2,FALSE),\"\")","v":""}]
[null,null,"Action Préventive",null,null,"Action de secours",null,"Info D",null,{"$f":"IF(M989=\"\",\"\",IF(M989=1,\"Non\",\"Oui\"))","v":""}]
[]
["N° AC :","Aspect Critique"]
[null,null,"Cause",null,"Prob","Effet",null,null,"Grav","Acceptabilité"]
["Risque 1",null,null,null,null,null,null,null,null,null,null,null,{"$f":"IFERROR(VLOOKUP(CONCATENATE(E994,I994),Pro_Grav,2,FALSE),\"\")","v":""}]
[null,null,"Action Préventive",null,null,"Action de secours",null,"Info D",null,{"$f":"IF(M994=\"\",\"\",IF(M994=1,\"Non\",\"Oui\"))","v":""}]
["Risque 2",null,"Cause",null,"Prob","Effet",null,null,"Grav","Acceptabilité"]
[null,null,null,null,null,null,null,null,null,null,null,null,{"$f":"IFERROR(VLOOKUP(CONCATENATE(E997,I997),Pro_Grav,2,FALSE),\"\")","v":""}]
[null,null,"Action Préventive",null,null,"Action de secours",null,"Info D",null,{"$f":"IF(M997=\"\",\"\",IF(M997=1,\"Non\",\"Oui\"))","v":""}]
["Risque 3",null,"Cause",null,"Prob","Effet",null,null,"Grav","Acceptabilité"]
[null,null,null,null,null,null,null,null,null,null,null,null,{"$f":"IFERROR(VLOOKUP(CONCATENATE(E1000,I1000),Pro_Grav,2,FALSE),\"\")","v":""}]
[null,null,"Action Préventive",null,null,"Action de secours",null,"Info D",null,{"$f":"IF(M1000=\"\",\"\",IF(M1000=1,\"Non\",\"Oui\"))","v":""}]
[]
["N° AC :","Aspect Critique"]
[null,null,"Cause",null,"Prob","Effet",null,null,"Grav","Acceptabilité"]
["Risque 1",null,null,null,null,null,null,null,null,null,null,null,{"$f":"IFERROR(VLOOKUP(CONCATENATE(E1005,I1005),Pro_Grav,2,FALSE),\"\")","v":""}]
[null,null,"Action Préventive",null,null,"Action de secours",null,"Info D",null,{"$f":"IF(M1005=\"\",\"\",IF(M1005=1,\"Non\",\"Oui\"))","v":""}]
["Risque 2",null,"Cause",null,"Prob","Effet",null,null,"Grav","Acceptabilité"]
[null,null,null,null,null,null,null,null,null,null,null,null,{"$f":"IFERROR(VLOOKUP(CONCATENATE(E1008,I1008),Pro_Grav,2,FALSE),\"\")","v":""}]
[null,null,"Action Préventive",null,null,"Action de secours",null,"Info D",null,{"$f":"IF(M1008=\"\",\"\",IF(M1008=1,\"Non\",\"Oui\"))","v":""}]
["Risque 3",null,"Cause",null,"Prob","Effet",null,null,"Grav","Acceptabilité"]
[null,null,null,null,null,null,null,null,null,null,null,null,{"$f":"IFERROR(VLOOKUP(CONCATENATE(E1011,I1011),Pro_Grav,2,FALSE),\"\")","v":""}]
[null,null,"Action Préventive",null,null,"Action de secours",null,"Info D",null,{"$f":"IF(M1011=\"\",\"\",IF(M1011=1,\"Non\",\"Oui\"))","v":""}]
[]
["N° AC :","Aspect Critique"]
[null,null,"Cause",null,"Prob","Effet",null,null,"Grav","Acceptabilité"]
["Risque 1",null,null,null,null,null,null,null,null,null,null,null,{"$f":"IFERROR(VLOOKUP(CONCATENATE(E1016,I1016),Pro_Grav,2,FALSE),\"\")","v":""}]
[null,null,"Action Préventive",null,null,"Action de secours",null,"Info D",null,{"$f":"IF(M1016=\"\",\"\",IF(M1016=1,\"Non\",\"Oui\"))","v":""}]
["Risque 2",null,"Cause",null,"Prob","Effet",null,null,"Grav","Acceptabilité"]
[null,null,null,null,null,null,null,null,null,null,null,null,{"$f":"IFERROR(VLOOKUP(CONCATENATE(E1019,I1019),Pro_Grav,2,FALSE),\"\")","v":""}]
[null,null,"Action Préventive",null,null,"Action de secours",null,"Info D",null,{"$f":"IF(M1019=\"\",\"\",IF(M1019=1,\"Non\",\"Oui\"))","v":""}]
["Risque 3",null,"Cause",null,"Prob","Effet",null,null,"Grav","Acceptabilité"]
[null,null,null,null,null,null,null,null,null,null,null,null,{"$f":"IFERROR(VLOOKUP(CONCATENATE(E1022,I1022),Pro_Grav,2,FALSE),\"\")","v":""}]
[null,null,"Action Préventive",null,null,"Action de secours",null,"Info D",null,{"$f":"IF(M1022=\"\",\"\",IF(M1022=1,\"Non\",\"Oui\"))","v":""}]
[]
["N° AC :","Aspect Critique"]
[null,null,"Cause",null,"Prob","Effet",null,null,"Grav","Acceptabilité"]
["Risque 1",null,null,null,null,null,null,null,null,null,null,null,{"$f":"IFERROR(VLOOKUP(CONCATENATE(E1027,I1027),Pro_Grav,2,FALSE),\"\")","v":""}]
[null,null,"Action Préventive",null,null,"Action de secours",null,"Info D",null,{"$f":"IF(M1027=\"\",\"\",IF(M1027=1,\"Non\",\"Oui\"))","v":""}]
["Risque 2",null,"Cause",null,"Prob","Effet",null,null,"Grav","Acceptabilité"]
[null,null,null,null,null,null,null,null,null,null,null,null,{"$f":"IFERROR(VLOOKUP(CONCATENATE(E1030,I1030),Pro_Grav,2,FALSE),\"\")","v":""}]
[null,null,"Action Préventive",null,null,"Action de secours",null,"Info D",null,{"$f":"IF(M1030=\"\",\"\",IF(M1030=1,\"Non\",\"Oui\"))","v":""}]
["Risque 3",null,"Cause",null,"Prob","Effet",null,null,"Grav","Acceptabilité"]
[null,null,null,null,null,null,null,null,null,null,null,null,{"$f":"IFERROR(VLOOKUP(CONCATENATE(E1033,I1033),Pro_Grav,2,FALSE),\"\")","v":""}]
[null,null,"Action Préventive",null,null,"Action de secours",null,"Info D",null,{"$f":"IF(M1033=\"\",\"\",IF(M1033=1,\"Non\",\"Oui\"))","v":""}]
[]
["N° AC :","Aspect Critique"]
[null,null,"Cause",null,"Prob","Effet",null,null,"Grav","Acceptabilité"]
["Risque 1",null,null,null,null,null,null,null,null,null,null,null,{"$f":"IFERROR(VLOOKUP(CONCATENATE(E1038,I1038),Pro_Grav,2,FALSE),\"\")","v":""}]
[null,null,"Action Préventive",null,null,"Action de secours",null,"Info D",null,{"$f":"IF(M1038=\"\",\"\",IF(M1038=1,\"Non\",\"Oui\"))","v":""}]
["Risque 2",null,"Cause",null,"Prob","Effet",null,null,"Grav","Acceptabilité"]
[null,null,null,null,null,null,null,null,null,null,null,null,{"$f":"IFERROR(VLOOKUP(CONCATENATE(E1041,I1041),Pro_Grav,2,FALSE),\"\")","v":""}]
[null,null,"Action Préventive",null,null,"Action de secours",null,"Info D",null,{"$f":"IF(M1041=\"\",\"\",IF(M1041=1,\"Non\",\"Oui\"))","v":""}]
["Risque 3",null,"Cause",null,"Prob","Effet",null,null,"Grav","Acceptabilité"]
[null,null,null,null,null,null,null,null,null,null,null,null,{"$f":"IFERROR(VLOOKUP(CONCATENATE(E1044,I1044),Pro_Grav,2,FALSE),\"\")","v":""}]
[null,null,"Action Préventive",null,null,"Action de secours",null,"Info D",null,{"$f":"IF(M1044=\"\",\"\",IF(M1044=1,\"Non\",\"Oui\"))","v":""}]
[]
["N° AC :","Aspect Critique"]
[null,null,"Cause",null,"Prob","Effet",null,null,"Grav","Acceptabilité"]
["Risque 1",null,null,null,null,null,null,null,null,null,null,null,{"$f":"IFERROR(VLOOKUP(CONCATENATE(E1049,I1049),Pro_Grav,2,FALSE),\"\")","v":""}]
[null,null,"Action Préventive",null,null,"Action de secours",null,"Info D",null,{"$f":"IF(M1049=\"\",\"\",IF(M1049=1,\"Non\",\"Oui\"))","v":""}]
["Risque 2",null,"Cause",null,"Prob","Effet",null,null,"Grav","Acceptabilité"]
[null,null,null,null,null,null,null,null,null,null,null,null,{"$f":"IFERROR(VLOOKUP(CONCATENATE(E1052,I1052),Pro_Grav,2,FALSE),\"\")","v":""}]
[null,null,"Action Préventive",null,null,"Action de secours",null,"Info D",null,{"$f":"IF(M1052=\"\",\"\",IF(M1052=1,\"Non\",\"Oui\"))","v":""}]
["Risque 3",null,"Cause",null,"Prob","Effet",null,null,"Grav","Acceptabilité"]
[null,null,null,null,null,null,null,null,null,null,null,null,{"$f":"IFERROR(VLOOKUP(CONCATENATE(E1055,I1055),Pro_Grav,2,FALSE),\"\")","v":""}]
[null,null,"Action Préventive",null,null,"Action de secours",null,"Info D",null,{"$f":"IF(M1055=\"\",\"\",IF(M1055=1,\"Non\",\"Oui\"))","v":""}]
[]
["N° AC :","Aspect Critique"]
[null,null,"Cause",null,"Prob","Effet",null,null,"Grav","Acceptabilité"]
["Risque 1",null,null,null,null,null,null,null,null,null,null,null,{"$f":"IFERROR(VLOOKUP(CONCATENATE(E1060,I1060),Pro_Grav,2,FALSE),\"\")","v":""}]
[null,null,"Action Préventive",null,null,"Action de secours",null,"Info D",null,{"$f":"IF(M1060=\"\",\"\",IF(M1060=1,\"Non\",\"Oui\"))","v":""}]
["Risque 2",null,"Cause",null,"Prob","Effet",null,null,"Grav","Acceptabilité"]
[null,null,null,null,null,null,null,null,null,null,null,null,{"$f":"IFERROR(VLOOKUP(CONCATENATE(E1063,I1063),Pro_Grav,2,FALSE),\"\")","v":""}]
[null,null,"Action Préventive",null,null,"Action de secours",null,"Info D",null,{"$f":"IF(M1063=\"\",\"\",IF(M1063=1,\"Non\",\"Oui\"))","v":""}]
["Risque 3",null,"Cause",null,"Prob","Effet",null,null,"Grav","Acceptabilité"]
[null,null,null,null,null,null,null,null,null,null,null,null,{"$f":"IFERROR(VLOOKUP(CONCATENATE(E1066,I1066),Pro_Grav,2,FALSE),\"\")","v":""}]
[null,null,"Action Préventive",null,null,"Action de secours",null,"Info D",null,{"$f":"IF(M1066=\"\",\"\",IF(M1066=1,\"Non\",\"Oui\"))","v":""}]
[]
["N° AC :","Aspect Critique"]
[null,null,"Cause",null,"Prob","Effet",null,null,"Grav","Acceptabilité"]
["Risque 1",null,null,null,null,null,null,null,null,null,null,null,{"$f":"IFERROR(VLOOKUP(CONCATENATE(E1071,I1071),Pro_Grav,2,FALSE),\"\")","v":""}]
[null,null,"Action Préventive",null,null,"Action de secours",null,"Info D",null,{"$f":"IF(M1071=\"\",\"\",IF(M1071=1,\"Non\",\"Oui\"))","v":""}]
["Risque 2",null,"Cause",null,"Prob","Effet",null,null,"Grav","Acceptabilité"]
[null,null,null,null,null,null,null,null,null,null,null,null,{"$f":"IFERROR(VLOOKUP(CONCATENATE(E1074,I1074),Pro_Grav,2,FALSE),\"\")","v":""}]
[null,null,"Action Préventive",null,null,"Action de secours",null,"Info D",null,{"$f":"IF(M1074=\"\",\"\",IF(M1074=1,\"Non\",\"Oui\"))","v":""}]
["Risque 3",null,"Cause",null,"Prob","Effet",null,null,"Grav","Acceptabilité"]
[null,null,null,null,null,null,null,null,null,null,null,null,{"$f":"IFERROR(VLOOKUP(CONCATENATE(E1077,I1077),Pro_Grav,2,FALSE),\"\")","v":""}]
[null,null,"Action Préventive",null,null,"Action de secours",null,"Info D",null,{"$f":"IF(M1077=\"\",\"\",IF(M1077=1,\"Non\",\"Oui\"))","v":""}]
[]
["N° AC :","Aspect Critique"]
[null,null,"Cause",null,"Prob","Effet",null,null,"Grav","Acceptabilité"]
["Risque 1",null,null,null,null,null,null,null,null,null,null,null,{"$f":"IFERROR(VLOOKUP(CONCATENATE(E1082,I1082),Pro_Grav,2,FALSE),\"\")","v":""}]
[null,null,"Action Préventive",null,null,"Action de secours",null,"Info D",null,{"$f":"IF(M1082=\"\",\"\",IF(M1082=1,\"Non\",\"Oui\"))","v":""}]
["Risque 2",null,"Cause",null,"Prob","Effet",null,null,"Grav","Acceptabilité"]
[null,null,null,null,null,null,null,null,null,null,null,null,{"$f":"IFERROR(VLOOKUP(CONCATENATE(E1085,I1085),Pro_Grav,2,FALSE),\"\")","v":""}]
[null,null,"Action Préventive",null,null,"Action de secours",null,"Info D",null,{"$f":"IF(M1085=\"\",\"\",IF(M1085=1,\"Non\",\"Oui\"))","v":""}]
["Risque 3",null,"Cause",null,"Prob","Effet",null,null,"Grav","Acceptabilité"]
[null,null,null,null,null,null,null,null,null,null,null,null,{"$f":"IFERROR(VLOOKUP(CONCATENATE(E1088,I1088),Pro_Grav,2,FALSE),\"\")","v":""}]
[null,null,"Action Préventive",null,null,"Action de secours",null,"Info D",null,{"$f":"IF(M1088=\"\",\"\",IF(M1088=1,\"Non\",\"Oui\"))","v":""}]
[]
["N° AC :","Aspect Critique"]
[null,null,"Cause",null,"Prob","Effet",null,null,"Grav","Acceptabilité"]
["Risque 1",null,null,null,null,null,null,null,null,null,null,null,{"$f":"IFERROR(VLOOKUP(CONCATENATE(E1093,I1093),Pro_Grav,2,FALSE),\"\")","v":""}]
[null,null,"Action Préventive",null,null,"Action de secours",null,"Info D",null,{"$f":"IF(M1093=\"\",\"\",IF(M1093=1,\"Non\",\"Oui\"))","v":""}]
["Risque 2",null,"Cause",null,"Prob","Effet",null,null,"Grav","Acceptabilité"]
[null,null,null,null,null,null,null,null,null,null,null,null,{"$f":"IFERROR(VLOOKUP(CONCATENATE(E1096,I1096),Pro_Grav,2,FALSE),\"\")","v":""}]
[null,null,"Action Préventive",null,null,"Action de secours",null,"Info D",null,{"$f":"IF(M1096=\"\",\"\",IF(M1096=1,\"Non\",\"Oui\"))","v":""}]
["Risque 3",null,"Cause",null,"Prob","Effet",null,null,"Grav","Acceptabilité"]
[null,null,null,null,null,null,null,null,null,null,null,null,{"$f":"IFERROR(VLOOKUP(CONCATENATE(E1099,I1099),Pro_Grav,2,FALSE),\"\")","v":""}]
[null,null,"Action Préventive",null,null,"Action de secours",null,"Info D",null,{"$f":"IF(M1099=\"\",\"\",IF(M1099=1,\"Non\",\"Oui\"))","v":""}]
[]
["N° AC :","Aspect Critique"]
[null,null,"Cause",null,"Prob","Effet",null,null,"Grav","Acceptabilité"]
["Risque 1",null,null,null,null,null,null,null,null,null,null,null,{"$f":"IFERROR(VLOOKUP(CONCATENATE(E1104,I1104),Pro_Grav,2,FALSE),\"\")","v":""}]
[null,null,"Action Préventive",null,null,"Action de secours",null,"Info D",null,{"$f":"IF(M1104=\"\",\"\",IF(M1104=1,\"Non\",\"Oui\"))","v":""}]
["Risque 2",null,"Cause",null,"Prob","Effet",null,null,"Grav","Acceptabilité"]
[null,null,null,null,null,null,null,null,null,null,null,null,{"$f":"IFERROR(VLOOKUP(CONCATENATE(E1107,I1107),Pro_Grav,2,FALSE),\"\")","v":""}]
[null,null,"Action Préventive",null,null,"Action de secours",null,"Info D",null,{"$f":"IF(M1107=\"\",\"\",IF(M1107=1,\"Non\",\"Oui\"))","v":""}]
["Risque 3",null,"Cause",null,"Prob","Effet",null,null,"Grav","Acceptabilité"]
[null,null,null,null,null,null,null,null,null,null,null,null,{"$f":"IFERROR(VLOOKUP(CONCATENATE(E1110,I1110),Pro_Grav,2,FALSE),\"\")","v":""}]
[null,null,"Action Préventive",null,null,"Action de secours",null,"Info D",null,{"$f":"IF(M1110=\"\",\"\",IF(M1110=1,\"Non\",\"Oui\"))","v":""}]
[]
["N° AC :","Aspect Critique"]
[null,null,"Cause",null,"Prob","Effet",null,null,"Grav","Acceptabilité"]
["Risque 1",null,null,null,null,null,null,null,null,null,null,null,{"$f":"IFERROR(VLOOKUP(CONCATENATE(E1115,I1115),Pro_Grav,2,FALSE),\"\")","v":""}]
[null,null,"Action Préventive",null,null,"Action de secours",null,"Info D",null,{"$f":"IF(M1115=\"\",\"\",IF(M1115=1,\"Non\",\"Oui\"))","v":""}]
["Risque 2",null,"Cause",null,"Prob","Effet",null,null,"Grav","Acceptabilité"]
[null,null,null,null,null,null,null,null,null,null,null,null,{"$f":"IFERROR(VLOOKUP(CONCATENATE(E1118,I1118),Pro_Grav,2,FALSE),\"\")","v":""}]
[null,null,"Action Préventive",null,null,"Action de secours",null,"Info D",null,{"$f":"IF(M1118=\"\",\"\",IF(M1118=1,\"Non\",\"Oui\"))","v":""}]
["Risque 3",null,"Cause",null,"Prob","Effet",null,null,"Grav","Acceptabilité"]
[null,null,null,null,null,null,null,null,null,null,null,null,{"$f":"IFERROR(VLOOKUP(CONCATENATE(E1121,I1121),Pro_Grav,2,FALSE),\"\")","v":""}]
[null,null,"Action Préventive",null,null,"Action de secours",null,"Info D",null,{"$f":"IF(M1121=\"\",\"\",IF(M1121=1,\"Non\",\"Oui\"))","v":""}]
[]
["N° AC :","Aspect Critique"]
[null,null,"Cause",null,"Prob","Effet",null,null,"Grav","Acceptabilité"]
["Risque 1",null,null,null,null,null,null,null,null,null,null,null,{"$f":"IFERROR(VLOOKUP(CONCATENATE(E1126,I1126),Pro_Grav,2,FALSE),\"\")","v":""}]
[null,null,"Action Préventive",null,null,"Action de secours",null,"Info D",null,{"$f":"IF(M1126=\"\",\"\",IF(M1126=1,\"Non\",\"Oui\"))","v":""}]
["Risque 2",null,"Cause",null,"Prob","Effet",null,null,"Grav","Acceptabilité"]
[null,null,null,null,null,null,null,null,null,null,null,null,{"$f":"IFERROR(VLOOKUP(CONCATENATE(E1129,I1129),Pro_Grav,2,FALSE),\"\")","v":""}]
[null,null,"Action Préventive",null,null,"Action de secours",null,"Info D",null,{"$f":"IF(M1129=\"\",\"\",IF(M1129=1,\"Non\",\"Oui\"))","v":""}]
["Risque 3",null,"Cause",null,"Prob","Effet",null,null,"Grav","Acceptabilité"]
[null,null,null,null,null,null,null,null,null,null,null,null,{"$f":"IFERROR(VLOOKUP(CONCATENATE(E1132,I1132),Pro_Grav,2,FALSE),\"\")","v":""}]
[null,null,"Action Préventive",null,null,"Action de secours",null,"Info D",null,{"$f":"IF(M1132=\"\",\"\",IF(M1132=1,\"Non\",\"Oui\"))","v":""}]
[]
["N° AC :","Aspect Critique"]
[null,null,"Cause",null,"Prob","Effet",null,null,"Grav","Acceptabilité"]
["Risque 1",null,null,null,null,null,null,null,null,null,null,null,{"$f":"IFERROR(VLOOKUP(CONCATENATE(E1137,I1137),Pro_Grav,2,FALSE),\"\")","v":""}]
[null,null,"Action Préventive",null,null,"Action de secours",null,"Info D",null,{"$f":"IF(M1137=\"\",\"\",IF(M1137=1,\"Non\",\"Oui\"))","v":""}]
["Risque 2",null,"Cause",null,"Prob","Effet",null,null,"Grav","Acceptabilité"]
[null,null,null,null,null,null,null,null,null,null,null,null,{"$f":"IFERROR(VLOOKUP(CONCATENATE(E1140,I1140),Pro_Grav,2,FALSE),\"\")","v":""}]
[null,null,"Action Préventive",null,null,"Action de secours",null,"Info D",null,{"$f":"IF(M1140=\"\",\"\",IF(M1140=1,\"Non\",\"Oui\"))","v":""}]
["Risque 3",null,"Cause",null,"Prob","Effet",null,null,"Grav","Acceptabilité"]
[null,null,null,null,null,null,null,null,null,null,null,null,{"$f":"IFERROR(VLOOKUP(CONCATENATE(E1143,I1143),Pro_Grav,2,FALSE),\"\")","v":""}]
[null,null,"Action Préventive",null,null,"Action de secours",null,"Info D",null,{"$f":"IF(M1143=\"\",\"\",IF(M1143=1,\"Non\",\"Oui\"))","v":""}]
[]
["N° AC :","Aspect Critique"]
[null,null,"Cause",null,"Prob","Effet",null,null,"Grav","Acceptabilité"]
["Risque 1",null,null,null,null,null,null,null,null,null,null,null,{"$f":"IFERROR(VLOOKUP(CONCATENATE(E1148,I1148),Pro_Grav,2,FALSE),\"\")","v":""}]
[null,null,"Action Préventive",null,null,"Action de secours",null,"Info D",null,{"$f":"IF(M1148=\"\",\"\",IF(M1148=1,\"Non\",\"Oui\"))","v":""}]
["Risque 2",null,"Cause",null,"Prob","Effet",null,null,"Grav","Acceptabilité"]
[null,null,null,null,null,null,null,null,null,null,null,null,{"$f":"IFERROR(VLOOKUP(CONCATENATE(E1151,I1151),Pro_Grav,2,FALSE),\"\")","v":""}]
[null,null,"Action Préventive",null,null,"Action de secours",null,"Info D",null,{"$f":"IF(M1151=\"\",\"\",IF(M1151=1,\"Non\",\"Oui\"))","v":""}]
["Risque 3",null,"Cause",null,"Prob","Effet",null,null,"Grav","Acceptabilité"]
[null,null,null,null,null,null,null,null,null,null,null,null,{"$f":"IFERROR(VLOOKUP(CONCATENATE(E1154,I1154),Pro_Grav,2,FALSE),\"\")","v":""}]
[null,null,"Action Préventive",null,null,"Action de secours",null,"Info D",null,{"$f":"IF(M1154=\"\",\"\",IF(M1154=1,\"Non\",\"Oui\"))","v":""}]
[]
["N° AC :","Aspect Critique"]
[null,null,"Cause",null,"Prob","Effet",null,null,"Grav","Acceptabilité"]
["Risque 1",null,null,null,null,null,null,null,null,null,null,null,{"$f":"IFERROR(VLOOKUP(CONCATENATE(E1159,I1159),Pro_Grav,2,FALSE),\"\")","v":""}]
[null,null,"Action Préventive",null,null,"Action de secours",null,"Info D",null,{"$f":"IF(M1159=\"\",\"\",IF(M1159=1,\"Non\",\"Oui\"))","v":""}]
["Risque 2",null,"Cause",null,"Prob","Effet",null,null,"Grav","Acceptabilité"]
[null,null,null,null,null,null,null,null,null,null,null,null,{"$f":"IFERROR(VLOOKUP(CONCATENATE(E1162,I1162),Pro_Grav,2,FALSE),\"\")","v":""}]
[null,null,"Action Préventive",null,null,"Action de secours",null,"Info D",null,{"$f":"IF(M1162=\"\",\"\",IF(M1162=1,\"Non\",\"Oui\"))","v":""}]
["Risque 3",null,"Cause",null,"Prob","Effet",null,null,"Grav","Acceptabilité"]
[null,null,null,null,null,null,null,null,null,null,null,null,{"$f":"IFERROR(VLOOKUP(CONCATENATE(E1165,I1165),Pro_Grav,2,FALSE),\"\")","v":""}]
[null,null,"Action Préventive",null,null,"Action de secours",null,"Info D",null,{"$f":"IF(M1165=\"\",\"\",IF(M1165=1,\"Non\",\"Oui\"))","v":""}]
[]
["N° AC :","Aspect Critique"]
[null,null,"Cause",null,"Prob","Effet",null,null,"Grav","Acceptabilité"]
["Risque 1",null,null,null,null,null,null,null,null,null,null,null,{"$f":"IFERROR(VLOOKUP(CONCATENATE(E1170,I1170),Pro_Grav,2,FALSE),\"\")","v":""}]
[null,null,"Action Préventive",null,null,"Action de secours",null,"Info D",null,{"$f":"IF(M1170=\"\",\"\",IF(M1170=1,\"Non\",\"Oui\"))","v":""}]
["Risque 2",null,"Cause",null,"Prob","Effet",null,null,"Grav","Acceptabilité"]
[null,null,null,null,null,null,null,null,null,null,null,null,{"$f":"IFERROR(VLOOKUP(CONCATENATE(E1173,I1173),Pro_Grav,2,FALSE),\"\")","v":""}]
[null,null,"Action Préventive",null,null,"Action de secours",null,"Info D",null,{"$f":"IF(M1173=\"\",\"\",IF(M1173=1,\"Non\",\"Oui\"))","v":""}]
["Risque 3",null,"Cause",null,"Prob","Effet",null,null,"Grav","Acceptabilité"]
[null,null,null,null,null,null,null,null,null,null,null,null,{"$f":"IFERROR(VLOOKUP(CONCATENATE(E1176,I1176),Pro_Grav,2,FALSE),\"\")","v":""}]
[null,null,"Action Préventive",null,null,"Action de secours",null,"Info D",null,{"$f":"IF(M1176=\"\",\"\",IF(M1176=1,\"Non\",\"Oui\"))","v":""}]
[]
["N° AC :","Aspect Critique"]
[null,null,"Cause",null,"Prob","Effet",null,null,"Grav","Acceptabilité"]
["Risque 1",null,null,null,null,null,null,null,null,null,null,null,{"$f":"IFERROR(VLOOKUP(CONCATENATE(E1181,I1181),Pro_Grav,2,FALSE),\"\")","v":""}]
[null,null,"Action Préventive",null,null,"Action de secours",null,"Info D",null,{"$f":"IF(M1181=\"\",\"\",IF(M1181=1,\"Non\",\"Oui\"))","v":""}]
["Risque 2",null,"Cause",null,"Prob","Effet",null,null,"Grav","Acceptabilité"]
[null,null,null,null,null,null,null,null,null,null,null,null,{"$f":"IFERROR(VLOOKUP(CONCATENATE(E1184,I1184),Pro_Grav,2,FALSE),\"\")","v":""}]
[null,null,"Action Préventive",null,null,"Action de secours",null,"Info D",null,{"$f":"IF(M1184=\"\",\"\",IF(M1184=1,\"Non\",\"Oui\"))","v":""}]
["Risque 3",null,"Cause",null,"Prob","Effet",null,null,"Grav","Acceptabilité"]
[null,null,null,null,null,null,null,null,null,null,null,null,{"$f":"IFERROR(VLOOKUP(CONCATENATE(E1187,I1187),Pro_Grav,2,FALSE),\"\")","v":""}]
[null,null,"Action Préventive",null,null,"Action de secours",null,"Info D",null,{"$f":"IF(M1187=\"\",\"\",IF(M1187=1,\"Non\",\"Oui\"))","v":""}]
[]
["N° AC :","Aspect Critique"]
[null,null,"Cause",null,"Prob","Effet",null,null,"Grav","Acceptabilité"]
["Risque 1",null,null,null,null,null,null,null,null,null,null,null,{"$f":"IFERROR(VLOOKUP(CONCATENATE(E1192,I1192),Pro_Grav,2,FALSE),\"\")","v":""}]
[null,null,"Action Préventive",null,null,"Action de secours",null,"Info D",null,{"$f":"IF(M1192=\"\",\"\",IF(M1192=1,\"Non\",\"Oui\"))","v":""}]
["Risque 2",null,"Cause",null,"Prob","Effet",null,null,"Grav","Acceptabilité"]
[null,null,null,null,null,null,null,null,null,null,null,null,{"$f":"IFERROR(VLOOKUP(CONCATENATE(E1195,I1195),Pro_Grav,2,FALSE),\"\")","v":""}]
[null,null,"Action Préventive",null,null,"Action de secours",null,"Info D",null,{"$f":"IF(M1195=\"\",\"\",IF(M1195=1,\"Non\",\"Oui\"))","v":""}]
["Risque 3",null,"Cause",null,"Prob","Effet",null,null,"Grav","Acceptabilité"]
[null,null,null,null,null,null,null,null,null,null,null,null,{"$f":"IFERROR(VLOOKUP(CONCATENATE(E1198,I1198),Pro_Grav,2,FALSE),\"\")","v":""}]
[null,null,"Action Préventive",null,null,"Action de secours",null,"Info D",null,{"$f":"IF(M1198=\"\",\"\",IF(M1198=1,\"Non\",\"Oui\"))","v":""}]
[]
["N° AC :","Aspect Critique"]
[null,null,"Cause",null,"Prob","Effet",null,null,"Grav","Acceptabilité"]
["Risque 1",null,null,null,null,null,null,null,null,null,null,null,{"$f":"IFERROR(VLOOKUP(CONCATENATE(E1203,I1203),Pro_Grav,2,FALSE),\"\")","v":""}]
[null,null,"Action Préventive",null,null,"Action de secours",null,"Info D",null,{"$f":"IF(M1203=\"\",\"\",IF(M1203=1,\"Non\",\"Oui\"))","v":""}]
["Risque 2",null,"Cause",null,"Prob","Effet",null,null,"Grav","Acceptabilité"]
[null,null,null,null,null,null,null,null,null,null,null,null,{"$f":"IFERROR(VLOOKUP(CONCATENATE(E1206,I1206),Pro_Grav,2,FALSE),\"\")","v":""}]
[null,null,"Action Préventive",null,null,"Action de secours",null,"Info D",null,{"$f":"IF(M1206=\"\",\"\",IF(M1206=1,\"Non\",\"Oui\"))","v":""}]
["Risque 3",null,"Cause",null,"Prob","Effet",null,null,"Grav","Acceptabilité"]
[null,null,null,null,null,null,null,null,null,null,null,null,{"$f":"IFERROR(VLOOKUP(CONCATENATE(E1209,I1209),Pro_Grav,2,FALSE),\"\")","v":""}]
[null,null,"Action Préventive",null,null,"Action de secours",null,"Info D",null,{"$f":"IF(M1209=\"\",\"\",IF(M1209=1,\"Non\",\"Oui\"))","v":""}]
[]
["N° AC :","Aspect Critique"]
[null,null,"Cause",null,"Prob","Effet",null,null,"Grav","Acceptabilité"]
["Risque 1",null,null,null,null,null,null,null,null,null,null,null,{"$f":"IFERROR(VLOOKUP(CONCATENATE(E1214,I1214),Pro_Grav,2,FALSE),\"\")","v":""}]
[null,null,"Action Préventive",null,null,"Action de secours",null,"Info D",null,{"$f":"IF(M1214=\"\",\"\",IF(M1214=1,\"Non\",\"Oui\"))","v":""}]
["Risque 2",null,"Cause",null,"Prob","Effet",null,null,"Grav","Acceptabilité"]
[null,null,null,null,null,null,null,null,null,null,null,null,{"$f":"IFERROR(VLOOKUP(CONCATENATE(E1217,I1217),Pro_Grav,2,FALSE),\"\")","v":""}]
[null,null,"Action Préventive",null,null,"Action de secours",null,"Info D",null,{"$f":"IF(M1217=\"\",\"\",IF(M1217=1,\"Non\",\"Oui\"))","v":""}]
["Risque 3",null,"Cause",null,"Prob","Effet",null,null,"Grav","Acceptabilité"]
[null,null,null,null,null,null,null,null,null,null,null,null,{"$f":"IFERROR(VLOOKUP(CONCATENATE(E1220,I1220),Pro_Grav,2,FALSE),\"\")","v":""}]
[null,null,"Action Préventive",null,null,"Action de secours",null,"Info D",null,{"$f":"IF(M1220=\"\",\"\",IF(M1220=1,\"Non\",\"Oui\"))","v":""}]
[]
["N° AC :","Aspect Critique"]
[null,null,"Cause",null,"Prob","Effet",null,null,"Grav","Acceptabilité"]
["Risque 1",null,null,null,null,null,null,null,null,null,null,null,{"$f":"IFERROR(VLOOKUP(CONCATENATE(E1225,I1225),Pro_Grav,2,FALSE),\"\")","v":""}]
[null,null,"Action Préventive",null,null,"Action de secours",null,"Info D",null,{"$f":"IF(M1225=\"\",\"\",IF(M1225=1,\"Non\",\"Oui\"))","v":""}]
["Risque 2",null,"Cause",null,"Prob","Effet",null,null,"Grav","Acceptabilité"]
[null,null,null,null,null,null,null,null,null,null,null,null,{"$f":"IFERROR(VLOOKUP(CONCATENATE(E1228,I1228),Pro_Grav,2,FALSE),\"\")","v":""}]
[null,null,"Action Préventive",null,null,"Action de secours",null,"Info D",null,{"$f":"IF(M1228=\"\",\"\",IF(M1228=1,\"Non\",\"Oui\"))","v":""}]
["Risque 3",null,"Cause",null,"Prob","Effet",null,null,"Grav","Acceptabilité"]
[null,null,null,null,null,null,null,null,null,null,null,null,{"$f":"IFERROR(VLOOKUP(CONCATENATE(E1231,I1231),Pro_Grav,2,FALSE),\"\")","v":""}]
[null,null,"Action Préventive",null,null,"Action de secours",null,"Info D",null,{"$f":"IF(M1231=\"\",\"\",IF(M1231=1,\"Non\",\"Oui\"))","v":""}]
[]
["N° AC :","Aspect Critique"]
[null,null,"Cause",null,"Prob","Effet",null,null,"Grav","Acceptabilité"]
["Risque 1",null,null,null,null,null,null,null,null,null,null,null,{"$f":"IFERROR(VLOOKUP(CONCATENATE(E1236,I1236),Pro_Grav,2,FALSE),\"\")","v":""}]
[null,null,"Action Préventive",null,null,"Action de secours",null,"Info D",null,{"$f":"IF(M1236=\"\",\"\",IF(M1236=1,\"Non\",\"Oui\"))","v":""}]
["Risque 2",null,"Cause",null,"Prob","Effet",null,null,"Grav","Acceptabilité"]
[null,null,null,null,null,null,null,null,null,null,null,null,{"$f":"IFERROR(VLOOKUP(CONCATENATE(E1239,I1239),Pro_Grav,2,FALSE),\"\")","v":""}]
[null,null,"Action Préventive",null,null,"Action de secours",null,"Info D",null,{"$f":"IF(M1239=\"\",\"\",IF(M1239=1,\"Non\",\"Oui\"))","v":""}]
["Risque 3",null,"Cause",null,"Prob","Effet",null,null,"Grav","Acceptabilité"]
[null,null,null,null,null,null,null,null,null,null,null,null,{"$f":"IFERROR(VLOOKUP(CONCATENATE(E1242,I1242),Pro_Grav,2,FALSE),\"\")","v":""}]
[null,null,"Action Préventive",null,null,"Action de secours",null,"Info D",null,{"$f":"IF(M1242=\"\",\"\",IF(M1242=1,\"Non\",\"Oui\"))","v":""}]
[]
["N° AC :","Aspect Critique"]
[null,null,"Cause",null,"Prob","Effet",null,null,"Grav","Acceptabilité"]
["Risque 1",null,null,null,null,null,null,null,null,null,null,null,{"$f":"IFERROR(VLOOKUP(CONCATENATE(E1247,I1247),Pro_Grav,2,FALSE),\"\")","v":""}]
[null,null,"Action Préventive",null,null,"Action de secours",null,"Info D",null,{"$f":"IF(M1247=\"\",\"\",IF(M1247=1,\"Non\",\"Oui\"))","v":""}]
["Risque 2",null,"Cause",null,"Prob","Effet",null,null,"Grav","Acceptabilité"]
[null,null,null,null,null,null,null,null,null,null,null,null,{"$f":"IFERROR(VLOOKUP(CONCATENATE(E1250,I1250),Pro_Grav,2,FALSE),\"\")","v":""}]
[null,null,"Action Préventive",null,null,"Action de secours",null,"Info D",null,{"$f":"IF(M1250=\"\",\"\",IF(M1250=1,\"Non\",\"Oui\"))","v":""}]
["Risque 3",null,"Cause",null,"Prob","Effet",null,null,"Grav","Acceptabilité"]
[null,null,null,null,null,null,null,null,null,null,null,null,{"$f":"IFERROR(VLOOKUP(CONCATENATE(E1253,I1253),Pro_Grav,2,FALSE),\"\")","v":""}]
[null,null,"Action Préventive",null,null,"Action de secours",null,"Info D",null,{"$f":"IF(M1253=\"\",\"\",IF(M1253=1,\"Non\",\"Oui\"))","v":""}]
[]
["N° AC :","Aspect Critique"]
[null,null,"Cause",null,"Prob","Effet",null,null,"Grav","Acceptabilité"]
["Risque 1",null,null,null,null,null,null,null,null,null,null,null,{"$f":"IFERROR(VLOOKUP(CONCATENATE(E1258,I1258),Pro_Grav,2,FALSE),\"\")","v":""}]
[null,null,"Action Préventive",null,null,"Action de secours",null,"Info D",null,{"$f":"IF(M1258=\"\",\"\",IF(M1258=1,\"Non\",\"Oui\"))","v":""}]
["Risque 2",null,"Cause",null,"Prob","Effet",null,null,"Grav","Acceptabilité"]
[null,null,null,null,null,null,null,null,null,null,null,null,{"$f":"IFERROR(VLOOKUP(CONCATENATE(E1261,I1261),Pro_Grav,2,FALSE),\"\")","v":""}]
[null,null,"Action Préventive",null,null,"Action de secours",null,"Info D",null,{"$f":"IF(M1261=\"\",\"\",IF(M1261=1,\"Non\",\"Oui\"))","v":""}]
["Risque 3",null,"Cause",null,"Prob","Effet",null,null,"Grav","Acceptabilité"]
[null,null,null,null,null,null,null,null,null,null,null,null,{"$f":"IFERROR(VLOOKUP(CONCATENATE(E1264,I1264),Pro_Grav,2,FALSE),\"\")","v":""}]
[null,null,"Action Préventive",null,null,"Action de secours",null,"Info D",null,{"$f":"IF(M1264=\"\",\"\",IF(M1264=1,\"Non\",\"Oui\"))","v":""}]
[]
["N° AC :","Aspect Critique"]
[null,null,"Cause",null,"Prob","Effet",null,null,"Grav","Acceptabilité"]
["Risque 1",null,null,null,null,null,null,null,null,null,null,null,{"$f":"IFERROR(VLOOKUP(CONCATENATE(E1269,I1269),Pro_Grav,2,FALSE),\"\")","v":""}]
[null,null,"Action Préventive",null,null,"Action de secours",null,"Info D",null,{"$f":"IF(M1269=\"\",\"\",IF(M1269=1,\"Non\",\"Oui\"))","v":""}]
["Risque 2",null,"Cause",null,"Prob","Effet",null,null,"Grav","Acceptabilité"]
[null,null,null,null,null,null,null,null,null,null,null,null,{"$f":"IFERROR(VLOOKUP(CONCATENATE(E1272,I1272),Pro_Grav,2,FALSE),\"\")","v":""}]
[null,null,"Action Préventive",null,null,"Action de secours",null,"Info D",null,{"$f":"IF(M1272=\"\",\"\",IF(M1272=1,\"Non\",\"Oui\"))","v":""}]
["Risque 3",null,"Cause",null,"Prob","Effet",null,null,"Grav","Acceptabilité"]
[null,null,null,null,null,null,null,null,null,null,null,null,{"$f":"IFERROR(VLOOKUP(CONCATENATE(E1275,I1275),Pro_Grav,2,FALSE),\"\")","v":""}]
[null,null,"Action Préventive",null,null,"Action de secours",null,"Info D",null,{"$f":"IF(M1275=\"\",\"\",IF(M1275=1,\"Non\",\"Oui\"))","v":""}]
[]
["N° AC :","Aspect Critique"]
[null,null,"Cause",null,"Prob","Effet",null,null,"Grav","Acceptabilité"]
["Risque 1",null,null,null,null,null,null,null,null,null,null,null,{"$f":"IFERROR(VLOOKUP(CONCATENATE(E1280,I1280),Pro_Grav,2,FALSE),\"\")","v":""}]
[null,null,"Action Préventive",null,null,"Action de secours",null,"Info D",null,{"$f":"IF(M1280=\"\",\"\",IF(M1280=1,\"Non\",\"Oui\"))","v":""}]
["Risque 2",null,"Cause",null,"Prob","Effet",null,null,"Grav","Acceptabilité"]
[null,null,null,null,null,null,null,null,null,null,null,null,{"$f":"IFERROR(VLOOKUP(CONCATENATE(E1283,I1283),Pro_Grav,2,FALSE),\"\")","v":""}]
[null,null,"Action Préventive",null,null,"Action de secours",null,"Info D",null,{"$f":"IF(M1283=\"\",\"\",IF(M1283=1,\"Non\",\"Oui\"))","v":""}]
["Risque 3",null,"Cause",null,"Prob","Effet",null,null,"Grav","Acceptabilité"]
[null,null,null,null,null,null,null,null,null,null,null,null,{"$f":"IFERROR(VLOOKUP(CONCATENATE(E1286,I1286),Pro_Grav,2,FALSE),\"\")","v":""}]
[null,null,"Action Préventive",null,null,"Action de secours",null,"Info D",null,{"$f":"IF(M1286=\"\",\"\",IF(M1286=1,\"Non\",\"Oui\"))","v":""}]
[]
["N° AC :","Aspect Critique"]
[null,null,"Cause",null,"Prob","Effet",null,null,"Grav","Acceptabilité"]
["Risque 1",null,null,null,null,null,null,null,null,null,null,null,{"$f":"IFERROR(VLOOKUP(CONCATENATE(E1291,I1291),Pro_Grav,2,FALSE),\"\")","v":""}]
[null,null,"Action Préventive",null,null,"Action de secours",null,"Info D",null,{"$f":"IF(M1291=\"\",\"\",IF(M1291=1,\"Non\",\"Oui\"))","v":""}]
["Risque 2",null,"Cause",null,"Prob","Effet",null,null,"Grav","Acceptabilité"]
[null,null,null,null,null,null,null,null,null,null,null,null,{"$f":"IFERROR(VLOOKUP(CONCATENATE(E1294,I1294),Pro_Grav,2,FALSE),\"\")","v":""}]
[null,null,"Action Préventive",null,null,"Action de secours",null,"Info D",null,{"$f":"IF(M1294=\"\",\"\",IF(M1294=1,\"Non\",\"Oui\"))","v":""}]
["Risque 3",null,"Cause",null,"Prob","Effet",null,null,"Grav","Acceptabilité"]
[null,null,null,null,null,null,null,null,null,null,null,null,{"$f":"IFERROR(VLOOKUP(CONCATENATE(E1297,I1297),Pro_Grav,2,FALSE),\"\")","v":""}]
[null,null,"Action Préventive",null,null,"Action de secours",null,"Info D",null,{"$f":"IF(M1297=\"\",\"\",IF(M1297=1,\"Non\",\"Oui\"))","v":""}]
[]
["N° AC :","Aspect Critique"]
[null,null,"Cause",null,"Prob","Effet",null,null,"Grav","Acceptabilité"]
["Risque 1",null,null,null,null,null,null,null,null,null,null,null,{"$f":"IFERROR(VLOOKUP(CONCATENATE(E1302,I1302),Pro_Grav,2,FALSE),\"\")","v":""}]
[null,null,"Action Préventive",null,null,"Action de secours",null,"Info D",null,{"$f":"IF(M1302=\"\",\"\",IF(M1302=1,\"Non\",\"Oui\"))","v":""}]
["Risque 2",null,"Cause",null,"Prob","Effet",null,null,"Grav","Acceptabilité"]
[null,null,null,null,null,null,null,null,null,null,null,null,{"$f":"IFERROR(VLOOKUP(CONCATENATE(E1305,I1305),Pro_Grav,2,FALSE),\"\")","v":""}]
[null,null,"Action Préventive",null,null,"Action de secours",null,"Info D",null,{"$f":"IF(M1305=\"\",\"\",IF(M1305=1,\"Non\",\"Oui\"))","v":""}]
["Risque 3",null,"Cause",null,"Prob","Effet",null,null,"Grav","Acceptabilité"]
[null,null,null,null,null,null,null,null,null,null,null,null,{"$f":"IFERROR(VLOOKUP(CONCATENATE(E1308,I1308),Pro_Grav,2,FALSE),\"\")","v":""}]
[null,null,"Action Préventive",null,null,"Action de secours",null,"Info D",null,{"$f":"IF(M1308=\"\",\"\",IF(M1308=1,\"Non\",\"Oui\"))","v":""}]
[]
["N° AC :","Aspect Critique"]
[null,null,"Cause",null,"Prob","Effet",null,null,"Grav","Acceptabilité"]
["Risque 1",null,null,null,null,null,null,null,null,null,null,null,{"$f":"IFERROR(VLOOKUP(CONCATENATE(E1313,I1313),Pro_Grav,2,FALSE),\"\")","v":""}]
[null,null,"Action Préventive",null,null,"Action de secours",null,"Info D",null,{"$f":"IF(M1313=\"\",\"\",IF(M1313=1,\"Non\",\"Oui\"))","v":""}]
["Risque 2",null,"Cause",null,"Prob","Effet",null,null,"Grav","Acceptabilité"]
[null,null,null,null,null,null,null,null,null,null,null,null,{"$f":"IFERROR(VLOOKUP(CONCATENATE(E1316,I1316),Pro_Grav,2,FALSE),\"\")","v":""}]
[null,null,"Action Préventive",null,null,"Action de secours",null,"Info D",null,{"$f":"IF(M1316=\"\",\"\",IF(M1316=1,\"Non\",\"Oui\"))","v":""}]
["Risque 3",null,"Cause",null,"Prob","Effet",null,null,"Grav","Acceptabilité"]
[null,null,null,null,null,null,null,null,null,null,null,null,{"$f":"IFERROR(VLOOKUP(CONCATENATE(E1319,I1319),Pro_Grav,2,FALSE),\"\")","v":""}]
[null,null,"Action Préventive",null,null,"Action de secours",null,"Info D",null,{"$f":"IF(M1319=\"\",\"\",IF(M1319=1,\"Non\",\"Oui\"))","v":""}]
[]
["N° AC :","Aspect Critique"]
[null,null,"Cause",null,"Prob","Effet",null,null,"Grav","Acceptabilité"]
["Risque 1",null,null,null,null,null,null,null,null,null,null,null,{"$f":"IFERROR(VLOOKUP(CONCATENATE(E1324,I1324),Pro_Grav,2,FALSE),\"\")","v":""}]
[null,null,"Action Préventive",null,null,"Action de secours",null,"Info D",null,{"$f":"IF(M1324=\"\",\"\",IF(M1324=1,\"Non\",\"Oui\"))","v":""}]
["Risque 2",null,"Cause",null,"Prob","Effet",null,null,"Grav","Acceptabilité"]
[null,null,null,null,null,null,null,null,null,null,null,null,{"$f":"IFERROR(VLOOKUP(CONCATENATE(E1327,I1327),Pro_Grav,2,FALSE),\"\")","v":""}]
[null,null,"Action Préventive",null,null,"Action de secours",null,"Info D",null,{"$f":"IF(M1327=\"\",\"\",IF(M1327=1,\"Non\",\"Oui\"))","v":""}]
["Risque 3",null,"Cause",null,"Prob","Effet",null,null,"Grav","Acceptabilité"]
[null,null,null,null,null,null,null,null,null,null,null,null,{"$f":"IFERROR(VLOOKUP(CONCATENATE(E1330,I1330),Pro_Grav,2,FALSE),\"\")","v":""}]
[null,null,"Action Préventive",null,null,"Action de secours",null,"Info D",null,{"$f":"IF(M1330=\"\",\"\",IF(M1330=1,\"Non\",\"Oui\"))","v":""}]
[]
["N° AC :","Aspect Critique"]
[null,null,"Cause",null,"Prob","Effet",null,null,"Grav","Acceptabilité"]
["Risque 1",null,null,null,null,null,null,null,null,null,null,null,{"$f":"IFERROR(VLOOKUP(CONCATENATE(E1335,I1335),Pro_Grav,2,FALSE),\"\")","v":""}]
[null,null,"Action Préventive",null,null,"Action de secours",null,"Info D",null,{"$f":"IF(M1335=\"\",\"\",IF(M1335=1,\"Non\",\"Oui\"))","v":""}]
["Risque 2",null,"Cause",null,"Prob","Effet",null,null,"Grav","Acceptabilité"]
[null,null,null,null,null,null,null,null,null,null,null,null,{"$f":"IFERROR(VLOOKUP(CONCATENATE(E1338,I1338),Pro_Grav,2,FALSE),\"\")","v":""}]
[null,null,"Action Préventive",null,null,"Action de secours",null,"Info D",null,{"$f":"IF(M1338=\"\",\"\",IF(M1338=1,\"Non\",\"Oui\"))","v":""}]
["Risque 3",null,"Cause",null,"Prob","Effet",null,null,"Grav","Acceptabilité"]
[null,null,null,null,null,null,null,null,null,null,null,null,{"$f":"IFERROR(VLOOKUP(CONCATENATE(E1341,I1341),Pro_Grav,2,FALSE),\"\")","v":""}]
[null,null,"Action Préventive",null,null,"Action de secours",null,"Info D",null,{"$f":"IF(M1341=\"\",\"\",IF(M1341=1,\"Non\",\"Oui\"))","v":""}]
[]
["N° AC :","Aspect Critique"]
[null,null,"Cause",null,"Prob","Effet",null,null,"Grav","Acceptabilité"]
["Risque 1",null,null,null,null,null,null,null,null,null,null,null,{"$f":"IFERROR(VLOOKUP(CONCATENATE(E1346,I1346),Pro_Grav,2,FALSE),\"\")","v":""}]
[null,null,"Action Préventive",null,null,"Action de secours",null,"Info D",null,{"$f":"IF(M1346=\"\",\"\",IF(M1346=1,\"Non\",\"Oui\"))","v":""}]
["Risque 2",null,"Cause",null,"Prob","Effet",null,null,"Grav","Acceptabilité"]
[null,null,null,null,null,null,null,null,null,null,null,null,{"$f":"IFERROR(VLOOKUP(CONCATENATE(E1349,I1349),Pro_Grav,2,FALSE),\"\")","v":""}]
[null,null,"Action Préventive",null,null,"Action de secours",null,"Info D",null,{"$f":"IF(M1349=\"\",\"\",IF(M1349=1,\"Non\",\"Oui\"))","v":""}]
["Risque 3",null,"Cause",null,"Prob","Effet",null,null,"Grav","Acceptabilité"]
[null,null,null,null,null,null,null,null,null,null,null,null,{"$f":"IFERROR(VLOOKUP(CONCATENATE(E1352,I1352),Pro_Grav,2,FALSE),\"\")","v":""}]
[null,null,"Action Préventive",null,null,"Action de secours",null,"Info D",null,{"$f":"IF(M1352=\"\",\"\",IF(M1352=1,\"Non\",\"Oui\"))","v":""}]

{"sheet":"Rochelle","index":5,"n_rows":43,"n_cols":8,"rows_kept":43,"cut":false,"hidden":false,"merged":[[0,0,0,5]]}
[{"$f":"CONCATENATE(\"Actions de \",MID(CELL(\"nomfichier\",I1),FIND(\"]\",CELL(\"nomfichier\",I1),20)+1,32))","v":"Actions de Rochelle"},null,null,null,null,null,null,{"$f":"MID(CELL(\"nomfichier\",I1),FIND(\"]\",CELL(\"nomfichier\",I1),20)+1,32)","v":"Rochelle"}]
[]
["N°","Actions","Lieu","Date","Durée","Moyens"]
[{"$f":"IF(Plan!$C4=Rochelle!$H$1,Plan!A4,\"\")","v":""},{"$f":"IF(Plan!$C4=Rochelle!$H$1,Plan!B4,\"\")","v":""},{"$f":"IF(Plan!$C4=Rochelle!$H$1,Plan!D4,\"\")","v":""},{"$f":"IF(Plan!$C4=Rochelle!$H$1,Plan!E4,\"\")","v":""},{"$f":"IF(Plan!$C4=Rochelle!$H$1,Plan!F4,\"\")","v":""},{"$f":"IF(Plan!$C4=Rochelle!$H$1,Plan!G4,\"\")","v":""}]
[{"$f":"IF(Plan!$C5=Rochelle!$H$1,Plan!A5,\"\")","v":""},{"$f":"IF(Plan!$C5=Rochelle!$H$1,Plan!B5,\"\")","v":""},{"$f":"IF(Plan!$C5=Rochelle!$H$1,Plan!D5,\"\")","v":""},{"$f":"IF(Plan!$C5=Rochelle!$H$1,Plan!E5,\"\")","v":""},{"$f":"IF(Plan!$C5=Rochelle!$H$1,Plan!F5,\"\")","v":""},{"$f":"IF(Plan!$C5=Rochelle!$H$1,Plan!G5,\"\")","v":""}]
[{"$f":"IF(Plan!$C6=Rochelle!$H$1,Plan!A6,\"\")","v":20},{"$f":"IF(Plan!$C6=Rochelle!$H$1,Plan!B6,\"\")","v":"Désigner les intervenants internes et externes et leurs budgets"},{"$f":"IF(Plan!$C6=Rochelle!$H$1,Plan!D6,\"\")","v":"Bureau"},{"$f":"IF(Plan!$C6=Rochelle!$H$1,Plan!E6,\"\")","v":"2015-08-19"},{"$f":"IF(Plan!$C6=Rochelle!$H$1,Plan!F6,\"\")","v":1},{"$f":"IF(Plan!$C6=Rochelle!$H$1,Plan!G6,\"\")","v":"Organigramme"}]
[{"$f":"IF(Plan!$C7=Rochelle!$H$1,Plan!A7,\"\")","v":""},{"$f":"IF(Plan!$C7=Rochelle!$H$1,Plan!B7,\"\")","v":""},{"$f":"IF(Plan!$C7=Rochelle!$H$1,Plan!D7,\"\")","v":""},{"$f":"IF(Plan!$C7=Rochelle!$H$1,Plan!E7,\"\")","v":""},{"$f":"IF(Plan!$C7=Rochelle!$H$1,Plan!F7,\"\")","v":""},{"$f":"IF(Plan!$C7=Rochelle!$H$1,Plan!G7,\"\")","v":""}]
[{"$f":"IF(Plan!$C8=Rochelle!$H$1,Plan!A8,\"\")","v":""},{"$f":"IF(Plan!$C8=Rochelle!$H$1,Plan!B8,\"\")","v":""},{"$f":"IF(Plan!$C8=Rochelle!$H$1,Plan!D8,\"\")","v":""},{"$f":"IF(Plan!$C8=Rochelle!$H$1,Plan!E8,\"\")","v":""},{"$f":"IF(Plan!$C8=Rochelle!$H$1,Plan!F8,\"\")","v":""},{"$f":"IF(Plan!$C8=Rochelle!$H$1,Plan!G8,\"\")","v":""}]
[{"$f":"IF(Plan!$C9=Rochelle!$H$1,Plan!A9,\"\")","v":""},{"$f":"IF(Plan!$C9=Rochelle!$H$1,Plan!B9,\"\")","v":""},{"$f":"IF(Plan!$C9=Rochelle!$H$1,Plan!D9,\"\")","v":""},{"$f":"IF(Plan!$C9=Rochelle!$H$1,Plan!E9,\"\")","v":""},{"$f":"IF(Plan!$C9=Rochelle!$H$1,Plan!F9,\"\")","v":""},{"$f":"IF(Plan!$C9=Rochelle!$H$1,Plan!G9,\"\")","v":""}]
[{"$f":"IF(Plan!$C10=Rochelle!$H$1,Plan!A10,\"\")","v":""},{"$f":"IF(Plan!$C10=Rochelle!$H$1,Plan!B10,\"\")","v":""},{"$f":"IF(Plan!$C10=Rochelle!$H$1,Plan!D10,\"\")","v":""},{"$f":"IF(Plan!$C10=Rochelle!$H$1,Plan!E10,\"\")","v":""},{"$f":"IF(Plan!$C10=Rochelle!$H$1,Plan!F10,\"\")","v":""},{"$f":"IF(Plan!$C10=Rochelle!$H$1,Plan!G10,\"\")","v":""}]
[{"$f":"IF(Plan!$C11=Rochelle!$H$1,Plan!A11,\"\")","v":""},{"$f":"IF(Plan!$C11=Rochelle!$H$1,Plan!B11,\"\")","v":""},{"$f":"IF(Plan!$C11=Rochelle!$H$1,Plan!D11,\"\")","v":""},{"$f":"IF(Plan!$C11=Rochelle!$H$1,Plan!E11,\"\")","v":""},{"$f":"IF(Plan!$C11=Rochelle!$H$1,Plan!F11,\"\")","v":""},{"$f":"IF(Plan!$C11=Rochelle!$H$1,Plan!G11,\"\")","v":""}]
[{"$f":"IF(Plan!$C12=Rochelle!$H$1,Plan!A12,\"\")","v":50},{"$f":"IF(Plan!$C12=Rochelle!$H$1,Plan!B12,\"\")","v":"Préparer la libération des emprises"},{"$f":"IF(Plan!$C12=Rochelle!$H$1,Plan!D12,\"\")","v":""},{"$f":"IF(Plan!$C12=Rochelle!$H$1,Plan!E12,\"\")","v":""},{"$f":"IF(Plan!$C12=Rochelle!$H$1,Plan!F12,\"\")","v":""},{"$f":"IF(Plan!$C12=Rochelle!$H$1,Plan!G12,\"\")","v":""}]
[{"$f":"IF(Plan!$C13=Rochelle!$H$1,Plan!A13,\"\")","v":""},{"$f":"IF(Plan!$C13=Rochelle!$H$1,Plan!B13,\"\")","v":""},{"$f":"IF(Plan!$C13=Rochelle!$H$1,Plan!D13,\"\")","v":""},{"$f":"IF(Plan!$C13=Rochelle!$H$1,Plan!E13,\"\")","v":""},{"$f":"IF(Plan!$C13=Rochelle!$H$1,Plan!F13,\"\")","v":""},{"$f":"IF(Plan!$C13=Rochelle!$H$1,Plan!G13,\"\")","v":""}]
[{"$f":"IF(Plan!$C14=Rochelle!$H$1,Plan!A14,\"\")","v":""},{"$f":"IF(Plan!$C14=Rochelle!$H$1,Plan!B14,\"\")","v":""},{"$f":"IF(Plan!$C14=Rochelle!$H$1,Plan!D14,\"\")","v":""},{"$f":"IF(Plan!$C14=Rochelle!$H$1,Plan!E14,\"\")","v":""},{"$f":"IF(Plan!$C14=Rochelle!$H$1,Plan!F14,\"\")","v":""},{"$f":"IF(Plan!$C14=Rochelle!$H$1,Plan!G14,\"\")","v":""}]
[{"$f":"IF(Plan!$C15=Rochelle!$H$1,Plan!A15,\"\")","v":""},{"$f":"IF(Plan!$C15=Rochelle!$H$1,Plan!B15,\"\")","v":""},{"$f":"IF(Plan!$C15=Rochelle!$H$1,Plan!D15,\"\")","v":""},{"$f":"IF(Plan!$C15=Rochelle!$H$1,Plan!E15,\"\")","v":""},{"$f":"IF(Plan!$C15=Rochelle!$H$1,Plan!F15,\"\")","v":""},{"$f":"IF(Plan!$C15=Rochelle!$H$1,Plan!G15,\"\")","v":""}]
[{"$f":"IF(Plan!$C16=Rochelle!$H$1,Plan!A16,\"\")","v":""},{"$f":"IF(Plan!$C16=Rochelle!$H$1,Plan!B16,\"\")","v":""},{"$f":"IF(Plan!$C16=Rochelle!$H$1,Plan!D16,\"\")","v":""},{"$f":"IF(Plan!$C16=Rochelle!$H$1,Plan!E16,\"\")","v":""},{"$f":"IF(Plan!$C16=Rochelle!$H$1,Plan!F16,\"\")","v":""},{"$f":"IF(Plan!$C16=Rochelle!$H$1,Plan!G16,\"\")","v":""}]
[{"$f":"IF(Plan!$C17=Rochelle!$H$1,Plan!A17,\"\")","v":""},{"$f":"IF(Plan!$C17=Rochelle!$H$1,Plan!B17,\"\")","v":""},{"$f":"IF(Plan!$C17=Rochelle!$H$1,Plan!D17,\"\")","v":""},{"$f":"IF(Plan!$C17=Rochelle!$H$1,Plan!E17,\"\")","v":""},{"$f":"IF(Plan!$C17=Rochelle!$H$1,Plan!F17,\"\")","v":""},{"$f":"IF(Plan!$C17=Rochelle!$H$1,Plan!G17,\"\")","v":""}]
[{"$f":"IF(Plan!$C18=Rochelle!$H$1,Plan!A18,\"\")","v":""},{"$f":"IF(Plan!$C18=Rochelle!$H$1,Plan!B18,\"\")","v":""},{"$f":"IF(Plan!$C18=Rochelle!$H$1,Plan!D18,\"\")","v":""},{"$f":"IF(Plan!$C18=Rochelle!$H$1,Plan!E18,\"\")","v":""},{"$f":"IF(Plan!$C18=Rochelle!$H$1,Plan!F18,\"\")","v":""},{"$f":"IF(Plan!$C18=Rochelle!$H$1,Plan!G18,\"\")","v":""}]
[{"$f":"IF(Plan!$C19=Rochelle!$H$1,Plan!A19,\"\")","v":""},{"$f":"IF(Plan!$C19=Rochelle!$H$1,Plan!B19,\"\")","v":""},{"$f":"IF(Plan!$C19=Rochelle!$H$1,Plan!D19,\"\")","v":""},{"$f":"IF(Plan!$C19=Rochelle!$H$1,Plan!E19,\"\")","v":""},{"$f":"IF(Plan!$C19=Rochelle!$H$1,Plan!F19,\"\")","v":""},{"$f":"IF(Plan!$C19=Rochelle!$H$1,Plan!G19,\"\")","v":""}]
[{"$f":"IF(Plan!$C20=Rochelle!$H$1,Plan!A20,\"\")","v":""},{"$f":"IF(Plan!$C20=Rochelle!$H$1,Plan!B20,\"\")","v":""},{"$f":"IF(Plan!$C20=Rochelle!$H$1,Plan!D20,\"\")","v":""},{"$f":"IF(Plan!$C20=Rochelle!$H$1,Plan!E20,\"\")","v":""},{"$f":"IF(Plan!$C20=Rochelle!$H$1,Plan!F20,\"\")","v":""},{"$f":"IF(Plan!$C20=Rochelle!$H$1,Plan!G20,\"\")","v":""}]
[{"$f":"IF(Plan!$C21=Rochelle!$H$1,Plan!A21,\"\")","v":""},{"$f":"IF(Plan!$C21=Rochelle!$H$1,Plan!B21,\"\")","v":""},{"$f":"IF(Plan!$C21=Rochelle!$H$1,Plan!D21,\"\")","v":""},{"$f":"IF(Plan!$C21=Rochelle!$H$1,Plan!E21,\"\")","v":""},{"$f":"IF(Plan!$C21=Rochelle!$H$1,Plan!F21,\"\")","v":""},{"$f":"IF(Plan!$C21=Rochelle!$H$1,Plan!G21,\"\")","v":""}]
[{"$f":"IF(Plan!$C22=Rochelle!$H$1,Plan!A22,\"\")","v":""},{"$f":"IF(Plan!$C22=Rochelle!$H$1,Plan!B22,\"\")","v":""},{"$f":"IF(Plan!$C22=Rochelle!$H$1,Plan!D22,\"\")","v":""},{"$f":"IF(Plan!$C22=Rochelle!$H$1,Plan!E22,\"\")","v":""},{"$f":"IF(Plan!$C22=Rochelle!$H$1,Plan!F22,\"\")","v":""},{"$f":"IF(Plan!$C22=Rochelle!$H$1,Plan!G22,\"\")","v":""}]
[{"$f":"IF(Plan!$C23=Rochelle!$H$1,Plan!A23,\"\")","v":""},{"$f":"IF(Plan!$C23=Rochelle!$H$1,Plan!B23,\"\")","v":""},{"$f":"IF(Plan!$C23=Rochelle!$H$1,Plan!D23,\"\")","v":""},{"$f":"IF(Plan!$C23=Rochelle!$H$1,Plan!E23,\"\")","v":""},{"$f":"IF(Plan!$C23=Rochelle!$H$1,Plan!F23,\"\")","v":""},{"$f":"IF(Plan!$C23=Rochelle!$H$1,Plan!G23,\"\")","v":""}]
[{"$f":"IF(Plan!$C24=Rochelle!$H$1,Plan!A24,\"\")","v":""},{"$f":"IF(Plan!$C24=Rochelle!$H$1,Plan!B24,\"\")","v":""},{"$f":"IF(Plan!$C24=Rochelle!$H$1,Plan!D24,\"\")","v":""},{"$f":"IF(Plan!$C24=Rochelle!$H$1,Plan!E24,\"\")","v":""},{"$f":"IF(Plan!$C24=Rochelle!$H$1,Plan!F24,\"\")","v":""},{"$f":"IF(Plan!$C24=Rochelle!$H$1,Plan!G24,\"\")","v":""}]
[{"$f":"IF(Plan!$C25=Rochelle!$H$1,Plan!A25,\"\")","v":""},{"$f":"IF(Plan!$C25=Rochelle!$H$1,Plan!B25,\"\")","v":""},{"$f":"IF(Plan!$C25=Rochelle!$H$1,Plan!D25,\"\")","v":""},{"$f":"IF(Plan!$C25=Rochelle!$H$1,Plan!E25,\"\")","v":""},{"$f":"IF(Plan!$C25=Rochelle!$H$1,Plan!F25,\"\")","v":""},{"$f":"IF(Plan!$C25=Rochelle!$H$1,Plan!G25,\"\")","v":""}]
[{"$f":"IF(Plan!$C26=Rochelle!$H$1,Plan!A26,\"\")","v":""},{"$f":"IF(Plan!$C26=Rochelle!$H$1,Plan!B26,\"\")","v":""},{"$f":"IF(Plan!$C26=Rochelle!$H$1,Plan!D26,\"\")","v":""},{"$f":"IF(Plan!$C26=Rochelle!$H$1,Plan!E26,\"\")","v":""},{"$f":"IF(Plan!$C26=Rochelle!$H$1,Plan!F26,\"\")","v":""},{"$f":"IF(Plan!$C26=Rochelle!$H$1,Plan!G26,\"\")","v":""}]
[{"$f":"IF(Plan!$C27=Rochelle!$H$1,Plan!A27,\"\")","v":""},{"$f":"IF(Plan!$C27=Rochelle!$H$1,Plan!B27,\"\")","v":""},{"$f":"IF(Plan!$C27=Rochelle!$H$1,Plan!D27,\"\")","v":""},{"$f":"IF(Plan!$C27=Rochelle!$H$1,Plan!E27,\"\")","v":""},{"$f":"IF(Plan!$C27=Rochelle!$H$1,Plan!F27,\"\")","v":""},{"$f":"IF(Plan!$C27=Rochelle!$H$1,Plan!G27,\"\")","v":""}]
[{"$f":"IF(Plan!$C28=Rochelle!$H$1,Plan!A28,\"\")","v":""},{"$f":"IF(Plan!$C28=Rochelle!$H$1,Plan!B28,\"\")","v":""},{"$f":"IF(Plan!$C28=Rochelle!$H$1,Plan!D28,\"\")","v":""},{"$f":"IF(Plan!$C28=Rochelle!$H$1,Plan!E28,\"\")","v":""},{"$f":"IF(Plan!$C28=Rochelle!$H$1,Plan!F28,\"\")","v":""},{"$f":"IF(Plan!$C28=Rochelle!$H$1,Plan!G28,\"\")","v":""}]
[{"$f":"IF(Plan!$C29=Rochelle!$H$1,Plan!A29,\"\")","v":""},{"$f":"IF(Plan!$C29=Rochelle!$H$1,Plan!B29,\"\")","v":""},{"$f":"IF(Plan!$C29=Rochelle!$H$1,Plan!D29,\"\")","v":""},{"$f":"IF(Plan!$C29=Rochelle!$H$1,Plan!E29,\"\")","v":""},{"$f":"IF(Plan!$C29=Rochelle!$H$1,Plan!F29,\"\")","v":""},{"$f":"IF(Plan!$C29=Rochelle!$H$1,Plan!G29,\"\")","v":""}]
[{"$f":"IF(Plan!$C30=Rochelle!$H$1,Plan!A30,\"\")","v":""},{"$f":"IF(Plan!$C30=Rochelle!$H$1,Plan!B30,\"\")","v":""},{"$f":"IF(Plan!$C30=Rochelle!$H$1,Plan!D30,\"\")","v":""},{"$f":"IF(Plan!$C30=Rochelle!$H$1,Plan!E30,\"\")","v":""},{"$f":"IF(Plan!$C30=Rochelle!$H$1,Plan!F30,\"\")","v":""},{"$f":"IF(Plan!$C30=Rochelle!$H$1,Plan!G30,\"\")","v":""}]
[{"$f":"IF(Plan!$C31=Rochelle!$H$1,Plan!A31,\"\")","v":""},{"$f":"IF(Plan!$C31=Rochelle!$H$1,Plan!B31,\"\")","v":""},{"$f":"IF(Plan!$C31=Rochelle!$H$1,Plan!D31,\"\")","v":""},{"$f":"IF(Plan!$C31=Rochelle!$H$1,Plan!E31,\"\")","v":""},{"$f":"IF(Plan!$C31=Rochelle!$H$1,Plan!F31,\"\")","v":""},{"$f":"IF(Plan!$C31=Rochelle!$H$1,Plan!G31,\"\")","v":""}]
[{"$f":"IF(Plan!$C32=Rochelle!$H$1,Plan!A32,\"\")","v":""},{"$f":"IF(Plan!$C32=Rochelle!$H$1,Plan!B32,\"\")","v":""},{"$f":"IF(Plan!$C32=Rochelle!$H$1,Plan!D32,\"\")","v":""},{"$f":"IF(Plan!$C32=Rochelle!$H$1,Plan!E32,\"\")","v":""},{"$f":"IF(Plan!$C32=Rochelle!$H$1,Plan!F32,\"\")","v":""},{"$f":"IF(Plan!$C32=Rochelle!$H$1,Plan!G32,\"\")","v":""}]
[{"$f":"IF(Plan!$C33=Rochelle!$H$1,Plan!A33,\"\")","v":""},{"$f":"IF(Plan!$C33=Rochelle!$H$1,Plan!B33,\"\")","v":""},{"$f":"IF(Plan!$C33=Rochelle!$H$1,Plan!D33,\"\")","v":""},{"$f":"IF(Plan!$C33=Rochelle!$H$1,Plan!E33,\"\")","v":""},{"$f":"IF(Plan!$C33=Rochelle!$H$1,Plan!F33,\"\")","v":""},{"$f":"IF(Plan!$C33=Rochelle!$H$1,Plan!G33,\"\")","v":""}]
[{"$f":"IF(Plan!$C34=Rochelle!$H$1,Plan!A34,\"\")","v":""},{"$f":"IF(Plan!$C34=Rochelle!$H$1,Plan!B34,\"\")","v":""},{"$f":"IF(Plan!$C34=Rochelle!$H$1,Plan!D34,\"\")","v":""},{"$f":"IF(Plan!$C34=Rochelle!$H$1,Plan!E34,\"\")","v":""},{"$f":"IF(Plan!$C34=Rochelle!$H$1,Plan!F34,\"\")","v":""},{"$f":"IF(Plan!$C34=Rochelle!$H$1,Plan!G34,\"\")","v":""}]
[{"$f":"IF(Plan!$C35=Rochelle!$H$1,Plan!A35,\"\")","v":""},{"$f":"IF(Plan!$C35=Rochelle!$H$1,Plan!B35,\"\")","v":""},{"$f":"IF(Plan!$C35=Rochelle!$H$1,Plan!D35,\"\")","v":""},{"$f":"IF(Plan!$C35=Rochelle!$H$1,Plan!E35,\"\")","v":""},{"$f":"IF(Plan!$C35=Rochelle!$H$1,Plan!F35,\"\")","v":""},{"$f":"IF(Plan!$C35=Rochelle!$H$1,Plan!G35,\"\")","v":""}]
[{"$f":"IF(Plan!$C36=Rochelle!$H$1,Plan!A36,\"\")","v":""},{"$f":"IF(Plan!$C36=Rochelle!$H$1,Plan!B36,\"\")","v":""},{"$f":"IF(Plan!$C36=Rochelle!$H$1,Plan!D36,\"\")","v":""},{"$f":"IF(Plan!$C36=Rochelle!$H$1,Plan!E36,\"\")","v":""},{"$f":"IF(Plan!$C36=Rochelle!$H$1,Plan!F36,\"\")","v":""},{"$f":"IF(Plan!$C36=Rochelle!$H$1,Plan!G36,\"\")","v":""}]
[{"$f":"IF(Plan!$C37=Rochelle!$H$1,Plan!A37,\"\")","v":""},{"$f":"IF(Plan!$C37=Rochelle!$H$1,Plan!B37,\"\")","v":""},{"$f":"IF(Plan!$C37=Rochelle!$H$1,Plan!D37,\"\")","v":""},{"$f":"IF(Plan!$C37=Rochelle!$H$1,Plan!E37,\"\")","v":""},{"$f":"IF(Plan!$C37=Rochelle!$H$1,Plan!F37,\"\")","v":""},{"$f":"IF(Plan!$C37=Rochelle!$H$1,Plan!G37,\"\")","v":""}]
[{"$f":"IF(Plan!$C38=Rochelle!$H$1,Plan!A38,\"\")","v":""},{"$f":"IF(Plan!$C38=Rochelle!$H$1,Plan!B38,\"\")","v":""},{"$f":"IF(Plan!$C38=Rochelle!$H$1,Plan!D38,\"\")","v":""},{"$f":"IF(Plan!$C38=Rochelle!$H$1,Plan!E38,\"\")","v":""},{"$f":"IF(Plan!$C38=Rochelle!$H$1,Plan!F38,\"\")","v":""},{"$f":"IF(Plan!$C38=Rochelle!$H$1,Plan!G38,\"\")","v":""}]
[{"$f":"IF(Plan!$C39=Rochelle!$H$1,Plan!A39,\"\")","v":""},{"$f":"IF(Plan!$C39=Rochelle!$H$1,Plan!B39,\"\")","v":""},{"$f":"IF(Plan!$C39=Rochelle!$H$1,Plan!D39,\"\")","v":""},{"$f":"IF(Plan!$C39=Rochelle!$H$1,Plan!E39,\"\")","v":""},{"$f":"IF(Plan!$C39=Rochelle!$H$1,Plan!F39,\"\")","v":""},{"$f":"IF(Plan!$C39=Rochelle!$H$1,Plan!G39,\"\")","v":""}]
[{"$f":"IF(Plan!$C40=Rochelle!$H$1,Plan!A40,\"\")","v":""},{"$f":"IF(Plan!$C40=Rochelle!$H$1,Plan!B40,\"\")","v":""},{"$f":"IF(Plan!$C40=Rochelle!$H$1,Plan!D40,\"\")","v":""},{"$f":"IF(Plan!$C40=Rochelle!$H$1,Plan!E40,\"\")","v":""},{"$f":"IF(Plan!$C40=Rochelle!$H$1,Plan!F40,\"\")","v":""},{"$f":"IF(Plan!$C40=Rochelle!$H$1,Plan!G40,\"\")","v":""}]
[{"$f":"IF(Plan!$C41=Rochelle!$H$1,Plan!A41,\"\")","v":""},{"$f":"IF(Plan!$C41=Rochelle!$H$1,Plan!B41,\"\")","v":""},{"$f":"IF(Plan!$C41=Rochelle!$H$1,Plan!D41,\"\")","v":""},{"$f":"IF(Plan!$C41=Rochelle!$H$1,Plan!E41,\"\")","v":""},{"$f":"IF(Plan!$C41=Rochelle!$H$1,Plan!F41,\"\")","v":""},{"$f":"IF(Plan!$C41=Rochelle!$H$1,Plan!G41,\"\")","v":""}]
[{"$f":"IF(Plan!$C42=Rochelle!$H$1,Plan!A42,\"\")","v":""},{"$f":"IF(Plan!$C42=Rochelle!$H$1,Plan!B42,\"\")","v":""},{"$f":"IF(Plan!$C42=Rochelle!$H$1,Plan!D42,\"\")","v":""},{"$f":"IF(Plan!$C42=Rochelle!$H$1,Plan!E42,\"\")","v":""},{"$f":"IF(Plan!$C42=Rochelle!$H$1,Plan!F42,\"\")","v":""},{"$f":"IF(Plan!$C42=Rochelle!$H$1,Plan!G42,\"\")","v":""}]
[{"$f":"IF(Plan!$C43=Rochelle!$H$1,Plan!A43,\"\")","v":""},{"$f":"IF(Plan!$C43=Rochelle!$H$1,Plan!B43,\"\")","v":""},{"$f":"IF(Plan!$C43=Rochelle!$H$1,Plan!D43,\"\")","v":""},{"$f":"IF(Plan!$C43=Rochelle!$H$1,Plan!E43,\"\")","v":""},{"$f":"IF(Plan!$C43=Rochelle!$H$1,Plan!F43,\"\")","v":""},{"$f":"IF(Plan!$C43=Rochelle!$H$1,Plan!G43,\"\")","v":""}]

{"sheet":"Monia","index":6,"n_rows":43,"n_cols":8,"rows_kept":43,"cut":false,"hidden":false,"merged":[[0,0,0,5]]}
[{"$f":"CONCATENATE(\"Actions de \",MID(CELL(\"nomfichier\",I1),FIND(\"]\",CELL(\"nomfichier\",I1),20)+1,32))","v":"Actions de Monia"},null,null,null,null,null,null,{"$f":"MID(CELL(\"nomfichier\",I1),FIND(\"]\",CELL(\"nomfichier\",I1),20)+1,32)","v":"Monia"}]
[]
["N°","Actions","Lieu","Date","Durée","Moyens"]
[{"$f":"IF(Plan!$C4=Monia!$H$1,Plan!A4,\"\")","v":10},{"$f":"IF(Plan!$C4=Monia!$H$1,Plan!B4,\"\")","v":"Faire l'analyse fiscale"},{"$f":"IF(Plan!$C4=Monia!$H$1,Plan!D4,\"\")","v":"Bureau"},{"$f":"IF(Plan!$C4=Monia!$H$1,Plan!E4,\"\")","v":"2015-08-11"},{"$f":"IF(Plan!$C4=Monia!$H$1,Plan!F4,\"\")","v":2},{"$f":"IF(Plan!$C4=Monia!$H$1,Plan!G4,\"\")","v":"Code pénal, Cabinet juridique"}]
[{"$f":"IF(Plan!$C5=Monia!$H$1,Plan!A5,\"\")","v":""},{"$f":"IF(Plan!$C5=Monia!$H$1,Plan!B5,\"\")","v":""},{"$f":"IF(Plan!$C5=Monia!$H$1,Plan!D5,\"\")","v":""},{"$f":"IF(Plan!$C5=Monia!$H$1,Plan!E5,\"\")","v":""},{"$f":"IF(Plan!$C5=Monia!$H$1,Plan!F5,\"\")","v":""},{"$f":"IF(Plan!$C5=Monia!$H$1,Plan!G5,\"\")","v":""}]
[{"$f":"IF(Plan!$C6=Monia!$H$1,Plan!A6,\"\")","v":""},{"$f":"IF(Plan!$C6=Monia!$H$1,Plan!B6,\"\")","v":""},{"$f":"IF(Plan!$C6=Monia!$H$1,Plan!D6,\"\")","v":""},{"$f":"IF(Plan!$C6=Monia!$H$1,Plan!E6,\"\")","v":""},{"$f":"IF(Plan!$C6=Monia!$H$1,Plan!F6,\"\")","v":""},{"$f":"IF(Plan!$C6=Monia!$H$1,Plan!G6,\"\")","v":""}]
[{"$f":"IF(Plan!$C7=Monia!$H$1,Plan!A7,\"\")","v":""},{"$f":"IF(Plan!$C7=Monia!$H$1,Plan!B7,\"\")","v":""},{"$f":"IF(Plan!$C7=Monia!$H$1,Plan!D7,\"\")","v":""},{"$f":"IF(Plan!$C7=Monia!$H$1,Plan!E7,\"\")","v":""},{"$f":"IF(Plan!$C7=Monia!$H$1,Plan!F7,\"\")","v":""},{"$f":"IF(Plan!$C7=Monia!$H$1,Plan!G7,\"\")","v":""}]
[{"$f":"IF(Plan!$C8=Monia!$H$1,Plan!A8,\"\")","v":30},{"$f":"IF(Plan!$C8=Monia!$H$1,Plan!B8,\"\")","v":"Lancer les marchés de travaux"},{"$f":"IF(Plan!$C8=Monia!$H$1,Plan!D8,\"\")","v":""},{"$f":"IF(Plan!$C8=Monia!$H$1,Plan!E8,\"\")","v":"2015-09-15"},{"$f":"IF(Plan!$C8=Monia!$H$1,Plan!F8,\"\")","v":""},{"$f":"IF(Plan!$C8=Monia!$H$1,Plan!G8,\"\")","v":""}]
[{"$f":"IF(Plan!$C9=Monia!$H$1,Plan!A9,\"\")","v":""},{"$f":"IF(Plan!$C9=Monia!$H$1,Plan!B9,\"\")","v":""},{"$f":"IF(Plan!$C9=Monia!$H$1,Plan!D9,\"\")","v":""},{"$f":"IF(Plan!$C9=Monia!$H$1,Plan!E9,\"\")","v":""},{"$f":"IF(Plan!$C9=Monia!$H$1,Plan!F9,\"\")","v":""},{"$f":"IF(Plan!$C9=Monia!$H$1,Plan!G9,\"\")","v":""}]
[{"$f":"IF(Plan!$C10=Monia!$H$1,Plan!A10,\"\")","v":40},{"$f":"IF(Plan!$C10=Monia!$H$1,Plan!B10,\"\")","v":"Rechercher les financements"},{"$f":"IF(Plan!$C10=Monia!$H$1,Plan!D10,\"\")","v":"Bureau"},{"$f":"IF(Plan!$C10=Monia!$H$1,Plan!E10,\"\")","v":"2015-08-25"},{"$f":"IF(Plan!$C10=Monia!$H$1,Plan!F10,\"\")","v":2},{"$f":"IF(Plan!$C10=Monia!$H$1,Plan!G10,\"\")","v":""}]
[{"$f":"IF(Plan!$C11=Monia!$H$1,Plan!A11,\"\")","v":45},{"$f":"IF(Plan!$C11=Monia!$H$1,Plan!B11,\"\")","v":"Obtenir les autorisations administratives"},{"$f":"IF(Plan!$C11=Monia!$H$1,Plan!D11,\"\")","v":""},{"$f":"IF(Plan!$C11=Monia!$H$1,Plan!E11,\"\")","v":""},{"$f":"IF(Plan!$C11=Monia!$H$1,Plan!F11,\"\")","v":""},{"$f":"IF(Plan!$C11=Monia!$H$1,Plan!G11,\"\")","v":""}]
[{"$f":"IF(Plan!$C12=Monia!$H$1,Plan!A12,\"\")","v":""},{"$f":"IF(Plan!$C12=Monia!$H$1,Plan!B12,\"\")","v":""},{"$f":"IF(Plan!$C12=Monia!$H$1,Plan!D12,\"\")","v":""},{"$f":"IF(Plan!$C12=Monia!$H$1,Plan!E12,\"\")","v":""},{"$f":"IF(Plan!$C12=Monia!$H$1,Plan!F12,\"\")","v":""},{"$f":"IF(Plan!$C12=Monia!$H$1,Plan!G12,\"\")","v":""}]
[{"$f":"IF(Plan!$C13=Monia!$H$1,Plan!A13,\"\")","v":""},{"$f":"IF(Plan!$C13=Monia!$H$1,Plan!B13,\"\")","v":""},{"$f":"IF(Plan!$C13=Monia!$H$1,Plan!D13,\"\")","v":""},{"$f":"IF(Plan!$C13=Monia!$H$1,Plan!E13,\"\")","v":""},{"$f":"IF(Plan!$C13=Monia!$H$1,Plan!F13,\"\")","v":""},{"$f":"IF(Plan!$C13=Monia!$H$1,Plan!G13,\"\")","v":""}]
[{"$f":"IF(Plan!$C14=Monia!$H$1,Plan!A14,\"\")","v":""},{"$f":"IF(Plan!$C14=Monia!$H$1,Plan!B14,\"\")","v":""},{"$f":"IF(Plan!$C14=Monia!$H$1,Plan!D14,\"\")","v":""},{"$f":"IF(Plan!$C14=Monia!$H$1,Plan!E14,\"\")","v":""},{"$f":"IF(Plan!$C14=Monia!$H$1,Plan!F14,\"\")","v":""},{"$f":"IF(Plan!$C14=Monia!$H$1,Plan!G14,\"\")","v":""}]
[{"$f":"IF(Plan!$C15=Monia!$H$1,Plan!A15,\"\")","v":""},{"$f":"IF(Plan!$C15=Monia!$H$1,Plan!B15,\"\")","v":""},{"$f":"IF(Plan!$C15=Monia!$H$1,Plan!D15,\"\")","v":""},{"$f":"IF(Plan!$C15=Monia!$H$1,Plan!E15,\"\")","v":""},{"$f":"IF(Plan!$C15=Monia!$H$1,Plan!F15,\"\")","v":""},{"$f":"IF(Plan!$C15=Monia!$H$1,Plan!G15,\"\")","v":""}]
[{"$f":"IF(Plan!$C16=Monia!$H$1,Plan!A16,\"\")","v":""},{"$f":"IF(Plan!$C16=Monia!$H$1,Plan!B16,\"\")","v":""},{"$f":"IF(Plan!$C16=Monia!$H$1,Plan!D16,\"\")","v":""},{"$f":"IF(Plan!$C16=Monia!$H$1,Plan!E16,\"\")","v":""},{"$f":"IF(Plan!$C16=Monia!$H$1,Plan!F16,\"\")","v":""},{"$f":"IF(Plan!$C16=Monia!$H$1,Plan!G16,\"\")","v":""}]
[{"$f":"IF(Plan!$C17=Monia!$H$1,Plan!A17,\"\")","v":""},{"$f":"IF(Plan!$C17=Monia!$H$1,Plan!B17,\"\")","v":""},{"$f":"IF(Plan!$C17=Monia!$H$1,Plan!D17,\"\")","v":""},{"$f":"IF(Plan!$C17=Monia!$H$1,Plan!E17,\"\")","v":""},{"$f":"IF(Plan!$C17=Monia!$H$1,Plan!F17,\"\")","v":""},{"$f":"IF(Plan!$C17=Monia!$H$1,Plan!G17,\"\")","v":""}]
[{"$f":"IF(Plan!$C18=Monia!$H$1,Plan!A18,\"\")","v":""},{"$f":"IF(Plan!$C18=Monia!$H$1,Plan!B18,\"\")","v":""},{"$f":"IF(Plan!$C18=Monia!$H$1,Plan!D18,\"\")","v":""},{"$f":"IF(Plan!$C18=Monia!$H$1,Plan!E18,\"\")","v":""},{"$f":"IF(Plan!$C18=Monia!$H$1,Plan!F18,\"\")","v":""},{"$f":"IF(Plan!$C18=Monia!$H$1,Plan!G18,\"\")","v":""}]
[{"$f":"IF(Plan!$C19=Monia!$H$1,Plan!A19,\"\")","v":""},{"$f":"IF(Plan!$C19=Monia!$H$1,Plan!B19,\"\")","v":""},{"$f":"IF(Plan!$C19=Monia!$H$1,Plan!D19,\"\")","v":""},{"$f":"IF(Plan!$C19=Monia!$H$1,Plan!E19,\"\")","v":""},{"$f":"IF(Plan!$C19=Monia!$H$1,Plan!F19,\"\")","v":""},{"$f":"IF(Plan!$C19=Monia!$H$1,Plan!G19,\"\")","v":""}]
[{"$f":"IF(Plan!$C20=Monia!$H$1,Plan!A20,\"\")","v":""},{"$f":"IF(Plan!$C20=Monia!$H$1,Plan!B20,\"\")","v":""},{"$f":"IF(Plan!$C20=Monia!$H$1,Plan!D20,\"\")","v":""},{"$f":"IF(Plan!$C20=Monia!$H$1,Plan!E20,\"\")","v":""},{"$f":"IF(Plan!$C20=Monia!$H$1,Plan!F20,\"\")","v":""},{"$f":"IF(Plan!$C20=Monia!$H$1,Plan!G20,\"\")","v":""}]
[{"$f":"IF(Plan!$C21=Monia!$H$1,Plan!A21,\"\")","v":""},{"$f":"IF(Plan!$C21=Monia!$H$1,Plan!B21,\"\")","v":""},{"$f":"IF(Plan!$C21=Monia!$H$1,Plan!D21,\"\")","v":""},{"$f":"IF(Plan!$C21=Monia!$H$1,Plan!E21,\"\")","v":""},{"$f":"IF(Plan!$C21=Monia!$H$1,Plan!F21,\"\")","v":""},{"$f":"IF(Plan!$C21=Monia!$H$1,Plan!G21,\"\")","v":""}]
[{"$f":"IF(Plan!$C22=Monia!$H$1,Plan!A22,\"\")","v":""},{"$f":"IF(Plan!$C22=Monia!$H$1,Plan!B22,\"\")","v":""},{"$f":"IF(Plan!$C22=Monia!$H$1,Plan!D22,\"\")","v":""},{"$f":"IF(Plan!$C22=Monia!$H$1,Plan!E22,\"\")","v":""},{"$f":"IF(Plan!$C22=Monia!$H$1,Plan!F22,\"\")","v":""},{"$f":"IF(Plan!$C22=Monia!$H$1,Plan!G22,\"\")","v":""}]
[{"$f":"IF(Plan!$C23=Monia!$H$1,Plan!A23,\"\")","v":""},{"$f":"IF(Plan!$C23=Monia!$H$1,Plan!B23,\"\")","v":""},{"$f":"IF(Plan!$C23=Monia!$H$1,Plan!D23,\"\")","v":""},{"$f":"IF(Plan!$C23=Monia!$H$1,Plan!E23,\"\")","v":""},{"$f":"IF(Plan!$C23=Monia!$H$1,Plan!F23,\"\")","v":""},{"$f":"IF(Plan!$C23=Monia!$H$1,Plan!G23,\"\")","v":""}]
[{"$f":"IF(Plan!$C24=Monia!$H$1,Plan!A24,\"\")","v":""},{"$f":"IF(Plan!$C24=Monia!$H$1,Plan!B24,\"\")","v":""},{"$f":"IF(Plan!$C24=Monia!$H$1,Plan!D24,\"\")","v":""},{"$f":"IF(Plan!$C24=Monia!$H$1,Plan!E24,\"\")","v":""},{"$f":"IF(Plan!$C24=Monia!$H$1,Plan!F24,\"\")","v":""},{"$f":"IF(Plan!$C24=Monia!$H$1,Plan!G24,\"\")","v":""}]
[{"$f":"IF(Plan!$C25=Monia!$H$1,Plan!A25,\"\")","v":""},{"$f":"IF(Plan!$C25=Monia!$H$1,Plan!B25,\"\")","v":""},{"$f":"IF(Plan!$C25=Monia!$H$1,Plan!D25,\"\")","v":""},{"$f":"IF(Plan!$C25=Monia!$H$1,Plan!E25,\"\")","v":""},{"$f":"IF(Plan!$C25=Monia!$H$1,Plan!F25,\"\")","v":""},{"$f":"IF(Plan!$C25=Monia!$H$1,Plan!G25,\"\")","v":""}]
[{"$f":"IF(Plan!$C26=Monia!$H$1,Plan!A26,\"\")","v":""},{"$f":"IF(Plan!$C26=Monia!$H$1,Plan!B26,\"\")","v":""},{"$f":"IF(Plan!$C26=Monia!$H$1,Plan!D26,\"\")","v":""},{"$f":"IF(Plan!$C26=Monia!$H$1,Plan!E26,\"\")","v":""},{"$f":"IF(Plan!$C26=Monia!$H$1,Plan!F26,\"\")","v":""},{"$f":"IF(Plan!$C26=Monia!$H$1,Plan!G26,\"\")","v":""}]
[{"$f":"IF(Plan!$C27=Monia!$H$1,Plan!A27,\"\")","v":""},{"$f":"IF(Plan!$C27=Monia!$H$1,Plan!B27,\"\")","v":""},{"$f":"IF(Plan!$C27=Monia!$H$1,Plan!D27,\"\")","v":""},{"$f":"IF(Plan!$C27=Monia!$H$1,Plan!E27,\"\")","v":""},{"$f":"IF(Plan!$C27=Monia!$H$1,Plan!F27,\"\")","v":""},{"$f":"IF(Plan!$C27=Monia!$H$1,Plan!G27,\"\")","v":""}]
[{"$f":"IF(Plan!$C28=Monia!$H$1,Plan!A28,\"\")","v":""},{"$f":"IF(Plan!$C28=Monia!$H$1,Plan!B28,\"\")","v":""},{"$f":"IF(Plan!$C28=Monia!$H$1,Plan!D28,\"\")","v":""},{"$f":"IF(Plan!$C28=Monia!$H$1,Plan!E28,\"\")","v":""},{"$f":"IF(Plan!$C28=Monia!$H$1,Plan!F28,\"\")","v":""},{"$f":"IF(Plan!$C28=Monia!$H$1,Plan!G28,\"\")","v":""}]
[{"$f":"IF(Plan!$C29=Monia!$H$1,Plan!A29,\"\")","v":""},{"$f":"IF(Plan!$C29=Monia!$H$1,Plan!B29,\"\")","v":""},{"$f":"IF(Plan!$C29=Monia!$H$1,Plan!D29,\"\")","v":""},{"$f":"IF(Plan!$C29=Monia!$H$1,Plan!E29,\"\")","v":""},{"$f":"IF(Plan!$C29=Monia!$H$1,Plan!F29,\"\")","v":""},{"$f":"IF(Plan!$C29=Monia!$H$1,Plan!G29,\"\")","v":""}]
[{"$f":"IF(Plan!$C30=Monia!$H$1,Plan!A30,\"\")","v":""},{"$f":"IF(Plan!$C30=Monia!$H$1,Plan!B30,\"\")","v":""},{"$f":"IF(Plan!$C30=Monia!$H$1,Plan!D30,\"\")","v":""},{"$f":"IF(Plan!$C30=Monia!$H$1,Plan!E30,\"\")","v":""},{"$f":"IF(Plan!$C30=Monia!$H$1,Plan!F30,\"\")","v":""},{"$f":"IF(Plan!$C30=Monia!$H$1,Plan!G30,\"\")","v":""}]
[{"$f":"IF(Plan!$C31=Monia!$H$1,Plan!A31,\"\")","v":""},{"$f":"IF(Plan!$C31=Monia!$H$1,Plan!B31,\"\")","v":""},{"$f":"IF(Plan!$C31=Monia!$H$1,Plan!D31,\"\")","v":""},{"$f":"IF(Plan!$C31=Monia!$H$1,Plan!E31,\"\")","v":""},{"$f":"IF(Plan!$C31=Monia!$H$1,Plan!F31,\"\")","v":""},{"$f":"IF(Plan!$C31=Monia!$H$1,Plan!G31,\"\")","v":""}]
[{"$f":"IF(Plan!$C32=Monia!$H$1,Plan!A32,\"\")","v":""},{"$f":"IF(Plan!$C32=Monia!$H$1,Plan!B32,\"\")","v":""},{"$f":"IF(Plan!$C32=Monia!$H$1,Plan!D32,\"\")","v":""},{"$f":"IF(Plan!$C32=Monia!$H$1,Plan!E32,\"\")","v":""},{"$f":"IF(Plan!$C32=Monia!$H$1,Plan!F32,\"\")","v":""},{"$f":"IF(Plan!$C32=Monia!$H$1,Plan!G32,\"\")","v":""}]
[{"$f":"IF(Plan!$C33=Monia!$H$1,Plan!A33,\"\")","v":""},{"$f":"IF(Plan!$C33=Monia!$H$1,Plan!B33,\"\")","v":""},{"$f":"IF(Plan!$C33=Monia!$H$1,Plan!D33,\"\")","v":""},{"$f":"IF(Plan!$C33=Monia!$H$1,Plan!E33,\"\")","v":""},{"$f":"IF(Plan!$C33=Monia!$H$1,Plan!F33,\"\")","v":""},{"$f":"IF(Plan!$C33=Monia!$H$1,Plan!G33,\"\")","v":""}]
[{"$f":"IF(Plan!$C34=Monia!$H$1,Plan!A34,\"\")","v":""},{"$f":"IF(Plan!$C34=Monia!$H$1,Plan!B34,\"\")","v":""},{"$f":"IF(Plan!$C34=Monia!$H$1,Plan!D34,\"\")","v":""},{"$f":"IF(Plan!$C34=Monia!$H$1,Plan!E34,\"\")","v":""},{"$f":"IF(Plan!$C34=Monia!$H$1,Plan!F34,\"\")","v":""},{"$f":"IF(Plan!$C34=Monia!$H$1,Plan!G34,\"\")","v":""}]
[{"$f":"IF(Plan!$C35=Monia!$H$1,Plan!A35,\"\")","v":""},{"$f":"IF(Plan!$C35=Monia!$H$1,Plan!B35,\"\")","v":""},{"$f":"IF(Plan!$C35=Monia!$H$1,Plan!D35,\"\")","v":""},{"$f":"IF(Plan!$C35=Monia!$H$1,Plan!E35,\"\")","v":""},{"$f":"IF(Plan!$C35=Monia!$H$1,Plan!F35,\"\")","v":""},{"$f":"IF(Plan!$C35=Monia!$H$1,Plan!G35,\"\")","v":""}]
[{"$f":"IF(Plan!$C36=Monia!$H$1,Plan!A36,\"\")","v":""},{"$f":"IF(Plan!$C36=Monia!$H$1,Plan!B36,\"\")","v":""},{"$f":"IF(Plan!$C36=Monia!$H$1,Plan!D36,\"\")","v":""},{"$f":"IF(Plan!$C36=Monia!$H$1,Plan!E36,\"\")","v":""},{"$f":"IF(Plan!$C36=Monia!$H$1,Plan!F36,\"\")","v":""},{"$f":"IF(Plan!$C36=Monia!$H$1,Plan!G36,\"\")","v":""}]
[{"$f":"IF(Plan!$C37=Monia!$H$1,Plan!A37,\"\")","v":""},{"$f":"IF(Plan!$C37=Monia!$H$1,Plan!B37,\"\")","v":""},{"$f":"IF(Plan!$C37=Monia!$H$1,Plan!D37,\"\")","v":""},{"$f":"IF(Plan!$C37=Monia!$H$1,Plan!E37,\"\")","v":""},{"$f":"IF(Plan!$C37=Monia!$H$1,Plan!F37,\"\")","v":""},{"$f":"IF(Plan!$C37=Monia!$H$1,Plan!G37,\"\")","v":""}]
[{"$f":"IF(Plan!$C38=Monia!$H$1,Plan!A38,\"\")","v":""},{"$f":"IF(Plan!$C38=Monia!$H$1,Plan!B38,\"\")","v":""},{"$f":"IF(Plan!$C38=Monia!$H$1,Plan!D38,\"\")","v":""},{"$f":"IF(Plan!$C38=Monia!$H$1,Plan!E38,\"\")","v":""},{"$f":"IF(Plan!$C38=Monia!$H$1,Plan!F38,\"\")","v":""},{"$f":"IF(Plan!$C38=Monia!$H$1,Plan!G38,\"\")","v":""}]
[{"$f":"IF(Plan!$C39=Monia!$H$1,Plan!A39,\"\")","v":""},{"$f":"IF(Plan!$C39=Monia!$H$1,Plan!B39,\"\")","v":""},{"$f":"IF(Plan!$C39=Monia!$H$1,Plan!D39,\"\")","v":""},{"$f":"IF(Plan!$C39=Monia!$H$1,Plan!E39,\"\")","v":""},{"$f":"IF(Plan!$C39=Monia!$H$1,Plan!F39,\"\")","v":""},{"$f":"IF(Plan!$C39=Monia!$H$1,Plan!G39,\"\")","v":""}]
[{"$f":"IF(Plan!$C40=Monia!$H$1,Plan!A40,\"\")","v":""},{"$f":"IF(Plan!$C40=Monia!$H$1,Plan!B40,\"\")","v":""},{"$f":"IF(Plan!$C40=Monia!$H$1,Plan!D40,\"\")","v":""},{"$f":"IF(Plan!$C40=Monia!$H$1,Plan!E40,\"\")","v":""},{"$f":"IF(Plan!$C40=Monia!$H$1,Plan!F40,\"\")","v":""},{"$f":"IF(Plan!$C40=Monia!$H$1,Plan!G40,\"\")","v":""}]
[{"$f":"IF(Plan!$C41=Monia!$H$1,Plan!A41,\"\")","v":""},{"$f":"IF(Plan!$C41=Monia!$H$1,Plan!B41,\"\")","v":""},{"$f":"IF(Plan!$C41=Monia!$H$1,Plan!D41,\"\")","v":""},{"$f":"IF(Plan!$C41=Monia!$H$1,Plan!E41,\"\")","v":""},{"$f":"IF(Plan!$C41=Monia!$H$1,Plan!F41,\"\")","v":""},{"$f":"IF(Plan!$C41=Monia!$H$1,Plan!G41,\"\")","v":""}]
[{"$f":"IF(Plan!$C42=Monia!$H$1,Plan!A42,\"\")","v":""},{"$f":"IF(Plan!$C42=Monia!$H$1,Plan!B42,\"\")","v":""},{"$f":"IF(Plan!$C42=Monia!$H$1,Plan!D42,\"\")","v":""},{"$f":"IF(Plan!$C42=Monia!$H$1,Plan!E42,\"\")","v":""},{"$f":"IF(Plan!$C42=Monia!$H$1,Plan!F42,\"\")","v":""},{"$f":"IF(Plan!$C42=Monia!$H$1,Plan!G42,\"\")","v":""}]
[{"$f":"IF(Plan!$C43=Monia!$H$1,Plan!A43,\"\")","v":""},{"$f":"IF(Plan!$C43=Monia!$H$1,Plan!B43,\"\")","v":""},{"$f":"IF(Plan!$C43=Monia!$H$1,Plan!D43,\"\")","v":""},{"$f":"IF(Plan!$C43=Monia!$H$1,Plan!E43,\"\")","v":""},{"$f":"IF(Plan!$C43=Monia!$H$1,Plan!F43,\"\")","v":""},{"$f":"IF(Plan!$C43=Monia!$H$1,Plan!G43,\"\")","v":""}]

{"sheet":"Florence","index":7,"n_rows":43,"n_cols":8,"rows_kept":43,"cut":false,"hidden":false,"merged":[[0,0,0,5]]}
[{"$f":"CONCATENATE(\"Actions de \",MID(CELL(\"nomfichier\",I1),FIND(\"]\",CELL(\"nomfichier\",I1),20)+1,32))","v":"Actions de Florence"},null,null,null,null,null,null,{"$f":"MID(CELL(\"nomfichier\",I1),FIND(\"]\",CELL(\"nomfichier\",I1),20)+1,32)","v":"Florence"}]
[]
["N°","Actions","Lieu","Date","Durée","Moyens"]
[{"$f":"IF(Plan!$C4=Florence!$H$1,Plan!A4,\"\")","v":""},{"$f":"IF(Plan!$C4=Florence!$H$1,Plan!B4,\"\")","v":""},{"$f":"IF(Plan!$C4=Florence!$H$1,Plan!D4,\"\")","v":""},{"$f":"IF(Plan!$C4=Florence!$H$1,Plan!E4,\"\")","v":""},{"$f":"IF(Plan!$C4=Florence!$H$1,Plan!F4,\"\")","v":""},{"$f":"IF(Plan!$C4=Florence!$H$1,Plan!G4,\"\")","v":""}]
[{"$f":"IF(Plan!$C5=Florence!$H$1,Plan!A5,\"\")","v":""},{"$f":"IF(Plan!$C5=Florence!$H$1,Plan!B5,\"\")","v":""},{"$f":"IF(Plan!$C5=Florence!$H$1,Plan!D5,\"\")","v":""},{"$f":"IF(Plan!$C5=Florence!$H$1,Plan!E5,\"\")","v":""},{"$f":"IF(Plan!$C5=Florence!$H$1,Plan!F5,\"\")","v":""},{"$f":"IF(Plan!$C5=Florence!$H$1,Plan!G5,\"\")","v":""}]
[{"$f":"IF(Plan!$C6=Florence!$H$1,Plan!A6,\"\")","v":""},{"$f":"IF(Plan!$C6=Florence!$H$1,Plan!B6,\"\")","v":""},{"$f":"IF(Plan!$C6=Florence!$H$1,Plan!D6,\"\")","v":""},{"$f":"IF(Plan!$C6=Florence!$H$1,Plan!E6,\"\")","v":""},{"$f":"IF(Plan!$C6=Florence!$H$1,Plan!F6,\"\")","v":""},{"$f":"IF(Plan!$C6=Florence!$H$1,Plan!G6,\"\")","v":""}]
[{"$f":"IF(Plan!$C7=Florence!$H$1,Plan!A7,\"\")","v":25},{"$f":"IF(Plan!$C7=Florence!$H$1,Plan!B7,\"\")","v":"Elaborer le plan d'exploitation futur"},{"$f":"IF(Plan!$C7=Florence!$H$1,Plan!D7,\"\")","v":"Bureau"},{"$f":"IF(Plan!$C7=Florence!$H$1,Plan!E7,\"\")","v":"2015-10-30"},{"$f":"IF(Plan!$C7=Florence!$H$1,Plan!F7,\"\")","v":1},{"$f":"IF(Plan!$C7=Florence!$H$1,Plan!G7,\"\")","v":""}]
[{"$f":"IF(Plan!$C8=Florence!$H$1,Plan!A8,\"\")","v":""},{"$f":"IF(Plan!$C8=Florence!$H$1,Plan!B8,\"\")","v":""},{"$f":"IF(Plan!$C8=Florence!$H$1,Plan!D8,\"\")","v":""},{"$f":"IF(Plan!$C8=Florence!$H$1,Plan!E8,\"\")","v":""},{"$f":"IF(Plan!$C8=Florence!$H$1,Plan!F8,\"\")","v":""},{"$f":"IF(Plan!$C8=Florence!$H$1,Plan!G8,\"\")","v":""}]
[{"$f":"IF(Plan!$C9=Florence!$H$1,Plan!A9,\"\")","v":""},{"$f":"IF(Plan!$C9=Florence!$H$1,Plan!B9,\"\")","v":""},{"$f":"IF(Plan!$C9=Florence!$H$1,Plan!D9,\"\")","v":""},{"$f":"IF(Plan!$C9=Florence!$H$1,Plan!E9,\"\")","v":""},{"$f":"IF(Plan!$C9=Florence!$H$1,Plan!F9,\"\")","v":""},{"$f":"IF(Plan!$C9=Florence!$H$1,Plan!G9,\"\")","v":""}]
[{"$f":"IF(Plan!$C10=Florence!$H$1,Plan!A10,\"\")","v":""},{"$f":"IF(Plan!$C10=Florence!$H$1,Plan!B10,\"\")","v":""},{"$f":"IF(Plan!$C10=Florence!$H$1,Plan!D10,\"\")","v":""},{"$f":"IF(Plan!$C10=Florence!$H$1,Plan!E10,\"\")","v":""},{"$f":"IF(Plan!$C10=Florence!$H$1,Plan!F10,\"\")","v":""},{"$f":"IF(Plan!$C10=Florence!$H$1,Plan!G10,\"\")","v":""}]
[{"$f":"IF(Plan!$C11=Florence!$H$1,Plan!A11,\"\")","v":""},{"$f":"IF(Plan!$C11=Florence!$H$1,Plan!B11,\"\")","v":""},{"$f":"IF(Plan!$C11=Florence!$H$1,Plan!D11,\"\")","v":""},{"$f":"IF(Plan!$C11=Florence!$H$1,Plan!E11,\"\")","v":""},{"$f":"IF(Plan!$C11=Florence!$H$1,Plan!F11,\"\")","v":""},{"$f":"IF(Plan!$C11=Florence!$H$1,Plan!G11,\"\")","v":""}]
[{"$f":"IF(Plan!$C12=Florence!$H$1,Plan!A12,\"\")","v":""},{"$f":"IF(Plan!$C12=Florence!$H$1,Plan!B12,\"\")","v":""},{"$f":"IF(Plan!$C12=Florence!$H$1,Plan!D12,\"\")","v":""},{"$f":"IF(Plan!$C12=Florence!$H$1,Plan!E12,\"\")","v":""},{"$f":"IF(Plan!$C12=Florence!$H$1,Plan!F12,\"\")","v":""},{"$f":"IF(Plan!$C12=Florence!$H$1,Plan!G12,\"\")","v":""}]
[{"$f":"IF(Plan!$C13=Florence!$H$1,Plan!A13,\"\")","v":""},{"$f":"IF(Plan!$C13=Florence!$H$1,Plan!B13,\"\")","v":""},{"$f":"IF(Plan!$C13=Florence!$H$1,Plan!D13,\"\")","v":""},{"$f":"IF(Plan!$C13=Florence!$H$1,Plan!E13,\"\")","v":""},{"$f":"IF(Plan!$C13=Florence!$H$1,Plan!F13,\"\")","v":""},{"$f":"IF(Plan!$C13=Florence!$H$1,Plan!G13,\"\")","v":""}]
[{"$f":"IF(Plan!$C14=Florence!$H$1,Plan!A14,\"\")","v":""},{"$f":"IF(Plan!$C14=Florence!$H$1,Plan!B14,\"\")","v":""},{"$f":"IF(Plan!$C14=Florence!$H$1,Plan!D14,\"\")","v":""},{"$f":"IF(Plan!$C14=Florence!$H$1,Plan!E14,\"\")","v":""},{"$f":"IF(Plan!$C14=Florence!$H$1,Plan!F14,\"\")","v":""},{"$f":"IF(Plan!$C14=Florence!$H$1,Plan!G14,\"\")","v":""}]
[{"$f":"IF(Plan!$C15=Florence!$H$1,Plan!A15,\"\")","v":""},{"$f":"IF(Plan!$C15=Florence!$H$1,Plan!B15,\"\")","v":""},{"$f":"IF(Plan!$C15=Florence!$H$1,Plan!D15,\"\")","v":""},{"$f":"IF(Plan!$C15=Florence!$H$1,Plan!E15,\"\")","v":""},{"$f":"IF(Plan!$C15=Florence!$H$1,Plan!F15,\"\")","v":""},{"$f":"IF(Plan!$C15=Florence!$H$1,Plan!G15,\"\")","v":""}]
[{"$f":"IF(Plan!$C16=Florence!$H$1,Plan!A16,\"\")","v":""},{"$f":"IF(Plan!$C16=Florence!$H$1,Plan!B16,\"\")","v":""},{"$f":"IF(Plan!$C16=Florence!$H$1,Plan!D16,\"\")","v":""},{"$f":"IF(Plan!$C16=Florence!$H$1,Plan!E16,\"\")","v":""},{"$f":"IF(Plan!$C16=Florence!$H$1,Plan!F16,\"\")","v":""},{"$f":"IF(Plan!$C16=Florence!$H$1,Plan!G16,\"\")","v":""}]
[{"$f":"IF(Plan!$C17=Florence!$H$1,Plan!A17,\"\")","v":""},{"$f":"IF(Plan!$C17=Florence!$H$1,Plan!B17,\"\")","v":""},{"$f":"IF(Plan!$C17=Florence!$H$1,Plan!D17,\"\")","v":""},{"$f":"IF(Plan!$C17=Florence!$H$1,Plan!E17,\"\")","v":""},{"$f":"IF(Plan!$C17=Florence!$H$1,Plan!F17,\"\")","v":""},{"$f":"IF(Plan!$C17=Florence!$H$1,Plan!G17,\"\")","v":""}]
[{"$f":"IF(Plan!$C18=Florence!$H$1,Plan!A18,\"\")","v":""},{"$f":"IF(Plan!$C18=Florence!$H$1,Plan!B18,\"\")","v":""},{"$f":"IF(Plan!$C18=Florence!$H$1,Plan!D18,\"\")","v":""},{"$f":"IF(Plan!$C18=Florence!$H$1,Plan!E18,\"\")","v":""},{"$f":"IF(Plan!$C18=Florence!$H$1,Plan!F18,\"\")","v":""},{"$f":"IF(Plan!$C18=Florence!$H$1,Plan!G18,\"\")","v":""}]
[{"$f":"IF(Plan!$C19=Florence!$H$1,Plan!A19,\"\")","v":""},{"$f":"IF(Plan!$C19=Florence!$H$1,Plan!B19,\"\")","v":""},{"$f":"IF(Plan!$C19=Florence!$H$1,Plan!D19,\"\")","v":""},{"$f":"IF(Plan!$C19=Florence!$H$1,Plan!E19,\"\")","v":""},{"$f":"IF(Plan!$C19=Florence!$H$1,Plan!F19,\"\")","v":""},{"$f":"IF(Plan!$C19=Florence!$H$1,Plan!G19,\"\")","v":""}]
[{"$f":"IF(Plan!$C20=Florence!$H$1,Plan!A20,\"\")","v":""},{"$f":"IF(Plan!$C20=Florence!$H$1,Plan!B20,\"\")","v":""},{"$f":"IF(Plan!$C20=Florence!$H$1,Plan!D20,\"\")","v":""},{"$f":"IF(Plan!$C20=Florence!$H$1,Plan!E20,\"\")","v":""},{"$f":"IF(Plan!$C20=Florence!$H$1,Plan!F20,\"\")","v":""},{"$f":"IF(Plan!$C20=Florence!$H$1,Plan!G20,\"\")","v":""}]
[{"$f":"IF(Plan!$C21=Florence!$H$1,Plan!A21,\"\")","v":""},{"$f":"IF(Plan!$C21=Florence!$H$1,Plan!B21,\"\")","v":""},{"$f":"IF(Plan!$C21=Florence!$H$1,Plan!D21,\"\")","v":""},{"$f":"IF(Plan!$C21=Florence!$H$1,Plan!E21,\"\")","v":""},{"$f":"IF(Plan!$C21=Florence!$H$1,Plan!F21,\"\")","v":""},{"$f":"IF(Plan!$C21=Florence!$H$1,Plan!G21,\"\")","v":""}]
[{"$f":"IF(Plan!$C22=Florence!$H$1,Plan!A22,\"\")","v":""},{"$f":"IF(Plan!$C22=Florence!$H$1,Plan!B22,\"\")","v":""},{"$f":"IF(Plan!$C22=Florence!$H$1,Plan!D22,\"\")","v":""},{"$f":"IF(Plan!$C22=Florence!$H$1,Plan!E22,\"\")","v":""},{"$f":"IF(Plan!$C22=Florence!$H$1,Plan!F22,\"\")","v":""},{"$f":"IF(Plan!$C22=Florence!$H$1,Plan!G22,\"\")","v":""}]
[{"$f":"IF(Plan!$C23=Florence!$H$1,Plan!A23,\"\")","v":""},{"$f":"IF(Plan!$C23=Florence!$H$1,Plan!B23,\"\")","v":""},{"$f":"IF(Plan!$C23=Florence!$H$1,Plan!D23,\"\")","v":""},{"$f":"IF(Plan!$C23=Florence!$H$1,Plan!E23,\"\")","v":""},{"$f":"IF(Plan!$C23=Florence!$H$1,Plan!F23,\"\")","v":""},{"$f":"IF(Plan!$C23=Florence!$H$1,Plan!G23,\"\")","v":""}]
[{"$f":"IF(Plan!$C24=Florence!$H$1,Plan!A24,\"\")","v":""},{"$f":"IF(Plan!$C24=Florence!$H$1,Plan!B24,\"\")","v":""},{"$f":"IF(Plan!$C24=Florence!$H$1,Plan!D24,\"\")","v":""},{"$f":"IF(Plan!$C24=Florence!$H$1,Plan!E24,\"\")","v":""},{"$f":"IF(Plan!$C24=Florence!$H$1,Plan!F24,\"\")","v":""},{"$f":"IF(Plan!$C24=Florence!$H$1,Plan!G24,\"\")","v":""}]
[{"$f":"IF(Plan!$C25=Florence!$H$1,Plan!A25,\"\")","v":""},{"$f":"IF(Plan!$C25=Florence!$H$1,Plan!B25,\"\")","v":""},{"$f":"IF(Plan!$C25=Florence!$H$1,Plan!D25,\"\")","v":""},{"$f":"IF(Plan!$C25=Florence!$H$1,Plan!E25,\"\")","v":""},{"$f":"IF(Plan!$C25=Florence!$H$1,Plan!F25,\"\")","v":""},{"$f":"IF(Plan!$C25=Florence!$H$1,Plan!G25,\"\")","v":""}]
[{"$f":"IF(Plan!$C26=Florence!$H$1,Plan!A26,\"\")","v":""},{"$f":"IF(Plan!$C26=Florence!$H$1,Plan!B26,\"\")","v":""},{"$f":"IF(Plan!$C26=Florence!$H$1,Plan!D26,\"\")","v":""},{"$f":"IF(Plan!$C26=Florence!$H$1,Plan!E26,\"\")","v":""},{"$f":"IF(Plan!$C26=Florence!$H$1,Plan!F26,\"\")","v":""},{"$f":"IF(Plan!$C26=Florence!$H$1,Plan!G26,\"\")","v":""}]
[{"$f":"IF(Plan!$C27=Florence!$H$1,Plan!A27,\"\")","v":""},{"$f":"IF(Plan!$C27=Florence!$H$1,Plan!B27,\"\")","v":""},{"$f":"IF(Plan!$C27=Florence!$H$1,Plan!D27,\"\")","v":""},{"$f":"IF(Plan!$C27=Florence!$H$1,Plan!E27,\"\")","v":""},{"$f":"IF(Plan!$C27=Florence!$H$1,Plan!F27,\"\")","v":""},{"$f":"IF(Plan!$C27=Florence!$H$1,Plan!G27,\"\")","v":""}]
[{"$f":"IF(Plan!$C28=Florence!$H$1,Plan!A28,\"\")","v":""},{"$f":"IF(Plan!$C28=Florence!$H$1,Plan!B28,\"\")","v":""},{"$f":"IF(Plan!$C28=Florence!$H$1,Plan!D28,\"\")","v":""},{"$f":"IF(Plan!$C28=Florence!$H$1,Plan!E28,\"\")","v":""},{"$f":"IF(Plan!$C28=Florence!$H$1,Plan!F28,\"\")","v":""},{"$f":"IF(Plan!$C28=Florence!$H$1,Plan!G28,\"\")","v":""}]
[{"$f":"IF(Plan!$C29=Florence!$H$1,Plan!A29,\"\")","v":""},{"$f":"IF(Plan!$C29=Florence!$H$1,Plan!B29,\"\")","v":""},{"$f":"IF(Plan!$C29=Florence!$H$1,Plan!D29,\"\")","v":""},{"$f":"IF(Plan!$C29=Florence!$H$1,Plan!E29,\"\")","v":""},{"$f":"IF(Plan!$C29=Florence!$H$1,Plan!F29,\"\")","v":""},{"$f":"IF(Plan!$C29=Florence!$H$1,Plan!G29,\"\")","v":""}]
[{"$f":"IF(Plan!$C30=Florence!$H$1,Plan!A30,\"\")","v":""},{"$f":"IF(Plan!$C30=Florence!$H$1,Plan!B30,\"\")","v":""},{"$f":"IF(Plan!$C30=Florence!$H$1,Plan!D30,\"\")","v":""},{"$f":"IF(Plan!$C30=Florence!$H$1,Plan!E30,\"\")","v":""},{"$f":"IF(Plan!$C30=Florence!$H$1,Plan!F30,\"\")","v":""},{"$f":"IF(Plan!$C30=Florence!$H$1,Plan!G30,\"\")","v":""}]
[{"$f":"IF(Plan!$C31=Florence!$H$1,Plan!A31,\"\")","v":""},{"$f":"IF(Plan!$C31=Florence!$H$1,Plan!B31,\"\")","v":""},{"$f":"IF(Plan!$C31=Florence!$H$1,Plan!D31,\"\")","v":""},{"$f":"IF(Plan!$C31=Florence!$H$1,Plan!E31,\"\")","v":""},{"$f":"IF(Plan!$C31=Florence!$H$1,Plan!F31,\"\")","v":""},{"$f":"IF(Plan!$C31=Florence!$H$1,Plan!G31,\"\")","v":""}]
[{"$f":"IF(Plan!$C32=Florence!$H$1,Plan!A32,\"\")","v":""},{"$f":"IF(Plan!$C32=Florence!$H$1,Plan!B32,\"\")","v":""},{"$f":"IF(Plan!$C32=Florence!$H$1,Plan!D32,\"\")","v":""},{"$f":"IF(Plan!$C32=Florence!$H$1,Plan!E32,\"\")","v":""},{"$f":"IF(Plan!$C32=Florence!$H$1,Plan!F32,\"\")","v":""},{"$f":"IF(Plan!$C32=Florence!$H$1,Plan!G32,\"\")","v":""}]
[{"$f":"IF(Plan!$C33=Florence!$H$1,Plan!A33,\"\")","v":""},{"$f":"IF(Plan!$C33=Florence!$H$1,Plan!B33,\"\")","v":""},{"$f":"IF(Plan!$C33=Florence!$H$1,Plan!D33,\"\")","v":""},{"$f":"IF(Plan!$C33=Florence!$H$1,Plan!E33,\"\")","v":""},{"$f":"IF(Plan!$C33=Florence!$H$1,Plan!F33,\"\")","v":""},{"$f":"IF(Plan!$C33=Florence!$H$1,Plan!G33,\"\")","v":""}]
[{"$f":"IF(Plan!$C34=Florence!$H$1,Plan!A34,\"\")","v":""},{"$f":"IF(Plan!$C34=Florence!$H$1,Plan!B34,\"\")","v":""},{"$f":"IF(Plan!$C34=Florence!$H$1,Plan!D34,\"\")","v":""},{"$f":"IF(Plan!$C34=Florence!$H$1,Plan!E34,\"\")","v":""},{"$f":"IF(Plan!$C34=Florence!$H$1,Plan!F34,\"\")","v":""},{"$f":"IF(Plan!$C34=Florence!$H$1,Plan!G34,\"\")","v":""}]
[{"$f":"IF(Plan!$C35=Florence!$H$1,Plan!A35,\"\")","v":""},{"$f":"IF(Plan!$C35=Florence!$H$1,Plan!B35,\"\")","v":""},{"$f":"IF(Plan!$C35=Florence!$H$1,Plan!D35,\"\")","v":""},{"$f":"IF(Plan!$C35=Florence!$H$1,Plan!E35,\"\")","v":""},{"$f":"IF(Plan!$C35=Florence!$H$1,Plan!F35,\"\")","v":""},{"$f":"IF(Plan!$C35=Florence!$H$1,Plan!G35,\"\")","v":""}]
[{"$f":"IF(Plan!$C36=Florence!$H$1,Plan!A36,\"\")","v":""},{"$f":"IF(Plan!$C36=Florence!$H$1,Plan!B36,\"\")","v":""},{"$f":"IF(Plan!$C36=Florence!$H$1,Plan!D36,\"\")","v":""},{"$f":"IF(Plan!$C36=Florence!$H$1,Plan!E36,\"\")","v":""},{"$f":"IF(Plan!$C36=Florence!$H$1,Plan!F36,\"\")","v":""},{"$f":"IF(Plan!$C36=Florence!$H$1,Plan!G36,\"\")","v":""}]
[{"$f":"IF(Plan!$C37=Florence!$H$1,Plan!A37,\"\")","v":""},{"$f":"IF(Plan!$C37=Florence!$H$1,Plan!B37,\"\")","v":""},{"$f":"IF(Plan!$C37=Florence!$H$1,Plan!D37,\"\")","v":""},{"$f":"IF(Plan!$C37=Florence!$H$1,Plan!E37,\"\")","v":""},{"$f":"IF(Plan!$C37=Florence!$H$1,Plan!F37,\"\")","v":""},{"$f":"IF(Plan!$C37=Florence!$H$1,Plan!G37,\"\")","v":""}]
[{"$f":"IF(Plan!$C38=Florence!$H$1,Plan!A38,\"\")","v":""},{"$f":"IF(Plan!$C38=Florence!$H$1,Plan!B38,\"\")","v":""},{"$f":"IF(Plan!$C38=Florence!$H$1,Plan!D38,\"\")","v":""},{"$f":"IF(Plan!$C38=Florence!$H$1,Plan!E38,\"\")","v":""},{"$f":"IF(Plan!$C38=Florence!$H$1,Plan!F38,\"\")","v":""},{"$f":"IF(Plan!$C38=Florence!$H$1,Plan!G38,\"\")","v":""}]
[{"$f":"IF(Plan!$C39=Florence!$H$1,Plan!A39,\"\")","v":""},{"$f":"IF(Plan!$C39=Florence!$H$1,Plan!B39,\"\")","v":""},{"$f":"IF(Plan!$C39=Florence!$H$1,Plan!D39,\"\")","v":""},{"$f":"IF(Plan!$C39=Florence!$H$1,Plan!E39,\"\")","v":""},{"$f":"IF(Plan!$C39=Florence!$H$1,Plan!F39,\"\")","v":""},{"$f":"IF(Plan!$C39=Florence!$H$1,Plan!G39,\"\")","v":""}]
[{"$f":"IF(Plan!$C40=Florence!$H$1,Plan!A40,\"\")","v":""},{"$f":"IF(Plan!$C40=Florence!$H$1,Plan!B40,\"\")","v":""},{"$f":"IF(Plan!$C40=Florence!$H$1,Plan!D40,\"\")","v":""},{"$f":"IF(Plan!$C40=Florence!$H$1,Plan!E40,\"\")","v":""},{"$f":"IF(Plan!$C40=Florence!$H$1,Plan!F40,\"\")","v":""},{"$f":"IF(Plan!$C40=Florence!$H$1,Plan!G40,\"\")","v":""}]
[{"$f":"IF(Plan!$C41=Florence!$H$1,Plan!A41,\"\")","v":""},{"$f":"IF(Plan!$C41=Florence!$H$1,Plan!B41,\"\")","v":""},{"$f":"IF(Plan!$C41=Florence!$H$1,Plan!D41,\"\")","v":""},{"$f":"IF(Plan!$C41=Florence!$H$1,Plan!E41,\"\")","v":""},{"$f":"IF(Plan!$C41=Florence!$H$1,Plan!F41,\"\")","v":""},{"$f":"IF(Plan!$C41=Florence!$H$1,Plan!G41,\"\")","v":""}]
[{"$f":"IF(Plan!$C42=Florence!$H$1,Plan!A42,\"\")","v":""},{"$f":"IF(Plan!$C42=Florence!$H$1,Plan!B42,\"\")","v":""},{"$f":"IF(Plan!$C42=Florence!$H$1,Plan!D42,\"\")","v":""},{"$f":"IF(Plan!$C42=Florence!$H$1,Plan!E42,\"\")","v":""},{"$f":"IF(Plan!$C42=Florence!$H$1,Plan!F42,\"\")","v":""},{"$f":"IF(Plan!$C42=Florence!$H$1,Plan!G42,\"\")","v":""}]
[{"$f":"IF(Plan!$C43=Florence!$H$1,Plan!A43,\"\")","v":""},{"$f":"IF(Plan!$C43=Florence!$H$1,Plan!B43,\"\")","v":""},{"$f":"IF(Plan!$C43=Florence!$H$1,Plan!D43,\"\")","v":""},{"$f":"IF(Plan!$C43=Florence!$H$1,Plan!E43,\"\")","v":""},{"$f":"IF(Plan!$C43=Florence!$H$1,Plan!F43,\"\")","v":""},{"$f":"IF(Plan!$C43=Florence!$H$1,Plan!G43,\"\")","v":""}]

{"sheet":"Jean-Pierre","index":8,"n_rows":43,"n_cols":8,"rows_kept":43,"cut":false,"hidden":false,"merged":[[0,0,0,5]]}
[{"$f":"CONCATENATE(\"Actions de \",MID(CELL(\"nomfichier\",I1),FIND(\"]\",CELL(\"nomfichier\",I1),20)+1,32))","v":"Actions de Jean-Pierre"},null,null,null,null,null,null,{"$f":"MID(CELL(\"nomfichier\",I1),FIND(\"]\",CELL(\"nomfichier\",I1),20)+1,32)","v":"Jean-Pierre"}]
[]
["N°","Actions","Lieu","Date","Durée","Moyens"]
[{"$f":"IF(Plan!$C4='Jean-Pierre'!$H$1,Plan!A4,\"\")","v":""},{"$f":"IF(Plan!$C4='Jean-Pierre'!$H$1,Plan!B4,\"\")","v":""},{"$f":"IF(Plan!$C4='Jean-Pierre'!$H$1,Plan!D4,\"\")","v":""},{"$f":"IF(Plan!$C4='Jean-Pierre'!$H$1,Plan!E4,\"\")","v":""},{"$f":"IF(Plan!$C4='Jean-Pierre'!$H$1,Plan!F4,\"\")","v":""},{"$f":"IF(Plan!$C4='Jean-Pierre'!$H$1,Plan!G4,\"\")","v":""}]
[{"$f":"IF(Plan!$C5='Jean-Pierre'!$H$1,Plan!A5,\"\")","v":""},{"$f":"IF(Plan!$C5='Jean-Pierre'!$H$1,Plan!B5,\"\")","v":""},{"$f":"IF(Plan!$C5='Jean-Pierre'!$H$1,Plan!D5,\"\")","v":""},{"$f":"IF(Plan!$C5='Jean-Pierre'!$H$1,Plan!E5,\"\")","v":""},{"$f":"IF(Plan!$C5='Jean-Pierre'!$H$1,Plan!F5,\"\")","v":""},{"$f":"IF(Plan!$C5='Jean-Pierre'!$H$1,Plan!G5,\"\")","v":""}]
[{"$f":"IF(Plan!$C6='Jean-Pierre'!$H$1,Plan!A6,\"\")","v":""},{"$f":"IF(Plan!$C6='Jean-Pierre'!$H$1,Plan!B6,\"\")","v":""},{"$f":"IF(Plan!$C6='Jean-Pierre'!$H$1,Plan!D6,\"\")","v":""},{"$f":"IF(Plan!$C6='Jean-Pierre'!$H$1,Plan!E6,\"\")","v":""},{"$f":"IF(Plan!$C6='Jean-Pierre'!$H$1,Plan!F6,\"\")","v":""},{"$f":"IF(Plan!$C6='Jean-Pierre'!$H$1,Plan!G6,\"\")","v":""}]
[{"$f":"IF(Plan!$C7='Jean-Pierre'!$H$1,Plan!A7,\"\")","v":""},{"$f":"IF(Plan!$C7='Jean-Pierre'!$H$1,Plan!B7,\"\")","v":""},{"$f":"IF(Plan!$C7='Jean-Pierre'!$H$1,Plan!D7,\"\")","v":""},{"$f":"IF(Plan!$C7='Jean-Pierre'!$H$1,Plan!E7,\"\")","v":""},{"$f":"IF(Plan!$C7='Jean-Pierre'!$H$1,Plan!F7,\"\")","v":""},{"$f":"IF(Plan!$C7='Jean-Pierre'!$H$1,Plan!G7,\"\")","v":""}]
[{"$f":"IF(Plan!$C8='Jean-Pierre'!$H$1,Plan!A8,\"\")","v":""},{"$f":"IF(Plan!$C8='Jean-Pierre'!$H$1,Plan!B8,\"\")","v":""},{"$f":"IF(Plan!$C8='Jean-Pierre'!$H$1,Plan!D8,\"\")","v":""},{"$f":"IF(Plan!$C8='Jean-Pierre'!$H$1,Plan!E8,\"\")","v":""},{"$f":"IF(Plan!$C8='Jean-Pierre'!$H$1,Plan!F8,\"\")","v":""},{"$f":"IF(Plan!$C8='Jean-Pierre'!$H$1,Plan!G8,\"\")","v":""}]
[{"$f":"IF(Plan!$C9='Jean-Pierre'!$H$1,Plan!A9,\"\")","v":35},{"$f":"IF(Plan!$C9='Jean-Pierre'!$H$1,Plan!B9,\"\")","v":"Faire les études d'insertion"},{"$f":"IF(Plan!$C9='Jean-Pierre'!$H$1,Plan!D9,\"\")","v":"Bureau"},{"$f":"IF(Plan!$C9='Jean-Pierre'!$H$1,Plan!E9,\"\")","v":"2015-10-30"},{"$f":"IF(Plan!$C9='Jean-Pierre'!$H$1,Plan!F9,\"\")","v":3},{"$f":"IF(Plan!$C9='Jean-Pierre'!$H$1,Plan!G9,\"\")","v":""}]
[{"$f":"IF(Plan!$C10='Jean-Pierre'!$H$1,Plan!A10,\"\")","v":""},{"$f":"IF(Plan!$C10='Jean-Pierre'!$H$1,Plan!B10,\"\")","v":""},{"$f":"IF(Plan!$C10='Jean-Pierre'!$H$1,Plan!D10,\"\")","v":""},{"$f":"IF(Plan!$C10='Jean-Pierre'!$H$1,Plan!E10,\"\")","v":""},{"$f":"IF(Plan!$C10='Jean-Pierre'!$H$1,Plan!F10,\"\")","v":""},{"$f":"IF(Plan!$C10='Jean-Pierre'!$H$1,Plan!G10,\"\")","v":""}]
[{"$f":"IF(Plan!$C11='Jean-Pierre'!$H$1,Plan!A11,\"\")","v":""},{"$f":"IF(Plan!$C11='Jean-Pierre'!$H$1,Plan!B11,\"\")","v":""},{"$f":"IF(Plan!$C11='Jean-Pierre'!$H$1,Plan!D11,\"\")","v":""},{"$f":"IF(Plan!$C11='Jean-Pierre'!$H$1,Plan!E11,\"\")","v":""},{"$f":"IF(Plan!$C11='Jean-Pierre'!$H$1,Plan!F11,\"\")","v":""},{"$f":"IF(Plan!$C11='Jean-Pierre'!$H$1,Plan!G11,\"\")","v":""}]
[{"$f":"IF(Plan!$C12='Jean-Pierre'!$H$1,Plan!A12,\"\")","v":""},{"$f":"IF(Plan!$C12='Jean-Pierre'!$H$1,Plan!B12,\"\")","v":""},{"$f":"IF(Plan!$C12='Jean-Pierre'!$H$1,Plan!D12,\"\")","v":""},{"$f":"IF(Plan!$C12='Jean-Pierre'!$H$1,Plan!E12,\"\")","v":""},{"$f":"IF(Plan!$C12='Jean-Pierre'!$H$1,Plan!F12,\"\")","v":""},{"$f":"IF(Plan!$C12='Jean-Pierre'!$H$1,Plan!G12,\"\")","v":""}]
[{"$f":"IF(Plan!$C13='Jean-Pierre'!$H$1,Plan!A13,\"\")","v":""},{"$f":"IF(Plan!$C13='Jean-Pierre'!$H$1,Plan!B13,\"\")","v":""},{"$f":"IF(Plan!$C13='Jean-Pierre'!$H$1,Plan!D13,\"\")","v":""},{"$f":"IF(Plan!$C13='Jean-Pierre'!$H$1,Plan!E13,\"\")","v":""},{"$f":"IF(Plan!$C13='Jean-Pierre'!$H$1,Plan!F13,\"\")","v":""},{"$f":"IF(Plan!$C13='Jean-Pierre'!$H$1,Plan!G13,\"\")","v":""}]
[{"$f":"IF(Plan!$C14='Jean-Pierre'!$H$1,Plan!A14,\"\")","v":70},{"$f":"IF(Plan!$C14='Jean-Pierre'!$H$1,Plan!B14,\"\")","v":"Faire les études techniques (Sol, impact)"},{"$f":"IF(Plan!$C14='Jean-Pierre'!$H$1,Plan!D14,\"\")","v":"Bureau"},{"$f":"IF(Plan!$C14='Jean-Pierre'!$H$1,Plan!E14,\"\")","v":"2015-09-30"},{"$f":"IF(Plan!$C14='Jean-Pierre'!$H$1,Plan!F14,\"\")","v":2},{"$f":"IF(Plan!$C14='Jean-Pierre'!$H$1,Plan!G14,\"\")","v":""}]
[{"$f":"IF(Plan!$C15='Jean-Pierre'!$H$1,Plan!A15,\"\")","v":""},{"$f":"IF(Plan!$C15='Jean-Pierre'!$H$1,Plan!B15,\"\")","v":""},{"$f":"IF(Plan!$C15='Jean-Pierre'!$H$1,Plan!D15,\"\")","v":""},{"$f":"IF(Plan!$C15='Jean-Pierre'!$H$1,Plan!E15,\"\")","v":""},{"$f":"IF(Plan!$C15='Jean-Pierre'!$H$1,Plan!F15,\"\")","v":""},{"$f":"IF(Plan!$C15='Jean-Pierre'!$H$1,Plan!G15,\"\")","v":""}]
[{"$f":"IF(Plan!$C16='Jean-Pierre'!$H$1,Plan!A16,\"\")","v":""},{"$f":"IF(Plan!$C16='Jean-Pierre'!$H$1,Plan!B16,\"\")","v":""},{"$f":"IF(Plan!$C16='Jean-Pierre'!$H$1,Plan!D16,\"\")","v":""},{"$f":"IF(Plan!$C16='Jean-Pierre'!$H$1,Plan!E16,\"\")","v":""},{"$f":"IF(Plan!$C16='Jean-Pierre'!$H$1,Plan!F16,\"\")","v":""},{"$f":"IF(Plan!$C16='Jean-Pierre'!$H$1,Plan!G16,\"\")","v":""}]
[{"$f":"IF(Plan!$C17='Jean-Pierre'!$H$1,Plan!A17,\"\")","v":""},{"$f":"IF(Plan!$C17='Jean-Pierre'!$H$1,Plan!B17,\"\")","v":""},{"$f":"IF(Plan!$C17='Jean-Pierre'!$H$1,Plan!D17,\"\")","v":""},{"$f":"IF(Plan!$C17='Jean-Pierre'!$H$1,Plan!E17,\"\")","v":""},{"$f":"IF(Plan!$C17='Jean-Pierre'!$H$1,Plan!F17,\"\")","v":""},{"$f":"IF(Plan!$C17='Jean-Pierre'!$H$1,Plan!G17,\"\")","v":""}]
[{"$f":"IF(Plan!$C18='Jean-Pierre'!$H$1,Plan!A18,\"\")","v":""},{"$f":"IF(Plan!$C18='Jean-Pierre'!$H$1,Plan!B18,\"\")","v":""},{"$f":"IF(Plan!$C18='Jean-Pierre'!$H$1,Plan!D18,\"\")","v":""},{"$f":"IF(Plan!$C18='Jean-Pierre'!$H$1,Plan!E18,\"\")","v":""},{"$f":"IF(Plan!$C18='Jean-Pierre'!$H$1,Plan!F18,\"\")","v":""},{"$f":"IF(Plan!$C18='Jean-Pierre'!$H$1,Plan!G18,\"\")","v":""}]
[{"$f":"IF(Plan!$C19='Jean-Pierre'!$H$1,Plan!A19,\"\")","v":70},{"$f":"IF(Plan!$C19='Jean-Pierre'!$H$1,Plan!B19,\"\")","v":"Faire les études techniques (Sol, impact)"},{"$f":"IF(Plan!$C19='Jean-Pierre'!$H$1,Plan!D19,\"\")","v":"Bureau"},{"$f":"IF(Plan!$C19='Jean-Pierre'!$H$1,Plan!E19,\"\")","v":"2015-09-30"},{"$f":"IF(Plan!$C19='Jean-Pierre'!$H$1,Plan!F19,\"\")","v":2},{"$f":"IF(Plan!$C19='Jean-Pierre'!$H$1,Plan!G19,\"\")","v":""}]
[{"$f":"IF(Plan!$C20='Jean-Pierre'!$H$1,Plan!A20,\"\")","v":""},{"$f":"IF(Plan!$C20='Jean-Pierre'!$H$1,Plan!B20,\"\")","v":""},{"$f":"IF(Plan!$C20='Jean-Pierre'!$H$1,Plan!D20,\"\")","v":""},{"$f":"IF(Plan!$C20='Jean-Pierre'!$H$1,Plan!E20,\"\")","v":""},{"$f":"IF(Plan!$C20='Jean-Pierre'!$H$1,Plan!F20,\"\")","v":""},{"$f":"IF(Plan!$C20='Jean-Pierre'!$H$1,Plan!G20,\"\")","v":""}]
[{"$f":"IF(Plan!$C21='Jean-Pierre'!$H$1,Plan!A21,\"\")","v":""},{"$f":"IF(Plan!$C21='Jean-Pierre'!$H$1,Plan!B21,\"\")","v":""},{"$f":"IF(Plan!$C21='Jean-Pierre'!$H$1,Plan!D21,\"\")","v":""},{"$f":"IF(Plan!$C21='Jean-Pierre'!$H$1,Plan!E21,\"\")","v":""},{"$f":"IF(Plan!$C21='Jean-Pierre'!$H$1,Plan!F21,\"\")","v":""},{"$f":"IF(Plan!$C21='Jean-Pierre'!$H$1,Plan!G21,\"\")","v":""}]
[{"$f":"IF(Plan!$C22='Jean-Pierre'!$H$1,Plan!A22,\"\")","v":""},{"$f":"IF(Plan!$C22='Jean-Pierre'!$H$1,Plan!B22,\"\")","v":""},{"$f":"IF(Plan!$C22='Jean-Pierre'!$H$1,Plan!D22,\"\")","v":""},{"$f":"IF(Plan!$C22='Jean-Pierre'!$H$1,Plan!E22,\"\")","v":""},{"$f":"IF(Plan!$C22='Jean-Pierre'!$H$1,Plan!F22,\"\")","v":""},{"$f":"IF(Plan!$C22='Jean-Pierre'!$H$1,Plan!G22,\"\")","v":""}]
[{"$f":"IF(Plan!$C23='Jean-Pierre'!$H$1,Plan!A23,\"\")","v":""},{"$f":"IF(Plan!$C23='Jean-Pierre'!$H$1,Plan!B23,\"\")","v":""},{"$f":"IF(Plan!$C23='Jean-Pierre'!$H$1,Plan!D23,\"\")","v":""},{"$f":"IF(Plan!$C23='Jean-Pierre'!$H$1,Plan!E23,\"\")","v":""},{"$f":"IF(Plan!$C23='Jean-Pierre'!$H$1,Plan!F23,\"\")","v":""},{"$f":"IF(Plan!$C23='Jean-Pierre'!$H$1,Plan!G23,\"\")","v":""}]
[{"$f":"IF(Plan!$C24='Jean-Pierre'!$H$1,Plan!A24,\"\")","v":""},{"$f":"IF(Plan!$C24='Jean-Pierre'!$H$1,Plan!B24,\"\")","v":""},{"$f":"IF(Plan!$C24='Jean-Pierre'!$H$1,Plan!D24,\"\")","v":""},{"$f":"IF(Plan!$C24='Jean-Pierre'!$H$1,Plan!E24,\"\")","v":""},{"$f":"IF(Plan!$C24='Jean-Pierre'!$H$1,Plan!F24,\"\")","v":""},{"$f":"IF(Plan!$C24='Jean-Pierre'!$H$1,Plan!G24,\"\")","v":""}]
[{"$f":"IF(Plan!$C25='Jean-Pierre'!$H$1,Plan!A25,\"\")","v":""},{"$f":"IF(Plan!$C25='Jean-Pierre'!$H$1,Plan!B25,\"\")","v":""},{"$f":"IF(Plan!$C25='Jean-Pierre'!$H$1,Plan!D25,\"\")","v":""},{"$f":"IF(Plan!$C25='Jean-Pierre'!$H$1,Plan!E25,\"\")","v":""},{"$f":"IF(Plan!$C25='Jean-Pierre'!$H$1,Plan!F25,\"\")","v":""},{"$f":"IF(Plan!$C25='Jean-Pierre'!$H$1,Plan!G25,\"\")","v":""}]
[{"$f":"IF(Plan!$C26='Jean-Pierre'!$H$1,Plan!A26,\"\")","v":""},{"$f":"IF(Plan!$C26='Jean-Pierre'!$H$1,Plan!B26,\"\")","v":""},{"$f":"IF(Plan!$C26='Jean-Pierre'!$H$1,Plan!D26,\"\")","v":""},{"$f":"IF(Plan!$C26='Jean-Pierre'!$H$1,Plan!E26,\"\")","v":""},{"$f":"IF(Plan!$C26='Jean-Pierre'!$H$1,Plan!F26,\"\")","v":""},{"$f":"IF(Plan!$C26='Jean-Pierre'!$H$1,Plan!G26,\"\")","v":""}]
[{"$f":"IF(Plan!$C27='Jean-Pierre'!$H$1,Plan!A27,\"\")","v":""},{"$f":"IF(Plan!$C27='Jean-Pierre'!$H$1,Plan!B27,\"\")","v":""},{"$f":"IF(Plan!$C27='Jean-Pierre'!$H$1,Plan!D27,\"\")","v":""},{"$f":"IF(Plan!$C27='Jean-Pierre'!$H$1,Plan!E27,\"\")","v":""},{"$f":"IF(Plan!$C27='Jean-Pierre'!$H$1,Plan!F27,\"\")","v":""},{"$f":"IF(Plan!$C27='Jean-Pierre'!$H$1,Plan!G27,\"\")","v":""}]
[{"$f":"IF(Plan!$C28='Jean-Pierre'!$H$1,Plan!A28,\"\")","v":""},{"$f":"IF(Plan!$C28='Jean-Pierre'!$H$1,Plan!B28,\"\")","v":""},{"$f":"IF(Plan!$C28='Jean-Pierre'!$H$1,Plan!D28,\"\")","v":""},{"$f":"IF(Plan!$C28='Jean-Pierre'!$H$1,Plan!E28,\"\")","v":""},{"$f":"IF(Plan!$C28='Jean-Pierre'!$H$1,Plan!F28,\"\")","v":""},{"$f":"IF(Plan!$C28='Jean-Pierre'!$H$1,Plan!G28,\"\")","v":""}]
[{"$f":"IF(Plan!$C29='Jean-Pierre'!$H$1,Plan!A29,\"\")","v":""},{"$f":"IF(Plan!$C29='Jean-Pierre'!$H$1,Plan!B29,\"\")","v":""},{"$f":"IF(Plan!$C29='Jean-Pierre'!$H$1,Plan!D29,\"\")","v":""},{"$f":"IF(Plan!$C29='Jean-Pierre'!$H$1,Plan!E29,\"\")","v":""},{"$f":"IF(Plan!$C29='Jean-Pierre'!$H$1,Plan!F29,\"\")","v":""},{"$f":"IF(Plan!$C29='Jean-Pierre'!$H$1,Plan!G29,\"\")","v":""}]
[{"$f":"IF(Plan!$C30='Jean-Pierre'!$H$1,Plan!A30,\"\")","v":""},{"$f":"IF(Plan!$C30='Jean-Pierre'!$H$1,Plan!B30,\"\")","v":""},{"$f":"IF(Plan!$C30='Jean-Pierre'!$H$1,Plan!D30,\"\")","v":""},{"$f":"IF(Plan!$C30='Jean-Pierre'!$H$1,Plan!E30,\"\")","v":""},{"$f":"IF(Plan!$C30='Jean-Pierre'!$H$1,Plan!F30,\"\")","v":""},{"$f":"IF(Plan!$C30='Jean-Pierre'!$H$1,Plan!G30,\"\")","v":""}]
[{"$f":"IF(Plan!$C31='Jean-Pierre'!$H$1,Plan!A31,\"\")","v":""},{"$f":"IF(Plan!$C31='Jean-Pierre'!$H$1,Plan!B31,\"\")","v":""},{"$f":"IF(Plan!$C31='Jean-Pierre'!$H$1,Plan!D31,\"\")","v":""},{"$f":"IF(Plan!$C31='Jean-Pierre'!$H$1,Plan!E31,\"\")","v":""},{"$f":"IF(Plan!$C31='Jean-Pierre'!$H$1,Plan!F31,\"\")","v":""},{"$f":"IF(Plan!$C31='Jean-Pierre'!$H$1,Plan!G31,\"\")","v":""}]
[{"$f":"IF(Plan!$C32='Jean-Pierre'!$H$1,Plan!A32,\"\")","v":""},{"$f":"IF(Plan!$C32='Jean-Pierre'!$H$1,Plan!B32,\"\")","v":""},{"$f":"IF(Plan!$C32='Jean-Pierre'!$H$1,Plan!D32,\"\")","v":""},{"$f":"IF(Plan!$C32='Jean-Pierre'!$H$1,Plan!E32,\"\")","v":""},{"$f":"IF(Plan!$C32='Jean-Pierre'!$H$1,Plan!F32,\"\")","v":""},{"$f":"IF(Plan!$C32='Jean-Pierre'!$H$1,Plan!G32,\"\")","v":""}]
[{"$f":"IF(Plan!$C33='Jean-Pierre'!$H$1,Plan!A33,\"\")","v":""},{"$f":"IF(Plan!$C33='Jean-Pierre'!$H$1,Plan!B33,\"\")","v":""},{"$f":"IF(Plan!$C33='Jean-Pierre'!$H$1,Plan!D33,\"\")","v":""},{"$f":"IF(Plan!$C33='Jean-Pierre'!$H$1,Plan!E33,\"\")","v":""},{"$f":"IF(Plan!$C33='Jean-Pierre'!$H$1,Plan!F33,\"\")","v":""},{"$f":"IF(Plan!$C33='Jean-Pierre'!$H$1,Plan!G33,\"\")","v":""}]
[{"$f":"IF(Plan!$C34='Jean-Pierre'!$H$1,Plan!A34,\"\")","v":""},{"$f":"IF(Plan!$C34='Jean-Pierre'!$H$1,Plan!B34,\"\")","v":""},{"$f":"IF(Plan!$C34='Jean-Pierre'!$H$1,Plan!D34,\"\")","v":""},{"$f":"IF(Plan!$C34='Jean-Pierre'!$H$1,Plan!E34,\"\")","v":""},{"$f":"IF(Plan!$C34='Jean-Pierre'!$H$1,Plan!F34,\"\")","v":""},{"$f":"IF(Plan!$C34='Jean-Pierre'!$H$1,Plan!G34,\"\")","v":""}]
[{"$f":"IF(Plan!$C35='Jean-Pierre'!$H$1,Plan!A35,\"\")","v":""},{"$f":"IF(Plan!$C35='Jean-Pierre'!$H$1,Plan!B35,\"\")","v":""},{"$f":"IF(Plan!$C35='Jean-Pierre'!$H$1,Plan!D35,\"\")","v":""},{"$f":"IF(Plan!$C35='Jean-Pierre'!$H$1,Plan!E35,\"\")","v":""},{"$f":"IF(Plan!$C35='Jean-Pierre'!$H$1,Plan!F35,\"\")","v":""},{"$f":"IF(Plan!$C35='Jean-Pierre'!$H$1,Plan!G35,\"\")","v":""}]
[{"$f":"IF(Plan!$C36='Jean-Pierre'!$H$1,Plan!A36,\"\")","v":""},{"$f":"IF(Plan!$C36='Jean-Pierre'!$H$1,Plan!B36,\"\")","v":""},{"$f":"IF(Plan!$C36='Jean-Pierre'!$H$1,Plan!D36,\"\")","v":""},{"$f":"IF(Plan!$C36='Jean-Pierre'!$H$1,Plan!E36,\"\")","v":""},{"$f":"IF(Plan!$C36='Jean-Pierre'!$H$1,Plan!F36,\"\")","v":""},{"$f":"IF(Plan!$C36='Jean-Pierre'!$H$1,Plan!G36,\"\")","v":""}]
[{"$f":"IF(Plan!$C37='Jean-Pierre'!$H$1,Plan!A37,\"\")","v":""},{"$f":"IF(Plan!$C37='Jean-Pierre'!$H$1,Plan!B37,\"\")","v":""},{"$f":"IF(Plan!$C37='Jean-Pierre'!$H$1,Plan!D37,\"\")","v":""},{"$f":"IF(Plan!$C37='Jean-Pierre'!$H$1,Plan!E37,\"\")","v":""},{"$f":"IF(Plan!$C37='Jean-Pierre'!$H$1,Plan!F37,\"\")","v":""},{"$f":"IF(Plan!$C37='Jean-Pierre'!$H$1,Plan!G37,\"\")","v":""}]
[{"$f":"IF(Plan!$C38='Jean-Pierre'!$H$1,Plan!A38,\"\")","v":""},{"$f":"IF(Plan!$C38='Jean-Pierre'!$H$1,Plan!B38,\"\")","v":""},{"$f":"IF(Plan!$C38='Jean-Pierre'!$H$1,Plan!D38,\"\")","v":""},{"$f":"IF(Plan!$C38='Jean-Pierre'!$H$1,Plan!E38,\"\")","v":""},{"$f":"IF(Plan!$C38='Jean-Pierre'!$H$1,Plan!F38,\"\")","v":""},{"$f":"IF(Plan!$C38='Jean-Pierre'!$H$1,Plan!G38,\"\")","v":""}]
[{"$f":"IF(Plan!$C39='Jean-Pierre'!$H$1,Plan!A39,\"\")","v":""},{"$f":"IF(Plan!$C39='Jean-Pierre'!$H$1,Plan!B39,\"\")","v":""},{"$f":"IF(Plan!$C39='Jean-Pierre'!$H$1,Plan!D39,\"\")","v":""},{"$f":"IF(Plan!$C39='Jean-Pierre'!$H$1,Plan!E39,\"\")","v":""},{"$f":"IF(Plan!$C39='Jean-Pierre'!$H$1,Plan!F39,\"\")","v":""},{"$f":"IF(Plan!$C39='Jean-Pierre'!$H$1,Plan!G39,\"\")","v":""}]
[{"$f":"IF(Plan!$C40='Jean-Pierre'!$H$1,Plan!A40,\"\")","v":""},{"$f":"IF(Plan!$C40='Jean-Pierre'!$H$1,Plan!B40,\"\")","v":""},{"$f":"IF(Plan!$C40='Jean-Pierre'!$H$1,Plan!D40,\"\")","v":""},{"$f":"IF(Plan!$C40='Jean-Pierre'!$H$1,Plan!E40,\"\")","v":""},{"$f":"IF(Plan!$C40='Jean-Pierre'!$H$1,Plan!F40,\"\")","v":""},{"$f":"IF(Plan!$C40='Jean-Pierre'!$H$1,Plan!G40,\"\")","v":""}]
[{"$f":"IF(Plan!$C41='Jean-Pierre'!$H$1,Plan!A41,\"\")","v":""},{"$f":"IF(Plan!$C41='Jean-Pierre'!$H$1,Plan!B41,\"\")","v":""},{"$f":"IF(Plan!$C41='Jean-Pierre'!$H$1,Plan!D41,\"\")","v":""},{"$f":"IF(Plan!$C41='Jean-Pierre'!$H$1,Plan!E41,\"\")","v":""},{"$f":"IF(Plan!$C41='Jean-Pierre'!$H$1,Plan!F41,\"\")","v":""},{"$f":"IF(Plan!$C41='Jean-Pierre'!$H$1,Plan!G41,\"\")","v":""}]
[{"$f":"IF(Plan!$C42='Jean-Pierre'!$H$1,Plan!A42,\"\")","v":""},{"$f":"IF(Plan!$C42='Jean-Pierre'!$H$1,Plan!B42,\"\")","v":""},{"$f":"IF(Plan!$C42='Jean-Pierre'!$H$1,Plan!D42,\"\")","v":""},{"$f":"IF(Plan!$C42='Jean-Pierre'!$H$1,Plan!E42,\"\")","v":""},{"$f":"IF(Plan!$C42='Jean-Pierre'!$H$1,Plan!F42,\"\")","v":""},{"$f":"IF(Plan!$C42='Jean-Pierre'!$H$1,Plan!G42,\"\")","v":""}]
[{"$f":"IF(Plan!$C43='Jean-Pierre'!$H$1,Plan!A43,\"\")","v":""},{"$f":"IF(Plan!$C43='Jean-Pierre'!$H$1,Plan!B43,\"\")","v":""},{"$f":"IF(Plan!$C43='Jean-Pierre'!$H$1,Plan!D43,\"\")","v":""},{"$f":"IF(Plan!$C43='Jean-Pierre'!$H$1,Plan!E43,\"\")","v":""},{"$f":"IF(Plan!$C43='Jean-Pierre'!$H$1,Plan!F43,\"\")","v":""},{"$f":"IF(Plan!$C43='Jean-Pierre'!$H$1,Plan!G43,\"\")","v":""}]

{"sheet":"Listes","index":9,"n_rows":65,"n_cols":17,"rows_kept":65,"cut":false,"hidden":false,"merged":[[0,15,0,16]]}
[null,"Familles",null,"N°",null,"Responsables",null,"Lieux",null,"Probabilté",null,"Gravité",null,"Acceptable",null,"Prob_Grav"]
[null,"Organisation",null,5,null,"Rochelle",null,"Bureau",null,"P1",null,"G1",null,"Oui",null,"P4G1",1]
[null,"Management",null,10,null,"Florence",null,"Terrain",null,"P2",null,"G2",null,"Non",null,"P4G2",1]
[null,"Qualité",null,15,null,"Monia",null,"Comptable",null,"P3",null,"G3",null,null,null,"P4G3",1]
[null,"Produits",null,20,null,"Jean-Pierre",null,"SdR",null,"P4",null,"G4",null,null,null,"P4G4",1]
[null,"Moyens",null,{"$f":"D5+5","v":25},null,null,null,"Client",null,null,null,null,null,null,null,"P3G1",0]
[null,"Méthodes",null,{"$f":"D6+5","v":30},null,null,null,null,null,null,null,null,null,null,null,"P3G2",1]
[null,"Commerce",null,35,null,null,null,null,null,null,null,null,null,null,null,"P3G3",1]
[null,"Juridique",null,40,null,null,null,null,null,null,null,null,null,null,null,"P3G4",1]
[null,"Budget",null,45,null,null,null,null,null,null,null,null,null,null,null,"P2G1",0]
[null,null,null,50,null,null,null,null,null,null,null,null,null,null,null,"P2G2",0]
[null,null,null,55,null,null,null,null,null,null,null,null,null,null,null,"P2G3",0]
[null,null,null,60,null,null,null,null,null,null,null,null,null,null,null,"P2G4",1]
[null,null,null,65,null,null,null,null,null,null,null,null,null,null,null,"P1G1",0]
[null,null,null,70,null,null,null,null,null,null,null,null,null,null,null,"P1G2",0]
[null,null,null,75,null,null,null,null,null,null,null,null,null,null,null,"P1G3",0]
[null,null,null,80,null,null,null,null,null,null,null,null,null,null,null,"P1G4",1]
[null,null,null,85]
[null,null,null,90]
[null,null,null,95]
[null,null,null,100]
[null,null,null,105]
[null,null,null,110]
[null,null,null,115]
[null,null,null,120]
[null,null,null,125]
[null,null,null,130]
[null,null,null,135]
[null,null,null,140]
[null,null,null,145]
[null,null,null,150]
[null,null,null,155]
[null,null,null,160]
[null,null,null,165]
[null,null,null,170]
[null,null,null,175]
[null,null,null,180]
[null,null,null,185]
[null,null,null,190]
[null,null,null,195]
[null,null,null,200]
[null,null,null,205]
[null,null,null,210]
[null,null,null,215]
[null,null,null,220]
[null,null,null,225]
[null,null,null,230]
[null,null,null,235]
[null,null,null,240]
[null,null,null,245]
[null,null,null,250]
[null,null,null,255]
[null,null,null,260]
[null,null,null,265]
[null,null,null,270]
[null,null,null,275]
[null,null,null,280]
[null,null,null,285]
[null,null,null,290]
[null,null,null,295]
[null,null,null,300]
[null,null,null,305]
[null,null,null,310]
[null,null,null,315]
[null,null,null,320]